Workbook

Sheet Титул
D1: Программа статистической обработки и оценки результатов учебной деятельности школы
F3: КГУ "Журавлевская средняя школа"
G5: 2013/14 учебный год
H6: 3 четверть
F9: Класс | G9: Уч-ся в классе | H9: Фамилия, имя и отчество классного руководителя
S10: 1 четверть
F11: 1 | G11: =COUNTIF(СписокШкола!C$3:D$132,Титул!F11) -> 7 | H11: Авраменко Надежда Алексеевна | S11: 2 четверть
F12: 2 | G12: =COUNTIF(СписокШкола!C$3:D$132,Титул!F12) -> 13 | H12: Дель Елена Дмитриевна | S12: 3 четверть
F13: 3 | G13: =COUNTIF(СписокШкола!C$3:D$132,Титул!F13) -> 10 | H13: Цапко Галина Альбертовна | S13: 4 четверть
F14: 4 | G14: =COUNTIF(СписокШкола!C$3:D$132,Титул!F14) -> 5 | H14: Коргун Лариса Петровна | S14: Год
F15: 5 | G15: =COUNTIF(СписокШкола!C$3:D$132,Титул!F15) -> 10 | H15: Ибрагимова Елена Шевкетовна
F16: 6 | G16: =COUNTIF(СписокШкола!C$3:D$132,Титул!F16) -> 14 | H16: Серикбаева Жибек Касеновна
F17: 7 | G17: =COUNTIF(СписокШкола!C$3:D$132,Титул!F17) -> 7 | H17: Ибрагимова Валентина Ивановна
F18: 8 | G18: =COUNTIF(СписокШкола!C$3:D$132,Титул!F18) -> 8 | H18: Верховская Елена Анатольевна
F19: 9 | G19: =COUNTIF(СписокШкола!C$3:D$132,Титул!F19) -> 11 | H19: Чепракова Галина Петровна
F20: 10 | G20: =COUNTIF(СписокШкола!C$3:D$132,Титул!F20) -> 4 | H20: Аликадиева Роза Рамазановна
F21: 11 | G21: =COUNTIF(СписокШкола!C$3:D$132,Титул!F21) -> 8 | H21: Катренко Светлана Ивановна
F23: Всего: | G23: =SUM(G11:G22) -> 97

Sheet ИсхДанные
D1: Программа статистической обработки и оценки результатов учебной деятельности школы
F3: КГУ "Журавлевская средняя школа"
G5: 2013/14 учебный год
H6: =Титул!H6 -> 3 четверть
A8: Таблица №1 | D8: Таблица №2 | H8: Таблица №3
A9: № п/п | B9: Фамилии и инициалы учителей | D9: № п/п | E9: Фамилии и инициалы учителей | F9: Преподаваемый предмет | H9: № п/п | I9: Учебный предмет
A11: 1 | B11: Серикбаева Ж.К. | D11: 1 | E11: Серикбаева Ж.К. | F11: Казахский язык | H11: 1 | I11: Казахский язык
A12: =A11+1 -> 2 | B12: Даирова А.Б. | D12: =D11+1 -> 2 | E12: Серикбаева Ж.К. | F12: Казахская литература | H12: =H11+1 -> 2 | I12: Казахская литература
A13: 3 | B13: Кабулов Е.Б. | D13: 3 | E13: Даирова А.Б. | F13: Казахский язык | H13: 3 | I13: Русский язык
A14: 4 | B14: Чепракова Г.П. | D14: 4 | E14: Даирова А.Б. | F14: Казахская литература | H14: 4 | I14: Русская литература
A15: 5 | B15: Швидкая Т.В. | D15: 5 | E15: Кабулов Е.Б. | F15: Казахский язык | H15: 5 | I15: Математика
A16: 6 | B16: Ибрагимова Е.Ш. | D16: 6 | E16: Чепракова Г.П. | F16: Русский язык | H16: 6 | I16: Алгебра
A17: 7 | B17: Ибрагимова В.И. | D17: 7 | E17: Чепракова Г.П. | F17: Русская литература | H17: 7 | I17: Геометрия
A18: 8 | B18: Аликадиева Р.Р. | D18: 8 | E18: Швидкая Т.В. | F18: Русский язык | H18: 8 | I18: Черчение
A19: 9 | B19: Верховская Е.А. | D19: 9 | E19: Швидкая Т.В. | F19: Русская литература | H19: 9 | I19: Познание мира
A20: 10 | B20: Середа Ю.В. | D20: 10 | E20: Фролова Н.С. | F20: Казахский язык | H20: 10 | I20: Естествознание
A21: 11 | B21: Катренко С.И. | D21: 11 | E21: Фролова Н.С. | F21: Казахский язык | H21: 11 | I21: География
A22: 12 | B22: Фролова Н.С. | D22: 12 | E22: Фролова Н.С. | F22: Казахский язык | H22: 12 | I22: ИЗО
A23: 13 | B23: Шевченко В.И. | D23: 13 | E23: Фролова Н.С. | F23: Казахский язык | H23: 13 | I23: Музыка
A24: 14 | B24: Сватуха Н.А. | D24: 14 | E24: Фролова Н.С. | F24: Казахский язык | H24: 14 | I24: Технология
A25: 15 | B25: Лойко И.А. | D25: 15 | E25: Фролова Н.С. | F25: Казахский язык | H25: 15 | I25: Труды
A26: 16 | B26: Авраменко Н.А. | D26: 16 | E26: Фролова Н.С. | F26: Казахский язык | H26: 16 | I26: Биология
A27: 17 | B27: Цапко Г.А. | D27: 17 | E27: Фролова Н.С. | F27: Казахский язык | H27: 17 | I27: Физика
A28: 18 | B28: Белокозо А.А. | D28: 18 | E28: Фролова Н.С. | F28: Казахский язык | H28: 18 | I28: Информатика
A29: 19 | B29: Коргун Л.П. | D29: 19 | E29: Фролова Н.С. | F29: Казахский язык | H29: 19 | I29: Химия
A30: 20 | B30: Дель Е.Д. | D30: 20 | E30: Фролова Н.С. | F30: Казахский язык | H30: 20 | I30: Английский язык
A31: 21 | D31: 21 | E31: Фролова Н.С. | F31: Казахский язык | H31: 21 | I31: Немецкий язык
A32: 22 | D32: 22 | E32: Фролова Н.С. | F32: Казахский язык | H32: 22 | I32: История Казахстана
A33: =A32+1 -> 23 | D33: 23 | E33: Фролова Н.С. | F33: Казахский язык | H33: 23 | I33: Всемирная история
A34: 24 | D34: 24 | E34: Фролова Н.С. | F34: Казахский язык | H34: 24 | I34: Обществознание
A35: 25 | D35: 25 | E35: Фролова Н.С. | F35: Казахский язык | H35: 25 | I35: Физкультура
D36: 26 | E36: Фролова Н.С. | F36: Казахский язык | H36: 26 | I36: НВП
D37: 27 | E37: Фролова Н.С. | F37: Казахский язык | H37: 27
D38: 28 | F38: Казахский язык | H38: 28
D39: 29 | F39: Казахский язык | H39: 29
D40: 30 | F40: Казахский язык | H40: 30

Sheet СписокШкола
B2: № п/п | C2: Класс | D2: Фамилия, имя и отчество учащихся | G2: После добавления или удаления учащегося нужно произвести сортировку от А до Я в столбце Фамилия, имя и отчество учащихся
B3: 1 | C3: 3 | D3: Аксенова Елизавета Витальевна
B4: =B3+1 -> 2 | C4: 7 | D4: Аксенова Ирина Александровна
B5: =B4+1 -> 3 | C5: 11 | D5: Аксенова Кристина Александровна
B6: 4 | C6: 9 | D6: Амраен Игорь Игоревич
B7: 5 | C7: 6 | D7: Арбина Карина Ринатовна
B8: 6 | C8: 1 | D8: Богомолов Андрей Александрович
B9: 7 | C9: 3 | D9: Бойко Снежана Андреевна
B10: 8 | C10: 6 | D10: Бойко Андрей Андреевич
B11: 9 | C11: 6 | D11: Борисов Никита Андреевич
B12: 10 | C12: 2 | D12: Бородин Никита Александрович
B13: 11 | C13: 2 | D13: Бутнар Ирина Витальевна
B14: 12 | C14: 2 | D14: Веселов Алексей Андреевич
B15: 13 | C15: 9 | D15: Воронцов Анатолий Анатольевич
B16: 14 | C16: 8 | D16: Воронцова Александра Анатольевна
B17: 15 | C17: 4 | D17: Выдыш Дмитрий Сергеевич
B18: 16 | C18: 5 | D18: Ган Юлия Александровна
B19: 17 | C19: 2 | D19: Ганн Данил Александрович
B20: 18 | C20: 3 | D20: Гильгенберг Антон Сергеевич
B21: 19 | C21: 6 | D21: Гильгенберг Виктория Сергеевна
B22: 20 | C22: 8 | D22: Гладкова Лидия Николаевна
B23: 21 | C23: 11 | D23: Голубев Владимир Валерьевич
B24: 22 | C24: 9 | D24: Голубев Сергей Валерьевич
B25: 23 | C25: 5 | D25: Горецкая Александра Валерьевна
B26: 24 | C26: 7 | D26: Дель Роман Андреевич
B27: 25 | C27: 1 | D27: Дель Дмитрий Сергеевич
B28: 26 | C28: 6 | D28: Демихов Виталий Александрович
B29: 27 | C29: 2 | D29: Дулап Тигран Тигранович
B30: 28 | C30: 5 | D30: Зима Богдан Александрович
B31: 29 | C31: 6 | D31: Зонтаг Ангелина Константиновна
B32: 30 | C32: 5 | D32: Зонтаг Эдуард Константинович
B33: 31 | C33: 1 | D33: Зуев Дмитрий Сергеевич
B34: 32 | C34: 6 | D34: Ибрагимова Маргарита Изетовна
B35: 33 | C35: 9 | D35: Иващенко Анастасия Дмитриевна
B36: 34 | C36: 6 | D36: Иващенко Евгения Дмитриевна
B37: 35 | C37: 3 | D37: Иващенко Сергей Сергеевич
B38: 36 | C38: 4 | D38: Кайбель Ольга Валерьевна
B39: 37 | C39: 3 | D39: Кобзева Яна Ивановна
B40: 38 | C40: 8 | D40: Корн Андрей Иванович
B41: 39 | C41: 9 | D41: Корн Дмитрий Иванович
B42: 40 | C42: 11 | D42: Корн Кристина Викторовна
B43: 41 | C43: 7 | D43: Корн Юлия Викторовна
B44: 42 | C44: 2 | D44: Кошлаков Роман Анатольевич
B45: 43 | C45: 3 | D45: Лазоренко Марина Алексеевна
B46: 44 | C46: 8 | D46: Лаптова Валерия Витальевна
B47: 45 | C47: 5 | D47: Лаптова Марина Витальевна
B48: 46 | C48: 2 | D48: Ленчук Дмитрий Олегович
B49: 47 | C49: 1 | D49: Либрехт Надежда Сергеевна
B50: 48 | C50: 11 | D50: Мезин Денис Алексеевич
B51: 49 | C51: 8 | D51: Мезина Светлана Алексеевна
B52: 50 | C52: 10 | D52: Мещерякова Олеся Владимировна
B53: 51 | C53: 9 | D53: Мишарин Максим Сергеевич
B54: 52 | C54: 5 | D54: Москаленко Виолетта Александровна
B55: 53 | C55: 8 | D55: Николайчук Роман Алексеевич
B56: 54 | C56: 4 | D56: Носачев Богдан Вадимович
B57: 55 | C57: 7 | D57: Овчинникова Елена Петровна
B58: 56 | C58: 2 | D58: Панченко Татьяна Юрьевна
B59: 57 | C59: 5 | D59: Перминов Виталий Иванович
B60: 58 | C60: 2 | D60: Перминова Светлана Андреевна
B61: 59 | C61: 9 | D61: Петри Виктория Юрьевна
B62: 60 | C62: 6 | D62: Пешкова Ульяна Валерьевна
B63: 61 | C63: 11 | D63: Подопригорова Яна Александровна
B64: 62 | C64: 10 | D64: Поткин Евгений Андреевич
B65: 63 | C65: 3 | D65: Рахимова Карина Витальевна
B66: 64 | C66: 9 | D66: Рыскина Юлия Александровна
B67: 65 | C67: 3 | D67: Савоськина Лидия Федоровна
B68: 66 | C68: 6 | D68: Санников Александр Николаевич
B69: =B68+1 -> 67 | C69: 1 | D69: Санников Юрий Алекссевич
B70: 68 | C70: 11 | D70: Сидоренко Виктор Николаевич
B71: 69 | C71: 4 | D71: Синицкая Алина Петровна
B72: 70 | C72: 3 | D72: Стрельцова Анастасия Павловна
B73: 71 | C73: 2 | D73: Судзиловский Никита Николаевич
B74: 72 | C74: 3 | D74: Тащеев Роман Геннадьевич
B75: 73 | C75: 6 | D75: Тельнов Николай Николаевич
B76: 74 | C76: 9 | D76: Тельнов Сергей Владимирович
B77: 75 | C77: 1 | D77: Ткаченко Карина Расимовна
B78: 76 | C78: 8 | D78: Ушаков Вячеслав Федорович
B79: 77 | C79: 2 | D79: Ушакова Виктория Федоровна
B80: 78 | C80: 10 | D80: Фролов Александр Владимирович
B81: 79 | C81: 7 | D81: Чабаненко Александр Игоревич
B82: 80 | C82: 10 | D82: Чабаненко Денис Витальевич
B83: 81 | C83: 2 | D83: Чабаненко Елизавета Игоревна
B84: 82 | C84: 9 | D84: Чабаненко Оксана Витальевна
B85: 83 | C85: 5 | D85: Черный Александр Олегович
B86: 84 | C86: 5 | D86: Шаримов Милан Егимбаевич
B87: 85 | C87: 1 | D87: Шевченко Максим Витальевич
B88: 86 | C88: 7 | D88: Шелег Вячеслав Михайлович
B89: 87 | C89: 5 | D89: Шишковская Екатерина Валерьевна
B90: 88 | C90: 8 | D90: Шкитина Александра Михайловна
B91: 89 | C91: 7 | D91: Шкитина Ирина Александровна
B92: 90 | C92: 6 | D92: Шмидт Иван Дмитриевич
B93: 91 | C93: 11 | D93: Эберц Елена Владимировна
B94: 92 | C94: 9 | D94: Ягяев Александр Энверович
B95: 93 | C95: 6 | D95: Ягяев Виктор Эдуардович
B96: 94 | C96: 4 | D96: Ягяев Сергей Эдуардович
B97: 95 | C97: 2 | D97: Ягяева Лера Рустемовна
B98: 96 | C98: 11 | D98: Ягяева Лиля Энверовна
B99: 97 | C99: 6 | D99: Ягяева Регина Рустемовна
B100: 98
B101: 99
B102: 100
B103: 101
B104: 102
B105: 103
B106: 104
B107: 105
B108: 106
B109: 107
B110: 108
B111: 109
B112: 110
B113: 111
B114: 112
B115: 113
B116: 114
B117: 115
B118: 116
B119: 117
B120: 118
B121: 119
B122: 120
B123: 121
B124: 122
B125: 123
B126: 124
B127: 125
B128: 126
B129: 127
B130: 128
B131: 129
B132: 130

Sheet СписокКлассы
B2: 1 класс | C2: 2 класс | D2: 3 класс | E2: 4 класс | F2: 5 класс | G2: 6 класс | H2: 7 класс | I2: 8 класс | J2: 9 класс | K2: 10 класс | L2: 11 класс
B3: Фамилии и имена учащихся класса | C3: Фамилии и имена учащихся класса | D3: Фамилии и имена учащихся класса | E3: Фамилии и имена учащихся класса | F3: Фамилии и имена учащихся класса | G3: Фамилии и имена учащихся класса | H3: Фамилии и имена учащихся класса | I3: Фамилии и имена учащихся класса | J3: Фамилии и имена учащихся класса | K3: Фамилии и имена учащихся класса | L3: Фамилии и имена учащихся класса
A4: 1 | B4: =IFERROR(LEFT(TRIM(INDEX(СписокШкола!$D$3:$D$132,SMALL(IF(COLUMN()-1=СписокШкола!$C$3:$C$132,ROW($D$3:$D$132)-2),ROW(A1)))),SEARCH("#",SUBSTITUTE(TRIM(INDEX(СписокШкола!$D$3:$D$132,SMALL(IF(COLUMN()-1=СписокШкола!$C$3:$C$132,ROW($D$3:$D$132)-2),ROW(A1))))&" "," ","#",2))-1),"") -> Богомолов Андрей | C4: =IFERROR(LEFT(TRIM(INDEX(СписокШкола!$D$3:$D$132,SMALL(IF(COLUMN()-1=СписокШкола!$C$3:$C$132,ROW($D$3:$D$132)-2),ROW(B1)))),SEARCH("#",SUBSTITUTE(TRIM(INDEX(СписокШкола!$D$3:$D$132,SMALL(IF(COLUMN()-1=СписокШкола!$C$3:$C$132,ROW($D$3:$D$132)-2),ROW(B1))))&" "," ","#",2))-1),"") -> Бородин Никита | D4: =IFERROR(LEFT(TRIM(INDEX(СписокШкола!$D$3:$D$132,SMALL(IF(COLUMN()-1=СписокШкола!$C$3:$C$132,ROW($D$3:$D$132)-2),ROW(C1)))),SEARCH("#",SUBSTITUTE(TRIM(INDEX(СписокШкола!$D$3:$D$132,SMALL(IF(COLUMN()-1=СписокШкола!$C$3:$C$132,ROW($D$3:$D$132)-2),ROW(C1))))&" "," ","#",2))-1),"") -> Аксенова Елизавета | E4: =IFERROR(LEFT(TRIM(INDEX(СписокШкола!$D$3:$D$132,SMALL(IF(COLUMN()-1=СписокШкола!$C$3:$C$132,ROW($D$3:$D$132)-2),ROW(D1)))),SEARCH("#",SUBSTITUTE(TRIM(INDEX(СписокШкола!$D$3:$D$132,SMALL(IF(COLUMN()-1=СписокШкола!$C$3:$C$132,ROW($D$3:$D$132)-2),ROW(D1))))&" "," ","#",2))-1),"") -> Выдыш Дмитрий | F4: =IFERROR(LEFT(TRIM(INDEX(СписокШкола!$D$3:$D$132,SMALL(IF(COLUMN()-1=СписокШкола!$C$3:$C$132,ROW($D$3:$D$132)-2),ROW(E1)))),SEARCH("#",SUBSTITUTE(TRIM(INDEX(СписокШкола!$D$3:$D$132,SMALL(IF(COLUMN()-1=СписокШкола!$C$3:$C$132,ROW($D$3:$D$132)-2),ROW(E1))))&" "," ","#",2))-1),"") -> Ган Юлия | G4: =IFERROR(LEFT(TRIM(INDEX(СписокШкола!$D$3:$D$132,SMALL(IF(COLUMN()-1=СписокШкола!$C$3:$C$132,ROW($D$3:$D$132)-2),ROW(F1)))),SEARCH("#",SUBSTITUTE(TRIM(INDEX(СписокШкола!$D$3:$D$132,SMALL(IF(COLUMN()-1=СписокШкола!$C$3:$C$132,ROW($D$3:$D$132)-2),ROW(F1))))&" "," ","#",2))-1),"") -> Арбина Карина | H4: =IFERROR(LEFT(TRIM(INDEX(СписокШкола!$D$3:$D$132,SMALL(IF(COLUMN()-1=СписокШкола!$C$3:$C$132,ROW($D$3:$D$132)-2),ROW(G1)))),SEARCH("#",SUBSTITUTE(TRIM(INDEX(СписокШкола!$D$3:$D$132,SMALL(IF(COLUMN()-1=СписокШкола!$C$3:$C$132,ROW($D$3:$D$132)-2),ROW(G1))))&" "," ","#",2))-1),"") -> Аксенова Ирина | I4: =IFERROR(LEFT(TRIM(INDEX(СписокШкола!$D$3:$D$132,SMALL(IF(COLUMN()-1=СписокШкола!$C$3:$C$132,ROW($D$3:$D$132)-2),ROW(H1)))),SEARCH("#",SUBSTITUTE(TRIM(INDEX(СписокШкола!$D$3:$D$132,SMALL(IF(COLUMN()-1=СписокШкола!$C$3:$C$132,ROW($D$3:$D$132)-2),ROW(H1))))&" "," ","#",2))-1),"") -> Воронцова Александра | J4: =IFERROR(LEFT(TRIM(INDEX(СписокШкола!$D$3:$D$132,SMALL(IF(COLUMN()-1=СписокШкола!$C$3:$C$132,ROW($D$3:$D$132)-2),ROW(I1)))),SEARCH("#",SUBSTITUTE(TRIM(INDEX(СписокШкола!$D$3:$D$132,SMALL(IF(COLUMN()-1=СписокШкола!$C$3:$C$132,ROW($D$3:$D$132)-2),ROW(I1))))&" "," ","#",2))-1),"") -> Амраен Игорь | K4: =IFERROR(LEFT(TRIM(INDEX(СписокШкола!$D$3:$D$132,SMALL(IF(COLUMN()-1=СписокШкола!$C$3:$C$132,ROW($D$3:$D$132)-2),ROW(J1)))),SEARCH("#",SUBSTITUTE(TRIM(INDEX(СписокШкола!$D$3:$D$132,SMALL(IF(COLUMN()-1=СписокШкола!$C$3:$C$132,ROW($D$3:$D$132)-2),ROW(J1))))&" "," ","#",2))-1),"") -> Мещерякова Олеся | L4: =IFERROR(LEFT(TRIM(INDEX(СписокШкола!$D$3:$D$132,SMALL(IF(COLUMN()-1=СписокШкола!$C$3:$C$132,ROW($D$3:$D$132)-2),ROW(K1)))),SEARCH("#",SUBSTITUTE(TRIM(INDEX(СписокШкола!$D$3:$D$132,SMALL(IF(COLUMN()-1=СписокШкола!$C$3:$C$132,ROW($D$3:$D$132)-2),ROW(K1))))&" "," ","#",2))-1),"") -> Аксенова Кристина
A5: =A4+1 -> 2 | B5: =IFERROR(LEFT(TRIM(INDEX(СписокШкола!$D$3:$D$132,SMALL(IF(COLUMN()-1=СписокШкола!$C$3:$C$132,ROW($D$3:$D$132)-2),ROW(A2)))),SEARCH("#",SUBSTITUTE(TRIM(INDEX(СписокШкола!$D$3:$D$132,SMALL(IF(COLUMN()-1=СписокШкола!$C$3:$C$132,ROW($D$3:$D$132)-2),ROW(A2))))&" "," ","#",2))-1),"") -> Дель Дмитрий | C5: =IFERROR(LEFT(TRIM(INDEX(СписокШкола!$D$3:$D$132,SMALL(IF(COLUMN()-1=СписокШкола!$C$3:$C$132,ROW($D$3:$D$132)-2),ROW(B2)))),SEARCH("#",SUBSTITUTE(TRIM(INDEX(СписокШкола!$D$3:$D$132,SMALL(IF(COLUMN()-1=СписокШкола!$C$3:$C$132,ROW($D$3:$D$132)-2),ROW(B2))))&" "," ","#",2))-1),"") -> Бутнар Ирина | D5: =IFERROR(LEFT(TRIM(INDEX(СписокШкола!$D$3:$D$132,SMALL(IF(COLUMN()-1=СписокШкола!$C$3:$C$132,ROW($D$3:$D$132)-2),ROW(C2)))),SEARCH("#",SUBSTITUTE(TRIM(INDEX(СписокШкола!$D$3:$D$132,SMALL(IF(COLUMN()-1=СписокШкола!$C$3:$C$132,ROW($D$3:$D$132)-2),ROW(C2))))&" "," ","#",2))-1),"") -> Бойко Снежана | E5: =IFERROR(LEFT(TRIM(INDEX(СписокШкола!$D$3:$D$132,SMALL(IF(COLUMN()-1=СписокШкола!$C$3:$C$132,ROW($D$3:$D$132)-2),ROW(D2)))),SEARCH("#",SUBSTITUTE(TRIM(INDEX(СписокШкола!$D$3:$D$132,SMALL(IF(COLUMN()-1=СписокШкола!$C$3:$C$132,ROW($D$3:$D$132)-2),ROW(D2))))&" "," ","#",2))-1),"") -> Кайбель Ольга | F5: =IFERROR(LEFT(TRIM(INDEX(СписокШкола!$D$3:$D$132,SMALL(IF(COLUMN()-1=СписокШкола!$C$3:$C$132,ROW($D$3:$D$132)-2),ROW(E2)))),SEARCH("#",SUBSTITUTE(TRIM(INDEX(СписокШкола!$D$3:$D$132,SMALL(IF(COLUMN()-1=СписокШкола!$C$3:$C$132,ROW($D$3:$D$132)-2),ROW(E2))))&" "," ","#",2))-1),"") -> Горецкая Александра | G5: =IFERROR(LEFT(TRIM(INDEX(СписокШкола!$D$3:$D$132,SMALL(IF(COLUMN()-1=СписокШкола!$C$3:$C$132,ROW($D$3:$D$132)-2),ROW(F2)))),SEARCH("#",SUBSTITUTE(TRIM(INDEX(СписокШкола!$D$3:$D$132,SMALL(IF(COLUMN()-1=СписокШкола!$C$3:$C$132,ROW($D$3:$D$132)-2),ROW(F2))))&" "," ","#",2))-1),"") -> Бойко Андрей | H5: =IFERROR(LEFT(TRIM(INDEX(СписокШкола!$D$3:$D$132,SMALL(IF(COLUMN()-1=СписокШкола!$C$3:$C$132,ROW($D$3:$D$132)-2),ROW(G2)))),SEARCH("#",SUBSTITUTE(TRIM(INDEX(СписокШкола!$D$3:$D$132,SMALL(IF(COLUMN()-1=СписокШкола!$C$3:$C$132,ROW($D$3:$D$132)-2),ROW(G2))))&" "," ","#",2))-1),"") -> Дель Роман | I5: =IFERROR(LEFT(TRIM(INDEX(СписокШкола!$D$3:$D$132,SMALL(IF(COLUMN()-1=СписокШкола!$C$3:$C$132,ROW($D$3:$D$132)-2),ROW(H2)))),SEARCH("#",SUBSTITUTE(TRIM(INDEX(СписокШкола!$D$3:$D$132,SMALL(IF(COLUMN()-1=СписокШкола!$C$3:$C$132,ROW($D$3:$D$132)-2),ROW(H2))))&" "," ","#",2))-1),"") -> Гладкова Лидия | J5: =IFERROR(LEFT(TRIM(INDEX(СписокШкола!$D$3:$D$132,SMALL(IF(COLUMN()-1=СписокШкола!$C$3:$C$132,ROW($D$3:$D$132)-2),ROW(I2)))),SEARCH("#",SUBSTITUTE(TRIM(INDEX(СписокШкола!$D$3:$D$132,SMALL(IF(COLUMN()-1=СписокШкола!$C$3:$C$132,ROW($D$3:$D$132)-2),ROW(I2))))&" "," ","#",2))-1),"") -> Воронцов Анатолий | K5: =IFERROR(LEFT(TRIM(INDEX(СписокШкола!$D$3:$D$132,SMALL(IF(COLUMN()-1=СписокШкола!$C$3:$C$132,ROW($D$3:$D$132)-2),ROW(J2)))),SEARCH("#",SUBSTITUTE(TRIM(INDEX(СписокШкола!$D$3:$D$132,SMALL(IF(COLUMN()-1=СписокШкола!$C$3:$C$132,ROW($D$3:$D$132)-2),ROW(J2))))&" "," ","#",2))-1),"") -> Поткин Евгений | L5: =IFERROR(LEFT(TRIM(INDEX(СписокШкола!$D$3:$D$132,SMALL(IF(COLUMN()-1=СписокШкола!$C$3:$C$132,ROW($D$3:$D$132)-2),ROW(K2)))),SEARCH("#",SUBSTITUTE(TRIM(INDEX(СписокШкола!$D$3:$D$132,SMALL(IF(COLUMN()-1=СписокШкола!$C$3:$C$132,ROW($D$3:$D$132)-2),ROW(K2))))&" "," ","#",2))-1),"") -> Голубев Владимир
A6: =A5+1 -> 3 | B6: =IFERROR(LEFT(TRIM(INDEX(СписокШкола!$D$3:$D$132,SMALL(IF(COLUMN()-1=СписокШкола!$C$3:$C$132,ROW($D$3:$D$132)-2),ROW(A3)))),SEARCH("#",SUBSTITUTE(TRIM(INDEX(СписокШкола!$D$3:$D$132,SMALL(IF(COLUMN()-1=СписокШкола!$C$3:$C$132,ROW($D$3:$D$132)-2),ROW(A3))))&" "," ","#",2))-1),"") -> Зуев Дмитрий | C6: =IFERROR(LEFT(TRIM(INDEX(СписокШкола!$D$3:$D$132,SMALL(IF(COLUMN()-1=СписокШкола!$C$3:$C$132,ROW($D$3:$D$132)-2),ROW(B3)))),SEARCH("#",SUBSTITUTE(TRIM(INDEX(СписокШкола!$D$3:$D$132,SMALL(IF(COLUMN()-1=СписокШкола!$C$3:$C$132,ROW($D$3:$D$132)-2),ROW(B3))))&" "," ","#",2))-1),"") -> Веселов Алексей | D6: =IFERROR(LEFT(TRIM(INDEX(СписокШкола!$D$3:$D$132,SMALL(IF(COLUMN()-1=СписокШкола!$C$3:$C$132,ROW($D$3:$D$132)-2),ROW(C3)))),SEARCH("#",SUBSTITUTE(TRIM(INDEX(СписокШкола!$D$3:$D$132,SMALL(IF(COLUMN()-1=СписокШкола!$C$3:$C$132,ROW($D$3:$D$132)-2),ROW(C3))))&" "," ","#",2))-1),"") -> Гильгенберг Антон | E6: =IFERROR(LEFT(TRIM(INDEX(СписокШкола!$D$3:$D$132,SMALL(IF(COLUMN()-1=СписокШкола!$C$3:$C$132,ROW($D$3:$D$132)-2),ROW(D3)))),SEARCH("#",SUBSTITUTE(TRIM(INDEX(СписокШкола!$D$3:$D$132,SMALL(IF(COLUMN()-1=СписокШкола!$C$3:$C$132,ROW($D$3:$D$132)-2),ROW(D3))))&" "," ","#",2))-1),"") -> Носачев Богдан | F6: =IFERROR(LEFT(TRIM(INDEX(СписокШкола!$D$3:$D$132,SMALL(IF(COLUMN()-1=СписокШкола!$C$3:$C$132,ROW($D$3:$D$132)-2),ROW(E3)))),SEARCH("#",SUBSTITUTE(TRIM(INDEX(СписокШкола!$D$3:$D$132,SMALL(IF(COLUMN()-1=СписокШкола!$C$3:$C$132,ROW($D$3:$D$132)-2),ROW(E3))))&" "," ","#",2))-1),"") -> Зима Богдан | G6: =IFERROR(LEFT(TRIM(INDEX(СписокШкола!$D$3:$D$132,SMALL(IF(COLUMN()-1=СписокШкола!$C$3:$C$132,ROW($D$3:$D$132)-2),ROW(F3)))),SEARCH("#",SUBSTITUTE(TRIM(INDEX(СписокШкола!$D$3:$D$132,SMALL(IF(COLUMN()-1=СписокШкола!$C$3:$C$132,ROW($D$3:$D$132)-2),ROW(F3))))&" "," ","#",2))-1),"") -> Борисов Никита | H6: =IFERROR(LEFT(TRIM(INDEX(СписокШкола!$D$3:$D$132,SMALL(IF(COLUMN()-1=СписокШкола!$C$3:$C$132,ROW($D$3:$D$132)-2),ROW(G3)))),SEARCH("#",SUBSTITUTE(TRIM(INDEX(СписокШкола!$D$3:$D$132,SMALL(IF(COLUMN()-1=СписокШкола!$C$3:$C$132,ROW($D$3:$D$132)-2),ROW(G3))))&" "," ","#",2))-1),"") -> Корн Юлия | I6: =IFERROR(LEFT(TRIM(INDEX(СписокШкола!$D$3:$D$132,SMALL(IF(COLUMN()-1=СписокШкола!$C$3:$C$132,ROW($D$3:$D$132)-2),ROW(H3)))),SEARCH("#",SUBSTITUTE(TRIM(INDEX(СписокШкола!$D$3:$D$132,SMALL(IF(COLUMN()-1=СписокШкола!$C$3:$C$132,ROW($D$3:$D$132)-2),ROW(H3))))&" "," ","#",2))-1),"") -> Корн Андрей | J6: =IFERROR(LEFT(TRIM(INDEX(СписокШкола!$D$3:$D$132,SMALL(IF(COLUMN()-1=СписокШкола!$C$3:$C$132,ROW($D$3:$D$132)-2),ROW(I3)))),SEARCH("#",SUBSTITUTE(TRIM(INDEX(СписокШкола!$D$3:$D$132,SMALL(IF(COLUMN()-1=СписокШкола!$C$3:$C$132,ROW($D$3:$D$132)-2),ROW(I3))))&" "," ","#",2))-1),"") -> Голубев Сергей | K6: =IFERROR(LEFT(TRIM(INDEX(СписокШкола!$D$3:$D$132,SMALL(IF(COLUMN()-1=СписокШкола!$C$3:$C$132,ROW($D$3:$D$132)-2),ROW(J3)))),SEARCH("#",SUBSTITUTE(TRIM(INDEX(СписокШкола!$D$3:$D$132,SMALL(IF(COLUMN()-1=СписокШкола!$C$3:$C$132,ROW($D$3:$D$132)-2),ROW(J3))))&" "," ","#",2))-1),"") -> Фролов Александр | L6: =IFERROR(LEFT(TRIM(INDEX(СписокШкола!$D$3:$D$132,SMALL(IF(COLUMN()-1=СписокШкола!$C$3:$C$132,ROW($D$3:$D$132)-2),ROW(K3)))),SEARCH("#",SUBSTITUTE(TRIM(INDEX(СписокШкола!$D$3:$D$132,SMALL(IF(COLUMN()-1=СписокШкола!$C$3:$C$132,ROW($D$3:$D$132)-2),ROW(K3))))&" "," ","#",2))-1),"") -> Корн Кристина
A7: 4 | B7: =IFERROR(LEFT(TRIM(INDEX(СписокШкола!$D$3:$D$132,SMALL(IF(COLUMN()-1=СписокШкола!$C$3:$C$132,ROW($D$3:$D$132)-2),ROW(A4)))),SEARCH("#",SUBSTITUTE(TRIM(INDEX(СписокШкола!$D$3:$D$132,SMALL(IF(COLUMN()-1=СписокШкола!$C$3:$C$132,ROW($D$3:$D$132)-2),ROW(A4))))&" "," ","#",2))-1),"") -> Либрехт Надежда | C7: =IFERROR(LEFT(TRIM(INDEX(СписокШкола!$D$3:$D$132,SMALL(IF(COLUMN()-1=СписокШкола!$C$3:$C$132,ROW($D$3:$D$132)-2),ROW(B4)))),SEARCH("#",SUBSTITUTE(TRIM(INDEX(СписокШкола!$D$3:$D$132,SMALL(IF(COLUMN()-1=СписокШкола!$C$3:$C$132,ROW($D$3:$D$132)-2),ROW(B4))))&" "," ","#",2))-1),"") -> Ганн Данил | D7: =IFERROR(LEFT(TRIM(INDEX(СписокШкола!$D$3:$D$132,SMALL(IF(COLUMN()-1=СписокШкола!$C$3:$C$132,ROW($D$3:$D$132)-2),ROW(C4)))),SEARCH("#",SUBSTITUTE(TRIM(INDEX(СписокШкола!$D$3:$D$132,SMALL(IF(COLUMN()-1=СписокШкола!$C$3:$C$132,ROW($D$3:$D$132)-2),ROW(C4))))&" "," ","#",2))-1),"") -> Иващенко Сергей | E7: =IFERROR(LEFT(TRIM(INDEX(СписокШкола!$D$3:$D$132,SMALL(IF(COLUMN()-1=СписокШкола!$C$3:$C$132,ROW($D$3:$D$132)-2),ROW(D4)))),SEARCH("#",SUBSTITUTE(TRIM(INDEX(СписокШкола!$D$3:$D$132,SMALL(IF(COLUMN()-1=СписокШкола!$C$3:$C$132,ROW($D$3:$D$132)-2),ROW(D4))))&" "," ","#",2))-1),"") -> Синицкая Алина | F7: =IFERROR(LEFT(TRIM(INDEX(СписокШкола!$D$3:$D$132,SMALL(IF(COLUMN()-1=СписокШкола!$C$3:$C$132,ROW($D$3:$D$132)-2),ROW(E4)))),SEARCH("#",SUBSTITUTE(TRIM(INDEX(СписокШкола!$D$3:$D$132,SMALL(IF(COLUMN()-1=СписокШкола!$C$3:$C$132,ROW($D$3:$D$132)-2),ROW(E4))))&" "," ","#",2))-1),"") -> Зонтаг Эдуард | G7: =IFERROR(LEFT(TRIM(INDEX(СписокШкола!$D$3:$D$132,SMALL(IF(COLUMN()-1=СписокШкола!$C$3:$C$132,ROW($D$3:$D$132)-2),ROW(F4)))),SEARCH("#",SUBSTITUTE(TRIM(INDEX(СписокШкола!$D$3:$D$132,SMALL(IF(COLUMN()-1=СписокШкола!$C$3:$C$132,ROW($D$3:$D$132)-2),ROW(F4))))&" "," ","#",2))-1),"") -> Гильгенберг Виктория | H7: =IFERROR(LEFT(TRIM(INDEX(СписокШкола!$D$3:$D$132,SMALL(IF(COLUMN()-1=СписокШкола!$C$3:$C$132,ROW($D$3:$D$132)-2),ROW(G4)))),SEARCH("#",SUBSTITUTE(TRIM(INDEX(СписокШкола!$D$3:$D$132,SMALL(IF(COLUMN()-1=СписокШкола!$C$3:$C$132,ROW($D$3:$D$132)-2),ROW(G4))))&" "," ","#",2))-1),"") -> Овчинникова Елена | I7: =IFERROR(LEFT(TRIM(INDEX(СписокШкола!$D$3:$D$132,SMALL(IF(COLUMN()-1=СписокШкола!$C$3:$C$132,ROW($D$3:$D$132)-2),ROW(H4)))),SEARCH("#",SUBSTITUTE(TRIM(INDEX(СписокШкола!$D$3:$D$132,SMALL(IF(COLUMN()-1=СписокШкола!$C$3:$C$132,ROW($D$3:$D$132)-2),ROW(H4))))&" "," ","#",2))-1),"") -> Лаптова Валерия | J7: =IFERROR(LEFT(TRIM(INDEX(СписокШкола!$D$3:$D$132,SMALL(IF(COLUMN()-1=СписокШкола!$C$3:$C$132,ROW($D$3:$D$132)-2),ROW(I4)))),SEARCH("#",SUBSTITUTE(TRIM(INDEX(СписокШкола!$D$3:$D$132,SMALL(IF(COLUMN()-1=СписокШкола!$C$3:$C$132,ROW($D$3:$D$132)-2),ROW(I4))))&" "," ","#",2))-1),"") -> Иващенко Анастасия | K7: =IFERROR(LEFT(TRIM(INDEX(СписокШкола!$D$3:$D$132,SMALL(IF(COLUMN()-1=СписокШкола!$C$3:$C$132,ROW($D$3:$D$132)-2),ROW(J4)))),SEARCH("#",SUBSTITUTE(TRIM(INDEX(СписокШкола!$D$3:$D$132,SMALL(IF(COLUMN()-1=СписокШкола!$C$3:$C$132,ROW($D$3:$D$132)-2),ROW(J4))))&" "," ","#",2))-1),"") -> Чабаненко Денис | L7: =IFERROR(LEFT(TRIM(INDEX(СписокШкола!$D$3:$D$132,SMALL(IF(COLUMN()-1=СписокШкола!$C$3:$C$132,ROW($D$3:$D$132)-2),ROW(K4)))),SEARCH("#",SUBSTITUTE(TRIM(INDEX(СписокШкола!$D$3:$D$132,SMALL(IF(COLUMN()-1=СписокШкола!$C$3:$C$132,ROW($D$3:$D$132)-2),ROW(K4))))&" "," ","#",2))-1),"") -> Мезин Денис
A8: 5 | B8: =IFERROR(LEFT(TRIM(INDEX(СписокШкола!$D$3:$D$132,SMALL(IF(COLUMN()-1=СписокШкола!$C$3:$C$132,ROW($D$3:$D$132)-2),ROW(A5)))),SEARCH("#",SUBSTITUTE(TRIM(INDEX(СписокШкола!$D$3:$D$132,SMALL(IF(COLUMN()-1=СписокШкола!$C$3:$C$132,ROW($D$3:$D$132)-2),ROW(A5))))&" "," ","#",2))-1),"") -> Санников Юрий | C8: =IFERROR(LEFT(TRIM(INDEX(СписокШкола!$D$3:$D$132,SMALL(IF(COLUMN()-1=СписокШкола!$C$3:$C$132,ROW($D$3:$D$132)-2),ROW(B5)))),SEARCH("#",SUBSTITUTE(TRIM(INDEX(СписокШкола!$D$3:$D$132,SMALL(IF(COLUMN()-1=СписокШкола!$C$3:$C$132,ROW($D$3:$D$132)-2),ROW(B5))))&" "," ","#",2))-1),"") -> Дулап Тигран | D8: =IFERROR(LEFT(TRIM(INDEX(СписокШкола!$D$3:$D$132,SMALL(IF(COLUMN()-1=СписокШкола!$C$3:$C$132,ROW($D$3:$D$132)-2),ROW(C5)))),SEARCH("#",SUBSTITUTE(TRIM(INDEX(СписокШкола!$D$3:$D$132,SMALL(IF(COLUMN()-1=СписокШкола!$C$3:$C$132,ROW($D$3:$D$132)-2),ROW(C5))))&" "," ","#",2))-1),"") -> Кобзева Яна | E8: =IFERROR(LEFT(TRIM(INDEX(СписокШкола!$D$3:$D$132,SMALL(IF(COLUMN()-1=СписокШкола!$C$3:$C$132,ROW($D$3:$D$132)-2),ROW(D5)))),SEARCH("#",SUBSTITUTE(TRIM(INDEX(СписокШкола!$D$3:$D$132,SMALL(IF(COLUMN()-1=СписокШкола!$C$3:$C$132,ROW($D$3:$D$132)-2),ROW(D5))))&" "," ","#",2))-1),"") -> Ягяев Сергей | F8: =IFERROR(LEFT(TRIM(INDEX(СписокШкола!$D$3:$D$132,SMALL(IF(COLUMN()-1=СписокШкола!$C$3:$C$132,ROW($D$3:$D$132)-2),ROW(E5)))),SEARCH("#",SUBSTITUTE(TRIM(INDEX(СписокШкола!$D$3:$D$132,SMALL(IF(COLUMN()-1=СписокШкола!$C$3:$C$132,ROW($D$3:$D$132)-2),ROW(E5))))&" "," ","#",2))-1),"") -> Лаптова Марина | G8: =IFERROR(LEFT(TRIM(INDEX(СписокШкола!$D$3:$D$132,SMALL(IF(COLUMN()-1=СписокШкола!$C$3:$C$132,ROW($D$3:$D$132)-2),ROW(F5)))),SEARCH("#",SUBSTITUTE(TRIM(INDEX(СписокШкола!$D$3:$D$132,SMALL(IF(COLUMN()-1=СписокШкола!$C$3:$C$132,ROW($D$3:$D$132)-2),ROW(F5))))&" "," ","#",2))-1),"") -> Демихов Виталий | H8: =IFERROR(LEFT(TRIM(INDEX(СписокШкола!$D$3:$D$132,SMALL(IF(COLUMN()-1=СписокШкола!$C$3:$C$132,ROW($D$3:$D$132)-2),ROW(G5)))),SEARCH("#",SUBSTITUTE(TRIM(INDEX(СписокШкола!$D$3:$D$132,SMALL(IF(COLUMN()-1=СписокШкола!$C$3:$C$132,ROW($D$3:$D$132)-2),ROW(G5))))&" "," ","#",2))-1),"") -> Чабаненко Александр | I8: =IFERROR(LEFT(TRIM(INDEX(СписокШкола!$D$3:$D$132,SMALL(IF(COLUMN()-1=СписокШкола!$C$3:$C$132,ROW($D$3:$D$132)-2),ROW(H5)))),SEARCH("#",SUBSTITUTE(TRIM(INDEX(СписокШкола!$D$3:$D$132,SMALL(IF(COLUMN()-1=СписокШкола!$C$3:$C$132,ROW($D$3:$D$132)-2),ROW(H5))))&" "," ","#",2))-1),"") -> Мезина Светлана | J8: =IFERROR(LEFT(TRIM(INDEX(СписокШкола!$D$3:$D$132,SMALL(IF(COLUMN()-1=СписокШкола!$C$3:$C$132,ROW($D$3:$D$132)-2),ROW(I5)))),SEARCH("#",SUBSTITUTE(TRIM(INDEX(СписокШкола!$D$3:$D$132,SMALL(IF(COLUMN()-1=СписокШкола!$C$3:$C$132,ROW($D$3:$D$132)-2),ROW(I5))))&" "," ","#",2))-1),"") -> Корн Дмитрий | K8: =IFERROR(LEFT(TRIM(INDEX(СписокШкола!$D$3:$D$132,SMALL(IF(COLUMN()-1=СписокШкола!$C$3:$C$132,ROW($D$3:$D$132)-2),ROW(J5)))),SEARCH("#",SUBSTITUTE(TRIM(INDEX(СписокШкола!$D$3:$D$132,SMALL(IF(COLUMN()-1=СписокШкола!$C$3:$C$132,ROW($D$3:$D$132)-2),ROW(J5))))&" "," ","#",2))-1),"") ->  | L8: =IFERROR(LEFT(TRIM(INDEX(СписокШкола!$D$3:$D$132,SMALL(IF(COLUMN()-1=СписокШкола!$C$3:$C$132,ROW($D$3:$D$132)-2),ROW(K5)))),SEARCH("#",SUBSTITUTE(TRIM(INDEX(СписокШкола!$D$3:$D$132,SMALL(IF(COLUMN()-1=СписокШкола!$C$3:$C$132,ROW($D$3:$D$132)-2),ROW(K5))))&" "," ","#",2))-1),"") -> Подопригорова Яна
A9: 6 | B9: =IFERROR(LEFT(TRIM(INDEX(СписокШкола!$D$3:$D$132,SMALL(IF(COLUMN()-1=СписокШкола!$C$3:$C$132,ROW($D$3:$D$132)-2),ROW(A6)))),SEARCH("#",SUBSTITUTE(TRIM(INDEX(СписокШкола!$D$3:$D$132,SMALL(IF(COLUMN()-1=СписокШкола!$C$3:$C$132,ROW($D$3:$D$132)-2),ROW(A6))))&" "," ","#",2))-1),"") -> Ткаченко Карина | C9: =IFERROR(LEFT(TRIM(INDEX(СписокШкола!$D$3:$D$132,SMALL(IF(COLUMN()-1=СписокШкола!$C$3:$C$132,ROW($D$3:$D$132)-2),ROW(B6)))),SEARCH("#",SUBSTITUTE(TRIM(INDEX(СписокШкола!$D$3:$D$132,SMALL(IF(COLUMN()-1=СписокШкола!$C$3:$C$132,ROW($D$3:$D$132)-2),ROW(B6))))&" "," ","#",2))-1),"") -> Кошлаков Роман | D9: =IFERROR(LEFT(TRIM(INDEX(СписокШкола!$D$3:$D$132,SMALL(IF(COLUMN()-1=СписокШкола!$C$3:$C$132,ROW($D$3:$D$132)-2),ROW(C6)))),SEARCH("#",SUBSTITUTE(TRIM(INDEX(СписокШкола!$D$3:$D$132,SMALL(IF(COLUMN()-1=СписокШкола!$C$3:$C$132,ROW($D$3:$D$132)-2),ROW(C6))))&" "," ","#",2))-1),"") -> Лазоренко Марина | E9: =IFERROR(LEFT(TRIM(INDEX(СписокШкола!$D$3:$D$132,SMALL(IF(COLUMN()-1=СписокШкола!$C$3:$C$132,ROW($D$3:$D$132)-2),ROW(D6)))),SEARCH("#",SUBSTITUTE(TRIM(INDEX(СписокШкола!$D$3:$D$132,SMALL(IF(COLUMN()-1=СписокШкола!$C$3:$C$132,ROW($D$3:$D$132)-2),ROW(D6))))&" "," ","#",2))-1),"") ->  | F9: =IFERROR(LEFT(TRIM(INDEX(СписокШкола!$D$3:$D$132,SMALL(IF(COLUMN()-1=СписокШкола!$C$3:$C$132,ROW($D$3:$D$132)-2),ROW(E6)))),SEARCH("#",SUBSTITUTE(TRIM(INDEX(СписокШкола!$D$3:$D$132,SMALL(IF(COLUMN()-1=СписокШкола!$C$3:$C$132,ROW($D$3:$D$132)-2),ROW(E6))))&" "," ","#",2))-1),"") -> Москаленко Виолетта | G9: =IFERROR(LEFT(TRIM(INDEX(СписокШкола!$D$3:$D$132,SMALL(IF(COLUMN()-1=СписокШкола!$C$3:$C$132,ROW($D$3:$D$132)-2),ROW(F6)))),SEARCH("#",SUBSTITUTE(TRIM(INDEX(СписокШкола!$D$3:$D$132,SMALL(IF(COLUMN()-1=СписокШкола!$C$3:$C$132,ROW($D$3:$D$132)-2),ROW(F6))))&" "," ","#",2))-1),"") -> Зонтаг Ангелина | H9: =IFERROR(LEFT(TRIM(INDEX(СписокШкола!$D$3:$D$132,SMALL(IF(COLUMN()-1=СписокШкола!$C$3:$C$132,ROW($D$3:$D$132)-2),ROW(G6)))),SEARCH("#",SUBSTITUTE(TRIM(INDEX(СписокШкола!$D$3:$D$132,SMALL(IF(COLUMN()-1=СписокШкола!$C$3:$C$132,ROW($D$3:$D$132)-2),ROW(G6))))&" "," ","#",2))-1),"") -> Шелег Вячеслав | I9: =IFERROR(LEFT(TRIM(INDEX(СписокШкола!$D$3:$D$132,SMALL(IF(COLUMN()-1=СписокШкола!$C$3:$C$132,ROW($D$3:$D$132)-2),ROW(H6)))),SEARCH("#",SUBSTITUTE(TRIM(INDEX(СписокШкола!$D$3:$D$132,SMALL(IF(COLUMN()-1=СписокШкола!$C$3:$C$132,ROW($D$3:$D$132)-2),ROW(H6))))&" "," ","#",2))-1),"") -> Николайчук Роман | J9: =IFERROR(LEFT(TRIM(INDEX(СписокШкола!$D$3:$D$132,SMALL(IF(COLUMN()-1=СписокШкола!$C$3:$C$132,ROW($D$3:$D$132)-2),ROW(I6)))),SEARCH("#",SUBSTITUTE(TRIM(INDEX(СписокШкола!$D$3:$D$132,SMALL(IF(COLUMN()-1=СписокШкола!$C$3:$C$132,ROW($D$3:$D$132)-2),ROW(I6))))&" "," ","#",2))-1),"") -> Мишарин Максим | K9: =IFERROR(LEFT(TRIM(INDEX(СписокШкола!$D$3:$D$132,SMALL(IF(COLUMN()-1=СписокШкола!$C$3:$C$132,ROW($D$3:$D$132)-2),ROW(J6)))),SEARCH("#",SUBSTITUTE(TRIM(INDEX(СписокШкола!$D$3:$D$132,SMALL(IF(COLUMN()-1=СписокШкола!$C$3:$C$132,ROW($D$3:$D$132)-2),ROW(J6))))&" "," ","#",2))-1),"") ->  | L9: =IFERROR(LEFT(TRIM(INDEX(СписокШкола!$D$3:$D$132,SMALL(IF(COLUMN()-1=СписокШкола!$C$3:$C$132,ROW($D$3:$D$132)-2),ROW(K6)))),SEARCH("#",SUBSTITUTE(TRIM(INDEX(СписокШкола!$D$3:$D$132,SMALL(IF(COLUMN()-1=СписокШкола!$C$3:$C$132,ROW($D$3:$D$132)-2),ROW(K6))))&" "," ","#",2))-1),"") -> Сидоренко Виктор
A10: 7 | B10: =IFERROR(LEFT(TRIM(INDEX(СписокШкола!$D$3:$D$132,SMALL(IF(COLUMN()-1=СписокШкола!$C$3:$C$132,ROW($D$3:$D$132)-2),ROW(A7)))),SEARCH("#",SUBSTITUTE(TRIM(INDEX(СписокШкола!$D$3:$D$132,SMALL(IF(COLUMN()-1=СписокШкола!$C$3:$C$132,ROW($D$3:$D$132)-2),ROW(A7))))&" "," ","#",2))-1),"") -> Шевченко Максим | C10: =IFERROR(LEFT(TRIM(INDEX(СписокШкола!$D$3:$D$132,SMALL(IF(COLUMN()-1=СписокШкола!$C$3:$C$132,ROW($D$3:$D$132)-2),ROW(B7)))),SEARCH("#",SUBSTITUTE(TRIM(INDEX(СписокШкола!$D$3:$D$132,SMALL(IF(COLUMN()-1=СписокШкола!$C$3:$C$132,ROW($D$3:$D$132)-2),ROW(B7))))&" "," ","#",2))-1),"") -> Ленчук Дмитрий | D10: =IFERROR(LEFT(TRIM(INDEX(СписокШкола!$D$3:$D$132,SMALL(IF(COLUMN()-1=СписокШкола!$C$3:$C$132,ROW($D$3:$D$132)-2),ROW(C7)))),SEARCH("#",SUBSTITUTE(TRIM(INDEX(СписокШкола!$D$3:$D$132,SMALL(IF(COLUMN()-1=СписокШкола!$C$3:$C$132,ROW($D$3:$D$132)-2),ROW(C7))))&" "," ","#",2))-1),"") -> Рахимова Карина | E10: =IFERROR(LEFT(TRIM(INDEX(СписокШкола!$D$3:$D$132,SMALL(IF(COLUMN()-1=СписокШкола!$C$3:$C$132,ROW($D$3:$D$132)-2),ROW(D7)))),SEARCH("#",SUBSTITUTE(TRIM(INDEX(СписокШкола!$D$3:$D$132,SMALL(IF(COLUMN()-1=СписокШкола!$C$3:$C$132,ROW($D$3:$D$132)-2),ROW(D7))))&" "," ","#",2))-1),"") ->  | F10: =IFERROR(LEFT(TRIM(INDEX(СписокШкола!$D$3:$D$132,SMALL(IF(COLUMN()-1=СписокШкола!$C$3:$C$132,ROW($D$3:$D$132)-2),ROW(E7)))),SEARCH("#",SUBSTITUTE(TRIM(INDEX(СписокШкола!$D$3:$D$132,SMALL(IF(COLUMN()-1=СписокШкола!$C$3:$C$132,ROW($D$3:$D$132)-2),ROW(E7))))&" "," ","#",2))-1),"") -> Перминов Виталий | G10: =IFERROR(LEFT(TRIM(INDEX(СписокШкола!$D$3:$D$132,SMALL(IF(COLUMN()-1=СписокШкола!$C$3:$C$132,ROW($D$3:$D$132)-2),ROW(F7)))),SEARCH("#",SUBSTITUTE(TRIM(INDEX(СписокШкола!$D$3:$D$132,SMALL(IF(COLUMN()-1=СписокШкола!$C$3:$C$132,ROW($D$3:$D$132)-2),ROW(F7))))&" "," ","#",2))-1),"") -> Ибрагимова Маргарита | H10: =IFERROR(LEFT(TRIM(INDEX(СписокШкола!$D$3:$D$132,SMALL(IF(COLUMN()-1=СписокШкола!$C$3:$C$132,ROW($D$3:$D$132)-2),ROW(G7)))),SEARCH("#",SUBSTITUTE(TRIM(INDEX(СписокШкола!$D$3:$D$132,SMALL(IF(COLUMN()-1=СписокШкола!$C$3:$C$132,ROW($D$3:$D$132)-2),ROW(G7))))&" "," ","#",2))-1),"") -> Шкитина Ирина | I10: =IFERROR(LEFT(TRIM(INDEX(СписокШкола!$D$3:$D$132,SMALL(IF(COLUMN()-1=СписокШкола!$C$3:$C$132,ROW($D$3:$D$132)-2),ROW(H7)))),SEARCH("#",SUBSTITUTE(TRIM(INDEX(СписокШкола!$D$3:$D$132,SMALL(IF(COLUMN()-1=СписокШкола!$C$3:$C$132,ROW($D$3:$D$132)-2),ROW(H7))))&" "," ","#",2))-1),"") -> Ушаков Вячеслав | J10: =IFERROR(LEFT(TRIM(INDEX(СписокШкола!$D$3:$D$132,SMALL(IF(COLUMN()-1=СписокШкола!$C$3:$C$132,ROW($D$3:$D$132)-2),ROW(I7)))),SEARCH("#",SUBSTITUTE(TRIM(INDEX(СписокШкола!$D$3:$D$132,SMALL(IF(COLUMN()-1=СписокШкола!$C$3:$C$132,ROW($D$3:$D$132)-2),ROW(I7))))&" "," ","#",2))-1),"") -> Петри Виктория | K10: =IFERROR(LEFT(TRIM(INDEX(СписокШкола!$D$3:$D$132,SMALL(IF(COLUMN()-1=СписокШкола!$C$3:$C$132,ROW($D$3:$D$132)-2),ROW(J7)))),SEARCH("#",SUBSTITUTE(TRIM(INDEX(СписокШкола!$D$3:$D$132,SMALL(IF(COLUMN()-1=СписокШкола!$C$3:$C$132,ROW($D$3:$D$132)-2),ROW(J7))))&" "," ","#",2))-1),"") ->  | L10: =IFERROR(LEFT(TRIM(INDEX(СписокШкола!$D$3:$D$132,SMALL(IF(COLUMN()-1=СписокШкола!$C$3:$C$132,ROW($D$3:$D$132)-2),ROW(K7)))),SEARCH("#",SUBSTITUTE(TRIM(INDEX(СписокШкола!$D$3:$D$132,SMALL(IF(COLUMN()-1=СписокШкола!$C$3:$C$132,ROW($D$3:$D$132)-2),ROW(K7))))&" "," ","#",2))-1),"") -> Эберц Елена
A11: 8 | B11: =IFERROR(LEFT(TRIM(INDEX(СписокШкола!$D$3:$D$132,SMALL(IF(COLUMN()-1=СписокШкола!$C$3:$C$132,ROW($D$3:$D$132)-2),ROW(A8)))),SEARCH("#",SUBSTITUTE(TRIM(INDEX(СписокШкола!$D$3:$D$132,SMALL(IF(COLUMN()-1=СписокШкола!$C$3:$C$132,ROW($D$3:$D$132)-2),ROW(A8))))&" "," ","#",2))-1),"") ->  | C11: =IFERROR(LEFT(TRIM(INDEX(СписокШкола!$D$3:$D$132,SMALL(IF(COLUMN()-1=СписокШкола!$C$3:$C$132,ROW($D$3:$D$132)-2),ROW(B8)))),SEARCH("#",SUBSTITUTE(TRIM(INDEX(СписокШкола!$D$3:$D$132,SMALL(IF(COLUMN()-1=СписокШкола!$C$3:$C$132,ROW($D$3:$D$132)-2),ROW(B8))))&" "," ","#",2))-1),"") -> Панченко Татьяна | D11: =IFERROR(LEFT(TRIM(INDEX(СписокШкола!$D$3:$D$132,SMALL(IF(COLUMN()-1=СписокШкола!$C$3:$C$132,ROW($D$3:$D$132)-2),ROW(C8)))),SEARCH("#",SUBSTITUTE(TRIM(INDEX(СписокШкола!$D$3:$D$132,SMALL(IF(COLUMN()-1=СписокШкола!$C$3:$C$132,ROW($D$3:$D$132)-2),ROW(C8))))&" "," ","#",2))-1),"") -> Савоськина Лидия | E11: =IFERROR(LEFT(TRIM(INDEX(СписокШкола!$D$3:$D$132,SMALL(IF(COLUMN()-1=СписокШкола!$C$3:$C$132,ROW($D$3:$D$132)-2),ROW(D8)))),SEARCH("#",SUBSTITUTE(TRIM(INDEX(СписокШкола!$D$3:$D$132,SMALL(IF(COLUMN()-1=СписокШкола!$C$3:$C$132,ROW($D$3:$D$132)-2),ROW(D8))))&" "," ","#",2))-1),"") ->  | F11: =IFERROR(LEFT(TRIM(INDEX(СписокШкола!$D$3:$D$132,SMALL(IF(COLUMN()-1=СписокШкола!$C$3:$C$132,ROW($D$3:$D$132)-2),ROW(E8)))),SEARCH("#",SUBSTITUTE(TRIM(INDEX(СписокШкола!$D$3:$D$132,SMALL(IF(COLUMN()-1=СписокШкола!$C$3:$C$132,ROW($D$3:$D$132)-2),ROW(E8))))&" "," ","#",2))-1),"") -> Черный Александр | G11: =IFERROR(LEFT(TRIM(INDEX(СписокШкола!$D$3:$D$132,SMALL(IF(COLUMN()-1=СписокШкола!$C$3:$C$132,ROW($D$3:$D$132)-2),ROW(F8)))),SEARCH("#",SUBSTITUTE(TRIM(INDEX(СписокШкола!$D$3:$D$132,SMALL(IF(COLUMN()-1=СписокШкола!$C$3:$C$132,ROW($D$3:$D$132)-2),ROW(F8))))&" "," ","#",2))-1),"") -> Иващенко Евгения | H11: =IFERROR(LEFT(TRIM(INDEX(СписокШкола!$D$3:$D$132,SMALL(IF(COLUMN()-1=СписокШкола!$C$3:$C$132,ROW($D$3:$D$132)-2),ROW(G8)))),SEARCH("#",SUBSTITUTE(TRIM(INDEX(СписокШкола!$D$3:$D$132,SMALL(IF(COLUMN()-1=СписокШкола!$C$3:$C$132,ROW($D$3:$D$132)-2),ROW(G8))))&" "," ","#",2))-1),"") ->  | I11: =IFERROR(LEFT(TRIM(INDEX(СписокШкола!$D$3:$D$132,SMALL(IF(COLUMN()-1=СписокШкола!$C$3:$C$132,ROW($D$3:$D$132)-2),ROW(H8)))),SEARCH("#",SUBSTITUTE(TRIM(INDEX(СписокШкола!$D$3:$D$132,SMALL(IF(COLUMN()-1=СписокШкола!$C$3:$C$132,ROW($D$3:$D$132)-2),ROW(H8))))&" "," ","#",2))-1),"") -> Шкитина Александра | J11: =IFERROR(LEFT(TRIM(INDEX(СписокШкола!$D$3:$D$132,SMALL(IF(COLUMN()-1=СписокШкола!$C$3:$C$132,ROW($D$3:$D$132)-2),ROW(I8)))),SEARCH("#",SUBSTITUTE(TRIM(INDEX(СписокШкола!$D$3:$D$132,SMALL(IF(COLUMN()-1=СписокШкола!$C$3:$C$132,ROW($D$3:$D$132)-2),ROW(I8))))&" "," ","#",2))-1),"") -> Рыскина Юлия | K11: =IFERROR(LEFT(TRIM(INDEX(СписокШкола!$D$3:$D$132,SMALL(IF(COLUMN()-1=СписокШкола!$C$3:$C$132,ROW($D$3:$D$132)-2),ROW(J8)))),SEARCH("#",SUBSTITUTE(TRIM(INDEX(СписокШкола!$D$3:$D$132,SMALL(IF(COLUMN()-1=СписокШкола!$C$3:$C$132,ROW($D$3:$D$132)-2),ROW(J8))))&" "," ","#",2))-1),"") ->  | L11: =IFERROR(LEFT(TRIM(INDEX(СписокШкола!$D$3:$D$132,SMALL(IF(COLUMN()-1=СписокШкола!$C$3:$C$132,ROW($D$3:$D$132)-2),ROW(K8)))),SEARCH("#",SUBSTITUTE(TRIM(INDEX(СписокШкола!$D$3:$D$132,SMALL(IF(COLUMN()-1=СписокШкола!$C$3:$C$132,ROW($D$3:$D$132)-2),ROW(K8))))&" "," ","#",2))-1),"") -> Ягяева Лиля
A12: 9 | B12: =IFERROR(LEFT(TRIM(INDEX(СписокШкола!$D$3:$D$132,SMALL(IF(COLUMN()-1=СписокШкола!$C$3:$C$132,ROW($D$3:$D$132)-2),ROW(A9)))),SEARCH("#",SUBSTITUTE(TRIM(INDEX(СписокШкола!$D$3:$D$132,SMALL(IF(COLUMN()-1=СписокШкола!$C$3:$C$132,ROW($D$3:$D$132)-2),ROW(A9))))&" "," ","#",2))-1),"") ->  | C12: =IFERROR(LEFT(TRIM(INDEX(СписокШкола!$D$3:$D$132,SMALL(IF(COLUMN()-1=СписокШкола!$C$3:$C$132,ROW($D$3:$D$132)-2),ROW(B9)))),SEARCH("#",SUBSTITUTE(TRIM(INDEX(СписокШкола!$D$3:$D$132,SMALL(IF(COLUMN()-1=СписокШкола!$C$3:$C$132,ROW($D$3:$D$132)-2),ROW(B9))))&" "," ","#",2))-1),"") -> Перминова Светлана | D12: =IFERROR(LEFT(TRIM(INDEX(СписокШкола!$D$3:$D$132,SMALL(IF(COLUMN()-1=СписокШкола!$C$3:$C$132,ROW($D$3:$D$132)-2),ROW(C9)))),SEARCH("#",SUBSTITUTE(TRIM(INDEX(СписокШкола!$D$3:$D$132,SMALL(IF(COLUMN()-1=СписокШкола!$C$3:$C$132,ROW($D$3:$D$132)-2),ROW(C9))))&" "," ","#",2))-1),"") -> Стрельцова Анастасия | E12: =IFERROR(LEFT(TRIM(INDEX(СписокШкола!$D$3:$D$132,SMALL(IF(COLUMN()-1=СписокШкола!$C$3:$C$132,ROW($D$3:$D$132)-2),ROW(D9)))),SEARCH("#",SUBSTITUTE(TRIM(INDEX(СписокШкола!$D$3:$D$132,SMALL(IF(COLUMN()-1=СписокШкола!$C$3:$C$132,ROW($D$3:$D$132)-2),ROW(D9))))&" "," ","#",2))-1),"") ->  | F12: =IFERROR(LEFT(TRIM(INDEX(СписокШкола!$D$3:$D$132,SMALL(IF(COLUMN()-1=СписокШкола!$C$3:$C$132,ROW($D$3:$D$132)-2),ROW(E9)))),SEARCH("#",SUBSTITUTE(TRIM(INDEX(СписокШкола!$D$3:$D$132,SMALL(IF(COLUMN()-1=СписокШкола!$C$3:$C$132,ROW($D$3:$D$132)-2),ROW(E9))))&" "," ","#",2))-1),"") -> Шаримов Милан | G12: =IFERROR(LEFT(TRIM(INDEX(СписокШкола!$D$3:$D$132,SMALL(IF(COLUMN()-1=СписокШкола!$C$3:$C$132,ROW($D$3:$D$132)-2),ROW(F9)))),SEARCH("#",SUBSTITUTE(TRIM(INDEX(СписокШкола!$D$3:$D$132,SMALL(IF(COLUMN()-1=СписокШкола!$C$3:$C$132,ROW($D$3:$D$132)-2),ROW(F9))))&" "," ","#",2))-1),"") -> Пешкова Ульяна | H12: =IFERROR(LEFT(TRIM(INDEX(СписокШкола!$D$3:$D$132,SMALL(IF(COLUMN()-1=СписокШкола!$C$3:$C$132,ROW($D$3:$D$132)-2),ROW(G9)))),SEARCH("#",SUBSTITUTE(TRIM(INDEX(СписокШкола!$D$3:$D$132,SMALL(IF(COLUMN()-1=СписокШкола!$C$3:$C$132,ROW($D$3:$D$132)-2),ROW(G9))))&" "," ","#",2))-1),"") ->  | I12: =IFERROR(LEFT(TRIM(INDEX(СписокШкола!$D$3:$D$132,SMALL(IF(COLUMN()-1=СписокШкола!$C$3:$C$132,ROW($D$3:$D$132)-2),ROW(H9)))),SEARCH("#",SUBSTITUTE(TRIM(INDEX(СписокШкола!$D$3:$D$132,SMALL(IF(COLUMN()-1=СписокШкола!$C$3:$C$132,ROW($D$3:$D$132)-2),ROW(H9))))&" "," ","#",2))-1),"") ->  | J12: =IFERROR(LEFT(TRIM(INDEX(СписокШкола!$D$3:$D$132,SMALL(IF(COLUMN()-1=СписокШкола!$C$3:$C$132,ROW($D$3:$D$132)-2),ROW(I9)))),SEARCH("#",SUBSTITUTE(TRIM(INDEX(СписокШкола!$D$3:$D$132,SMALL(IF(COLUMN()-1=СписокШкола!$C$3:$C$132,ROW($D$3:$D$132)-2),ROW(I9))))&" "," ","#",2))-1),"") -> Тельнов Сергей | K12: =IFERROR(LEFT(TRIM(INDEX(СписокШкола!$D$3:$D$132,SMALL(IF(COLUMN()-1=СписокШкола!$C$3:$C$132,ROW($D$3:$D$132)-2),ROW(J9)))),SEARCH("#",SUBSTITUTE(TRIM(INDEX(СписокШкола!$D$3:$D$132,SMALL(IF(COLUMN()-1=СписокШкола!$C$3:$C$132,ROW($D$3:$D$132)-2),ROW(J9))))&" "," ","#",2))-1),"") ->  | L12: =IFERROR(LEFT(TRIM(INDEX(СписокШкола!$D$3:$D$132,SMALL(IF(COLUMN()-1=СписокШкола!$C$3:$C$132,ROW($D$3:$D$132)-2),ROW(K9)))),SEARCH("#",SUBSTITUTE(TRIM(INDEX(СписокШкола!$D$3:$D$132,SMALL(IF(COLUMN()-1=СписокШкола!$C$3:$C$132,ROW($D$3:$D$132)-2),ROW(K9))))&" "," ","#",2))-1),"") -> 
A13: 10 | B13: =IFERROR(LEFT(TRIM(INDEX(СписокШкола!$D$3:$D$132,SMALL(IF(COLUMN()-1=СписокШкола!$C$3:$C$132,ROW($D$3:$D$132)-2),ROW(A10)))),SEARCH("#",SUBSTITUTE(TRIM(INDEX(СписокШкола!$D$3:$D$132,SMALL(IF(COLUMN()-1=СписокШкола!$C$3:$C$132,ROW($D$3:$D$132)-2),ROW(A10))))&" "," ","#",2))-1),"") ->  | C13: =IFERROR(LEFT(TRIM(INDEX(СписокШкола!$D$3:$D$132,SMALL(IF(COLUMN()-1=СписокШкола!$C$3:$C$132,ROW($D$3:$D$132)-2),ROW(B10)))),SEARCH("#",SUBSTITUTE(TRIM(INDEX(СписокШкола!$D$3:$D$132,SMALL(IF(COLUMN()-1=СписокШкола!$C$3:$C$132,ROW($D$3:$D$132)-2),ROW(B10))))&" "," ","#",2))-1),"") -> Судзиловский Никита | D13: =IFERROR(LEFT(TRIM(INDEX(СписокШкола!$D$3:$D$132,SMALL(IF(COLUMN()-1=СписокШкола!$C$3:$C$132,ROW($D$3:$D$132)-2),ROW(C10)))),SEARCH("#",SUBSTITUTE(TRIM(INDEX(СписокШкола!$D$3:$D$132,SMALL(IF(COLUMN()-1=СписокШкола!$C$3:$C$132,ROW($D$3:$D$132)-2),ROW(C10))))&" "," ","#",2))-1),"") -> Тащеев Роман | E13: =IFERROR(LEFT(TRIM(INDEX(СписокШкола!$D$3:$D$132,SMALL(IF(COLUMN()-1=СписокШкола!$C$3:$C$132,ROW($D$3:$D$132)-2),ROW(D10)))),SEARCH("#",SUBSTITUTE(TRIM(INDEX(СписокШкола!$D$3:$D$132,SMALL(IF(COLUMN()-1=СписокШкола!$C$3:$C$132,ROW($D$3:$D$132)-2),ROW(D10))))&" "," ","#",2))-1),"") ->  | F13: =IFERROR(LEFT(TRIM(INDEX(СписокШкола!$D$3:$D$132,SMALL(IF(COLUMN()-1=СписокШкола!$C$3:$C$132,ROW($D$3:$D$132)-2),ROW(E10)))),SEARCH("#",SUBSTITUTE(TRIM(INDEX(СписокШкола!$D$3:$D$132,SMALL(IF(COLUMN()-1=СписокШкола!$C$3:$C$132,ROW($D$3:$D$132)-2),ROW(E10))))&" "," ","#",2))-1),"") -> Шишковская Екатерина | G13: =IFERROR(LEFT(TRIM(INDEX(СписокШкола!$D$3:$D$132,SMALL(IF(COLUMN()-1=СписокШкола!$C$3:$C$132,ROW($D$3:$D$132)-2),ROW(F10)))),SEARCH("#",SUBSTITUTE(TRIM(INDEX(СписокШкола!$D$3:$D$132,SMALL(IF(COLUMN()-1=СписокШкола!$C$3:$C$132,ROW($D$3:$D$132)-2),ROW(F10))))&" "," ","#",2))-1),"") -> Санников Александр | H13: =IFERROR(LEFT(TRIM(INDEX(СписокШкола!$D$3:$D$132,SMALL(IF(COLUMN()-1=СписокШкола!$C$3:$C$132,ROW($D$3:$D$132)-2),ROW(G10)))),SEARCH("#",SUBSTITUTE(TRIM(INDEX(СписокШкола!$D$3:$D$132,SMALL(IF(COLUMN()-1=СписокШкола!$C$3:$C$132,ROW($D$3:$D$132)-2),ROW(G10))))&" "," ","#",2))-1),"") ->  | I13: =IFERROR(LEFT(TRIM(INDEX(СписокШкола!$D$3:$D$132,SMALL(IF(COLUMN()-1=СписокШкола!$C$3:$C$132,ROW($D$3:$D$132)-2),ROW(H10)))),SEARCH("#",SUBSTITUTE(TRIM(INDEX(СписокШкола!$D$3:$D$132,SMALL(IF(COLUMN()-1=СписокШкола!$C$3:$C$132,ROW($D$3:$D$132)-2),ROW(H10))))&" "," ","#",2))-1),"") ->  | J13: =IFERROR(LEFT(TRIM(INDEX(СписокШкола!$D$3:$D$132,SMALL(IF(COLUMN()-1=СписокШкола!$C$3:$C$132,ROW($D$3:$D$132)-2),ROW(I10)))),SEARCH("#",SUBSTITUTE(TRIM(INDEX(СписокШкола!$D$3:$D$132,SMALL(IF(COLUMN()-1=СписокШкола!$C$3:$C$132,ROW($D$3:$D$132)-2),ROW(I10))))&" "," ","#",2))-1),"") -> Чабаненко Оксана | K13: =IFERROR(LEFT(TRIM(INDEX(СписокШкола!$D$3:$D$132,SMALL(IF(COLUMN()-1=СписокШкола!$C$3:$C$132,ROW($D$3:$D$132)-2),ROW(J10)))),SEARCH("#",SUBSTITUTE(TRIM(INDEX(СписокШкола!$D$3:$D$132,SMALL(IF(COLUMN()-1=СписокШкола!$C$3:$C$132,ROW($D$3:$D$132)-2),ROW(J10))))&" "," ","#",2))-1),"") ->  | L13: =IFERROR(LEFT(TRIM(INDEX(СписокШкола!$D$3:$D$132,SMALL(IF(COLUMN()-1=СписокШкола!$C$3:$C$132,ROW($D$3:$D$132)-2),ROW(K10)))),SEARCH("#",SUBSTITUTE(TRIM(INDEX(СписокШкола!$D$3:$D$132,SMALL(IF(COLUMN()-1=СписокШкола!$C$3:$C$132,ROW($D$3:$D$132)-2),ROW(K10))))&" "," ","#",2))-1),"") -> 
A14: 11 | B14: =IFERROR(LEFT(TRIM(INDEX(СписокШкола!$D$3:$D$132,SMALL(IF(COLUMN()-1=СписокШкола!$C$3:$C$132,ROW($D$3:$D$132)-2),ROW(A11)))),SEARCH("#",SUBSTITUTE(TRIM(INDEX(СписокШкола!$D$3:$D$132,SMALL(IF(COLUMN()-1=СписокШкола!$C$3:$C$132,ROW($D$3:$D$132)-2),ROW(A11))))&" "," ","#",2))-1),"") ->  | C14: =IFERROR(LEFT(TRIM(INDEX(СписокШкола!$D$3:$D$132,SMALL(IF(COLUMN()-1=СписокШкола!$C$3:$C$132,ROW($D$3:$D$132)-2),ROW(B11)))),SEARCH("#",SUBSTITUTE(TRIM(INDEX(СписокШкола!$D$3:$D$132,SMALL(IF(COLUMN()-1=СписокШкола!$C$3:$C$132,ROW($D$3:$D$132)-2),ROW(B11))))&" "," ","#",2))-1),"") -> Ушакова Виктория | D14: =IFERROR(LEFT(TRIM(INDEX(СписокШкола!$D$3:$D$132,SMALL(IF(COLUMN()-1=СписокШкола!$C$3:$C$132,ROW($D$3:$D$132)-2),ROW(C11)))),SEARCH("#",SUBSTITUTE(TRIM(INDEX(СписокШкола!$D$3:$D$132,SMALL(IF(COLUMN()-1=СписокШкола!$C$3:$C$132,ROW($D$3:$D$132)-2),ROW(C11))))&" "," ","#",2))-1),"") ->  | E14: =IFERROR(LEFT(TRIM(INDEX(СписокШкола!$D$3:$D$132,SMALL(IF(COLUMN()-1=СписокШкола!$C$3:$C$132,ROW($D$3:$D$132)-2),ROW(D11)))),SEARCH("#",SUBSTITUTE(TRIM(INDEX(СписокШкола!$D$3:$D$132,SMALL(IF(COLUMN()-1=СписокШкола!$C$3:$C$132,ROW($D$3:$D$132)-2),ROW(D11))))&" "," ","#",2))-1),"") ->  | F14: =IFERROR(LEFT(TRIM(INDEX(СписокШкола!$D$3:$D$132,SMALL(IF(COLUMN()-1=СписокШкола!$C$3:$C$132,ROW($D$3:$D$132)-2),ROW(E11)))),SEARCH("#",SUBSTITUTE(TRIM(INDEX(СписокШкола!$D$3:$D$132,SMALL(IF(COLUMN()-1=СписокШкола!$C$3:$C$132,ROW($D$3:$D$132)-2),ROW(E11))))&" "," ","#",2))-1),"") ->  | G14: =IFERROR(LEFT(TRIM(INDEX(СписокШкола!$D$3:$D$132,SMALL(IF(COLUMN()-1=СписокШкола!$C$3:$C$132,ROW($D$3:$D$132)-2),ROW(F11)))),SEARCH("#",SUBSTITUTE(TRIM(INDEX(СписокШкола!$D$3:$D$132,SMALL(IF(COLUMN()-1=СписокШкола!$C$3:$C$132,ROW($D$3:$D$132)-2),ROW(F11))))&" "," ","#",2))-1),"") -> Тельнов Николай | H14: =IFERROR(LEFT(TRIM(INDEX(СписокШкола!$D$3:$D$132,SMALL(IF(COLUMN()-1=СписокШкола!$C$3:$C$132,ROW($D$3:$D$132)-2),ROW(G11)))),SEARCH("#",SUBSTITUTE(TRIM(INDEX(СписокШкола!$D$3:$D$132,SMALL(IF(COLUMN()-1=СписокШкола!$C$3:$C$132,ROW($D$3:$D$132)-2),ROW(G11))))&" "," ","#",2))-1),"") ->  | I14: =IFERROR(LEFT(TRIM(INDEX(СписокШкола!$D$3:$D$132,SMALL(IF(COLUMN()-1=СписокШкола!$C$3:$C$132,ROW($D$3:$D$132)-2),ROW(H11)))),SEARCH("#",SUBSTITUTE(TRIM(INDEX(СписокШкола!$D$3:$D$132,SMALL(IF(COLUMN()-1=СписокШкола!$C$3:$C$132,ROW($D$3:$D$132)-2),ROW(H11))))&" "," ","#",2))-1),"") ->  | J14: =IFERROR(LEFT(TRIM(INDEX(СписокШкола!$D$3:$D$132,SMALL(IF(COLUMN()-1=СписокШкола!$C$3:$C$132,ROW($D$3:$D$132)-2),ROW(I11)))),SEARCH("#",SUBSTITUTE(TRIM(INDEX(СписокШкола!$D$3:$D$132,SMALL(IF(COLUMN()-1=СписокШкола!$C$3:$C$132,ROW($D$3:$D$132)-2),ROW(I11))))&" "," ","#",2))-1),"") -> Ягяев Александр | K14: =IFERROR(LEFT(TRIM(INDEX(СписокШкола!$D$3:$D$132,SMALL(IF(COLUMN()-1=СписокШкола!$C$3:$C$132,ROW($D$3:$D$132)-2),ROW(J11)))),SEARCH("#",SUBSTITUTE(TRIM(INDEX(СписокШкола!$D$3:$D$132,SMALL(IF(COLUMN()-1=СписокШкола!$C$3:$C$132,ROW($D$3:$D$132)-2),ROW(J11))))&" "," ","#",2))-1),"") ->  | L14: =IFERROR(LEFT(TRIM(INDEX(СписокШкола!$D$3:$D$132,SMALL(IF(COLUMN()-1=СписокШкола!$C$3:$C$132,ROW($D$3:$D$132)-2),ROW(K11)))),SEARCH("#",SUBSTITUTE(TRIM(INDEX(СписокШкола!$D$3:$D$132,SMALL(IF(COLUMN()-1=СписокШкола!$C$3:$C$132,ROW($D$3:$D$132)-2),ROW(K11))))&" "," ","#",2))-1),"") -> 
A15: 12 | B15: =IFERROR(LEFT(TRIM(INDEX(СписокШкола!$D$3:$D$132,SMALL(IF(COLUMN()-1=СписокШкола!$C$3:$C$132,ROW($D$3:$D$132)-2),ROW(A12)))),SEARCH("#",SUBSTITUTE(TRIM(INDEX(СписокШкола!$D$3:$D$132,SMALL(IF(COLUMN()-1=СписокШкола!$C$3:$C$132,ROW($D$3:$D$132)-2),ROW(A12))))&" "," ","#",2))-1),"") ->  | C15: =IFERROR(LEFT(TRIM(INDEX(СписокШкола!$D$3:$D$132,SMALL(IF(COLUMN()-1=СписокШкола!$C$3:$C$132,ROW($D$3:$D$132)-2),ROW(B12)))),SEARCH("#",SUBSTITUTE(TRIM(INDEX(СписокШкола!$D$3:$D$132,SMALL(IF(COLUMN()-1=СписокШкола!$C$3:$C$132,ROW($D$3:$D$132)-2),ROW(B12))))&" "," ","#",2))-1),"") -> Чабаненко Елизавета | D15: =IFERROR(LEFT(TRIM(INDEX(СписокШкола!$D$3:$D$132,SMALL(IF(COLUMN()-1=СписокШкола!$C$3:$C$132,ROW($D$3:$D$132)-2),ROW(C12)))),SEARCH("#",SUBSTITUTE(TRIM(INDEX(СписокШкола!$D$3:$D$132,SMALL(IF(COLUMN()-1=СписокШкола!$C$3:$C$132,ROW($D$3:$D$132)-2),ROW(C12))))&" "," ","#",2))-1),"") ->  | E15: =IFERROR(LEFT(TRIM(INDEX(СписокШкола!$D$3:$D$132,SMALL(IF(COLUMN()-1=СписокШкола!$C$3:$C$132,ROW($D$3:$D$132)-2),ROW(D12)))),SEARCH("#",SUBSTITUTE(TRIM(INDEX(СписокШкола!$D$3:$D$132,SMALL(IF(COLUMN()-1=СписокШкола!$C$3:$C$132,ROW($D$3:$D$132)-2),ROW(D12))))&" "," ","#",2))-1),"") ->  | F15: =IFERROR(LEFT(TRIM(INDEX(СписокШкола!$D$3:$D$132,SMALL(IF(COLUMN()-1=СписокШкола!$C$3:$C$132,ROW($D$3:$D$132)-2),ROW(E12)))),SEARCH("#",SUBSTITUTE(TRIM(INDEX(СписокШкола!$D$3:$D$132,SMALL(IF(COLUMN()-1=СписокШкола!$C$3:$C$132,ROW($D$3:$D$132)-2),ROW(E12))))&" "," ","#",2))-1),"") ->  | G15: =IFERROR(LEFT(TRIM(INDEX(СписокШкола!$D$3:$D$132,SMALL(IF(COLUMN()-1=СписокШкола!$C$3:$C$132,ROW($D$3:$D$132)-2),ROW(F12)))),SEARCH("#",SUBSTITUTE(TRIM(INDEX(СписокШкола!$D$3:$D$132,SMALL(IF(COLUMN()-1=СписокШкола!$C$3:$C$132,ROW($D$3:$D$132)-2),ROW(F12))))&" "," ","#",2))-1),"") -> Шмидт Иван | H15: =IFERROR(LEFT(TRIM(INDEX(СписокШкола!$D$3:$D$132,SMALL(IF(COLUMN()-1=СписокШкола!$C$3:$C$132,ROW($D$3:$D$132)-2),ROW(G12)))),SEARCH("#",SUBSTITUTE(TRIM(INDEX(СписокШкола!$D$3:$D$132,SMALL(IF(COLUMN()-1=СписокШкола!$C$3:$C$132,ROW($D$3:$D$132)-2),ROW(G12))))&" "," ","#",2))-1),"") ->  | I15: =IFERROR(LEFT(TRIM(INDEX(СписокШкола!$D$3:$D$132,SMALL(IF(COLUMN()-1=СписокШкола!$C$3:$C$132,ROW($D$3:$D$132)-2),ROW(H12)))),SEARCH("#",SUBSTITUTE(TRIM(INDEX(СписокШкола!$D$3:$D$132,SMALL(IF(COLUMN()-1=СписокШкола!$C$3:$C$132,ROW($D$3:$D$132)-2),ROW(H12))))&" "," ","#",2))-1),"") ->  | J15: =IFERROR(LEFT(TRIM(INDEX(СписокШкола!$D$3:$D$132,SMALL(IF(COLUMN()-1=СписокШкола!$C$3:$C$132,ROW($D$3:$D$132)-2),ROW(I12)))),SEARCH("#",SUBSTITUTE(TRIM(INDEX(СписокШкола!$D$3:$D$132,SMALL(IF(COLUMN()-1=СписокШкола!$C$3:$C$132,ROW($D$3:$D$132)-2),ROW(I12))))&" "," ","#",2))-1),"") ->  | K15: =IFERROR(LEFT(TRIM(INDEX(СписокШкола!$D$3:$D$132,SMALL(IF(COLUMN()-1=СписокШкола!$C$3:$C$132,ROW($D$3:$D$132)-2),ROW(J12)))),SEARCH("#",SUBSTITUTE(TRIM(INDEX(СписокШкола!$D$3:$D$132,SMALL(IF(COLUMN()-1=СписокШкола!$C$3:$C$132,ROW($D$3:$D$132)-2),ROW(J12))))&" "," ","#",2))-1),"") ->  | L15: =IFERROR(LEFT(TRIM(INDEX(СписокШкола!$D$3:$D$132,SMALL(IF(COLUMN()-1=СписокШкола!$C$3:$C$132,ROW($D$3:$D$132)-2),ROW(K12)))),SEARCH("#",SUBSTITUTE(TRIM(INDEX(СписокШкола!$D$3:$D$132,SMALL(IF(COLUMN()-1=СписокШкола!$C$3:$C$132,ROW($D$3:$D$132)-2),ROW(K12))))&" "," ","#",2))-1),"") -> 
A16: 13 | B16: =IFERROR(LEFT(TRIM(INDEX(СписокШкола!$D$3:$D$132,SMALL(IF(COLUMN()-1=СписокШкола!$C$3:$C$132,ROW($D$3:$D$132)-2),ROW(A13)))),SEARCH("#",SUBSTITUTE(TRIM(INDEX(СписокШкола!$D$3:$D$132,SMALL(IF(COLUMN()-1=СписокШкола!$C$3:$C$132,ROW($D$3:$D$132)-2),ROW(A13))))&" "," ","#",2))-1),"") ->  | C16: =IFERROR(LEFT(TRIM(INDEX(СписокШкола!$D$3:$D$132,SMALL(IF(COLUMN()-1=СписокШкола!$C$3:$C$132,ROW($D$3:$D$132)-2),ROW(B13)))),SEARCH("#",SUBSTITUTE(TRIM(INDEX(СписокШкола!$D$3:$D$132,SMALL(IF(COLUMN()-1=СписокШкола!$C$3:$C$132,ROW($D$3:$D$132)-2),ROW(B13))))&" "," ","#",2))-1),"") -> Ягяева Лера | D16: =IFERROR(LEFT(TRIM(INDEX(СписокШкола!$D$3:$D$132,SMALL(IF(COLUMN()-1=СписокШкола!$C$3:$C$132,ROW($D$3:$D$132)-2),ROW(C13)))),SEARCH("#",SUBSTITUTE(TRIM(INDEX(СписокШкола!$D$3:$D$132,SMALL(IF(COLUMN()-1=СписокШкола!$C$3:$C$132,ROW($D$3:$D$132)-2),ROW(C13))))&" "," ","#",2))-1),"") ->  | E16: =IFERROR(LEFT(TRIM(INDEX(СписокШкола!$D$3:$D$132,SMALL(IF(COLUMN()-1=СписокШкола!$C$3:$C$132,ROW($D$3:$D$132)-2),ROW(D13)))),SEARCH("#",SUBSTITUTE(TRIM(INDEX(СписокШкола!$D$3:$D$132,SMALL(IF(COLUMN()-1=СписокШкола!$C$3:$C$132,ROW($D$3:$D$132)-2),ROW(D13))))&" "," ","#",2))-1),"") ->  | F16: =IFERROR(LEFT(TRIM(INDEX(СписокШкола!$D$3:$D$132,SMALL(IF(COLUMN()-1=СписокШкола!$C$3:$C$132,ROW($D$3:$D$132)-2),ROW(E13)))),SEARCH("#",SUBSTITUTE(TRIM(INDEX(СписокШкола!$D$3:$D$132,SMALL(IF(COLUMN()-1=СписокШкола!$C$3:$C$132,ROW($D$3:$D$132)-2),ROW(E13))))&" "," ","#",2))-1),"") ->  | G16: =IFERROR(LEFT(TRIM(INDEX(СписокШкола!$D$3:$D$132,SMALL(IF(COLUMN()-1=СписокШкола!$C$3:$C$132,ROW($D$3:$D$132)-2),ROW(F13)))),SEARCH("#",SUBSTITUTE(TRIM(INDEX(СписокШкола!$D$3:$D$132,SMALL(IF(COLUMN()-1=СписокШкола!$C$3:$C$132,ROW($D$3:$D$132)-2),ROW(F13))))&" "," ","#",2))-1),"") -> Ягяев Виктор | H16: =IFERROR(LEFT(TRIM(INDEX(СписокШкола!$D$3:$D$132,SMALL(IF(COLUMN()-1=СписокШкола!$C$3:$C$132,ROW($D$3:$D$132)-2),ROW(G13)))),SEARCH("#",SUBSTITUTE(TRIM(INDEX(СписокШкола!$D$3:$D$132,SMALL(IF(COLUMN()-1=СписокШкола!$C$3:$C$132,ROW($D$3:$D$132)-2),ROW(G13))))&" "," ","#",2))-1),"") ->  | I16: =IFERROR(LEFT(TRIM(INDEX(СписокШкола!$D$3:$D$132,SMALL(IF(COLUMN()-1=СписокШкола!$C$3:$C$132,ROW($D$3:$D$132)-2),ROW(H13)))),SEARCH("#",SUBSTITUTE(TRIM(INDEX(СписокШкола!$D$3:$D$132,SMALL(IF(COLUMN()-1=СписокШкола!$C$3:$C$132,ROW($D$3:$D$132)-2),ROW(H13))))&" "," ","#",2))-1),"") ->  | J16: =IFERROR(LEFT(TRIM(INDEX(СписокШкола!$D$3:$D$132,SMALL(IF(COLUMN()-1=СписокШкола!$C$3:$C$132,ROW($D$3:$D$132)-2),ROW(I13)))),SEARCH("#",SUBSTITUTE(TRIM(INDEX(СписокШкола!$D$3:$D$132,SMALL(IF(COLUMN()-1=СписокШкола!$C$3:$C$132,ROW($D$3:$D$132)-2),ROW(I13))))&" "," ","#",2))-1),"") ->  | K16: =IFERROR(LEFT(TRIM(INDEX(СписокШкола!$D$3:$D$132,SMALL(IF(COLUMN()-1=СписокШкола!$C$3:$C$132,ROW($D$3:$D$132)-2),ROW(J13)))),SEARCH("#",SUBSTITUTE(TRIM(INDEX(СписокШкола!$D$3:$D$132,SMALL(IF(COLUMN()-1=СписокШкола!$C$3:$C$132,ROW($D$3:$D$132)-2),ROW(J13))))&" "," ","#",2))-1),"") ->  | L16: =IFERROR(LEFT(TRIM(INDEX(СписокШкола!$D$3:$D$132,SMALL(IF(COLUMN()-1=СписокШкола!$C$3:$C$132,ROW($D$3:$D$132)-2),ROW(K13)))),SEARCH("#",SUBSTITUTE(TRIM(INDEX(СписокШкола!$D$3:$D$132,SMALL(IF(COLUMN()-1=СписокШкола!$C$3:$C$132,ROW($D$3:$D$132)-2),ROW(K13))))&" "," ","#",2))-1),"") -> 
A17: 14 | B17: =IFERROR(LEFT(TRIM(INDEX(СписокШкола!$D$3:$D$132,SMALL(IF(COLUMN()-1=СписокШкола!$C$3:$C$132,ROW($D$3:$D$132)-2),ROW(A14)))),SEARCH("#",SUBSTITUTE(TRIM(INDEX(СписокШкола!$D$3:$D$132,SMALL(IF(COLUMN()-1=СписокШкола!$C$3:$C$132,ROW($D$3:$D$132)-2),ROW(A14))))&" "," ","#",2))-1),"") ->  | C17: =IFERROR(LEFT(TRIM(INDEX(СписокШкола!$D$3:$D$132,SMALL(IF(COLUMN()-1=СписокШкола!$C$3:$C$132,ROW($D$3:$D$132)-2),ROW(B14)))),SEARCH("#",SUBSTITUTE(TRIM(INDEX(СписокШкола!$D$3:$D$132,SMALL(IF(COLUMN()-1=СписокШкола!$C$3:$C$132,ROW($D$3:$D$132)-2),ROW(B14))))&" "," ","#",2))-1),"") ->  | D17: =IFERROR(LEFT(TRIM(INDEX(СписокШкола!$D$3:$D$132,SMALL(IF(COLUMN()-1=СписокШкола!$C$3:$C$132,ROW($D$3:$D$132)-2),ROW(C14)))),SEARCH("#",SUBSTITUTE(TRIM(INDEX(СписокШкола!$D$3:$D$132,SMALL(IF(COLUMN()-1=СписокШкола!$C$3:$C$132,ROW($D$3:$D$132)-2),ROW(C14))))&" "," ","#",2))-1),"") ->  | E17: =IFERROR(LEFT(TRIM(INDEX(СписокШкола!$D$3:$D$132,SMALL(IF(COLUMN()-1=СписокШкола!$C$3:$C$132,ROW($D$3:$D$132)-2),ROW(D14)))),SEARCH("#",SUBSTITUTE(TRIM(INDEX(СписокШкола!$D$3:$D$132,SMALL(IF(COLUMN()-1=СписокШкола!$C$3:$C$132,ROW($D$3:$D$132)-2),ROW(D14))))&" "," ","#",2))-1),"") ->  | F17: =IFERROR(LEFT(TRIM(INDEX(СписокШкола!$D$3:$D$132,SMALL(IF(COLUMN()-1=СписокШкола!$C$3:$C$132,ROW($D$3:$D$132)-2),ROW(E14)))),SEARCH("#",SUBSTITUTE(TRIM(INDEX(СписокШкола!$D$3:$D$132,SMALL(IF(COLUMN()-1=СписокШкола!$C$3:$C$132,ROW($D$3:$D$132)-2),ROW(E14))))&" "," ","#",2))-1),"") ->  | G17: =IFERROR(LEFT(TRIM(INDEX(СписокШкола!$D$3:$D$132,SMALL(IF(COLUMN()-1=СписокШкола!$C$3:$C$132,ROW($D$3:$D$132)-2),ROW(F14)))),SEARCH("#",SUBSTITUTE(TRIM(INDEX(СписокШкола!$D$3:$D$132,SMALL(IF(COLUMN()-1=СписокШкола!$C$3:$C$132,ROW($D$3:$D$132)-2),ROW(F14))))&" "," ","#",2))-1),"") -> Ягяева Регина | H17: =IFERROR(LEFT(TRIM(INDEX(СписокШкола!$D$3:$D$132,SMALL(IF(COLUMN()-1=СписокШкола!$C$3:$C$132,ROW($D$3:$D$132)-2),ROW(G14)))),SEARCH("#",SUBSTITUTE(TRIM(INDEX(СписокШкола!$D$3:$D$132,SMALL(IF(COLUMN()-1=СписокШкола!$C$3:$C$132,ROW($D$3:$D$132)-2),ROW(G14))))&" "," ","#",2))-1),"") ->  | I17: =IFERROR(LEFT(TRIM(INDEX(СписокШкола!$D$3:$D$132,SMALL(IF(COLUMN()-1=СписокШкола!$C$3:$C$132,ROW($D$3:$D$132)-2),ROW(H14)))),SEARCH("#",SUBSTITUTE(TRIM(INDEX(СписокШкола!$D$3:$D$132,SMALL(IF(COLUMN()-1=СписокШкола!$C$3:$C$132,ROW($D$3:$D$132)-2),ROW(H14))))&" "," ","#",2))-1),"") ->  | J17: =IFERROR(LEFT(TRIM(INDEX(СписокШкола!$D$3:$D$132,SMALL(IF(COLUMN()-1=СписокШкола!$C$3:$C$132,ROW($D$3:$D$132)-2),ROW(I14)))),SEARCH("#",SUBSTITUTE(TRIM(INDEX(СписокШкола!$D$3:$D$132,SMALL(IF(COLUMN()-1=СписокШкола!$C$3:$C$132,ROW($D$3:$D$132)-2),ROW(I14))))&" "," ","#",2))-1),"") ->  | K17: =IFERROR(LEFT(TRIM(INDEX(СписокШкола!$D$3:$D$132,SMALL(IF(COLUMN()-1=СписокШкола!$C$3:$C$132,ROW($D$3:$D$132)-2),ROW(J14)))),SEARCH("#",SUBSTITUTE(TRIM(INDEX(СписокШкола!$D$3:$D$132,SMALL(IF(COLUMN()-1=СписокШкола!$C$3:$C$132,ROW($D$3:$D$132)-2),ROW(J14))))&" "," ","#",2))-1),"") ->  | L17: =IFERROR(LEFT(TRIM(INDEX(СписокШкола!$D$3:$D$132,SMALL(IF(COLUMN()-1=СписокШкола!$C$3:$C$132,ROW($D$3:$D$132)-2),ROW(K14)))),SEARCH("#",SUBSTITUTE(TRIM(INDEX(СписокШкола!$D$3:$D$132,SMALL(IF(COLUMN()-1=СписокШкола!$C$3:$C$132,ROW($D$3:$D$132)-2),ROW(K14))))&" "," ","#",2))-1),"") -> 
A18: 15 | B18: =IFERROR(LEFT(TRIM(INDEX(СписокШкола!$D$3:$D$132,SMALL(IF(COLUMN()-1=СписокШкола!$C$3:$C$132,ROW($D$3:$D$132)-2),ROW(A15)))),SEARCH("#",SUBSTITUTE(TRIM(INDEX(СписокШкола!$D$3:$D$132,SMALL(IF(COLUMN()-1=СписокШкола!$C$3:$C$132,ROW($D$3:$D$132)-2),ROW(A15))))&" "," ","#",2))-1),"") ->  | C18: =IFERROR(LEFT(TRIM(INDEX(СписокШкола!$D$3:$D$132,SMALL(IF(COLUMN()-1=СписокШкола!$C$3:$C$132,ROW($D$3:$D$132)-2),ROW(B15)))),SEARCH("#",SUBSTITUTE(TRIM(INDEX(СписокШкола!$D$3:$D$132,SMALL(IF(COLUMN()-1=СписокШкола!$C$3:$C$132,ROW($D$3:$D$132)-2),ROW(B15))))&" "," ","#",2))-1),"") ->  | D18: =IFERROR(LEFT(TRIM(INDEX(СписокШкола!$D$3:$D$132,SMALL(IF(COLUMN()-1=СписокШкола!$C$3:$C$132,ROW($D$3:$D$132)-2),ROW(C15)))),SEARCH("#",SUBSTITUTE(TRIM(INDEX(СписокШкола!$D$3:$D$132,SMALL(IF(COLUMN()-1=СписокШкола!$C$3:$C$132,ROW($D$3:$D$132)-2),ROW(C15))))&" "," ","#",2))-1),"") ->  | E18: =IFERROR(LEFT(TRIM(INDEX(СписокШкола!$D$3:$D$132,SMALL(IF(COLUMN()-1=СписокШкола!$C$3:$C$132,ROW($D$3:$D$132)-2),ROW(D15)))),SEARCH("#",SUBSTITUTE(TRIM(INDEX(СписокШкола!$D$3:$D$132,SMALL(IF(COLUMN()-1=СписокШкола!$C$3:$C$132,ROW($D$3:$D$132)-2),ROW(D15))))&" "," ","#",2))-1),"") ->  | F18: =IFERROR(LEFT(TRIM(INDEX(СписокШкола!$D$3:$D$132,SMALL(IF(COLUMN()-1=СписокШкола!$C$3:$C$132,ROW($D$3:$D$132)-2),ROW(E15)))),SEARCH("#",SUBSTITUTE(TRIM(INDEX(СписокШкола!$D$3:$D$132,SMALL(IF(COLUMN()-1=СписокШкола!$C$3:$C$132,ROW($D$3:$D$132)-2),ROW(E15))))&" "," ","#",2))-1),"") ->  | G18: =IFERROR(LEFT(TRIM(INDEX(СписокШкола!$D$3:$D$132,SMALL(IF(COLUMN()-1=СписокШкола!$C$3:$C$132,ROW($D$3:$D$132)-2),ROW(F15)))),SEARCH("#",SUBSTITUTE(TRIM(INDEX(СписокШкола!$D$3:$D$132,SMALL(IF(COLUMN()-1=СписокШкола!$C$3:$C$132,ROW($D$3:$D$132)-2),ROW(F15))))&" "," ","#",2))-1),"") ->  | H18: =IFERROR(LEFT(TRIM(INDEX(СписокШкола!$D$3:$D$132,SMALL(IF(COLUMN()-1=СписокШкола!$C$3:$C$132,ROW($D$3:$D$132)-2),ROW(G15)))),SEARCH("#",SUBSTITUTE(TRIM(INDEX(СписокШкола!$D$3:$D$132,SMALL(IF(COLUMN()-1=СписокШкола!$C$3:$C$132,ROW($D$3:$D$132)-2),ROW(G15))))&" "," ","#",2))-1),"") ->  | I18: =IFERROR(LEFT(TRIM(INDEX(СписокШкола!$D$3:$D$132,SMALL(IF(COLUMN()-1=СписокШкола!$C$3:$C$132,ROW($D$3:$D$132)-2),ROW(H15)))),SEARCH("#",SUBSTITUTE(TRIM(INDEX(СписокШкола!$D$3:$D$132,SMALL(IF(COLUMN()-1=СписокШкола!$C$3:$C$132,ROW($D$3:$D$132)-2),ROW(H15))))&" "," ","#",2))-1),"") ->  | J18: =IFERROR(LEFT(TRIM(INDEX(СписокШкола!$D$3:$D$132,SMALL(IF(COLUMN()-1=СписокШкола!$C$3:$C$132,ROW($D$3:$D$132)-2),ROW(I15)))),SEARCH("#",SUBSTITUTE(TRIM(INDEX(СписокШкола!$D$3:$D$132,SMALL(IF(COLUMN()-1=СписокШкола!$C$3:$C$132,ROW($D$3:$D$132)-2),ROW(I15))))&" "," ","#",2))-1),"") ->  | K18: =IFERROR(LEFT(TRIM(INDEX(СписокШкола!$D$3:$D$132,SMALL(IF(COLUMN()-1=СписокШкола!$C$3:$C$132,ROW($D$3:$D$132)-2),ROW(J15)))),SEARCH("#",SUBSTITUTE(TRIM(INDEX(СписокШкола!$D$3:$D$132,SMALL(IF(COLUMN()-1=СписокШкола!$C$3:$C$132,ROW($D$3:$D$132)-2),ROW(J15))))&" "," ","#",2))-1),"") ->  | L18: =IFERROR(LEFT(TRIM(INDEX(СписокШкола!$D$3:$D$132,SMALL(IF(COLUMN()-1=СписокШкола!$C$3:$C$132,ROW($D$3:$D$132)-2),ROW(K15)))),SEARCH("#",SUBSTITUTE(TRIM(INDEX(СписокШкола!$D$3:$D$132,SMALL(IF(COLUMN()-1=СписокШкола!$C$3:$C$132,ROW($D$3:$D$132)-2),ROW(K15))))&" "," ","#",2))-1),"") -> 
A19: 16 | B19: =IFERROR(LEFT(TRIM(INDEX(СписокШкола!$D$3:$D$132,SMALL(IF(COLUMN()-1=СписокШкола!$C$3:$C$132,ROW($D$3:$D$132)-2),ROW(A16)))),SEARCH("#",SUBSTITUTE(TRIM(INDEX(СписокШкола!$D$3:$D$132,SMALL(IF(COLUMN()-1=СписокШкола!$C$3:$C$132,ROW($D$3:$D$132)-2),ROW(A16))))&" "," ","#",2))-1),"") ->  | C19: =IFERROR(LEFT(TRIM(INDEX(СписокШкола!$D$3:$D$132,SMALL(IF(COLUMN()-1=СписокШкола!$C$3:$C$132,ROW($D$3:$D$132)-2),ROW(B16)))),SEARCH("#",SUBSTITUTE(TRIM(INDEX(СписокШкола!$D$3:$D$132,SMALL(IF(COLUMN()-1=СписокШкола!$C$3:$C$132,ROW($D$3:$D$132)-2),ROW(B16))))&" "," ","#",2))-1),"") ->  | D19: =IFERROR(LEFT(TRIM(INDEX(СписокШкола!$D$3:$D$132,SMALL(IF(COLUMN()-1=СписокШкола!$C$3:$C$132,ROW($D$3:$D$132)-2),ROW(C16)))),SEARCH("#",SUBSTITUTE(TRIM(INDEX(СписокШкола!$D$3:$D$132,SMALL(IF(COLUMN()-1=СписокШкола!$C$3:$C$132,ROW($D$3:$D$132)-2),ROW(C16))))&" "," ","#",2))-1),"") ->  | E19: =IFERROR(LEFT(TRIM(INDEX(СписокШкола!$D$3:$D$132,SMALL(IF(COLUMN()-1=СписокШкола!$C$3:$C$132,ROW($D$3:$D$132)-2),ROW(D16)))),SEARCH("#",SUBSTITUTE(TRIM(INDEX(СписокШкола!$D$3:$D$132,SMALL(IF(COLUMN()-1=СписокШкола!$C$3:$C$132,ROW($D$3:$D$132)-2),ROW(D16))))&" "," ","#",2))-1),"") ->  | F19: =IFERROR(LEFT(TRIM(INDEX(СписокШкола!$D$3:$D$132,SMALL(IF(COLUMN()-1=СписокШкола!$C$3:$C$132,ROW($D$3:$D$132)-2),ROW(E16)))),SEARCH("#",SUBSTITUTE(TRIM(INDEX(СписокШкола!$D$3:$D$132,SMALL(IF(COLUMN()-1=СписокШкола!$C$3:$C$132,ROW($D$3:$D$132)-2),ROW(E16))))&" "," ","#",2))-1),"") ->  | G19: =IFERROR(LEFT(TRIM(INDEX(СписокШкола!$D$3:$D$132,SMALL(IF(COLUMN()-1=СписокШкола!$C$3:$C$132,ROW($D$3:$D$132)-2),ROW(F16)))),SEARCH("#",SUBSTITUTE(TRIM(INDEX(СписокШкола!$D$3:$D$132,SMALL(IF(COLUMN()-1=СписокШкола!$C$3:$C$132,ROW($D$3:$D$132)-2),ROW(F16))))&" "," ","#",2))-1),"") ->  | H19: =IFERROR(LEFT(TRIM(INDEX(СписокШкола!$D$3:$D$132,SMALL(IF(COLUMN()-1=СписокШкола!$C$3:$C$132,ROW($D$3:$D$132)-2),ROW(G16)))),SEARCH("#",SUBSTITUTE(TRIM(INDEX(СписокШкола!$D$3:$D$132,SMALL(IF(COLUMN()-1=СписокШкола!$C$3:$C$132,ROW($D$3:$D$132)-2),ROW(G16))))&" "," ","#",2))-1),"") ->  | I19: =IFERROR(LEFT(TRIM(INDEX(СписокШкола!$D$3:$D$132,SMALL(IF(COLUMN()-1=СписокШкола!$C$3:$C$132,ROW($D$3:$D$132)-2),ROW(H16)))),SEARCH("#",SUBSTITUTE(TRIM(INDEX(СписокШкола!$D$3:$D$132,SMALL(IF(COLUMN()-1=СписокШкола!$C$3:$C$132,ROW($D$3:$D$132)-2),ROW(H16))))&" "," ","#",2))-1),"") ->  | J19: =IFERROR(LEFT(TRIM(INDEX(СписокШкола!$D$3:$D$132,SMALL(IF(COLUMN()-1=СписокШкола!$C$3:$C$132,ROW($D$3:$D$132)-2),ROW(I16)))),SEARCH("#",SUBSTITUTE(TRIM(INDEX(СписокШкола!$D$3:$D$132,SMALL(IF(COLUMN()-1=СписокШкола!$C$3:$C$132,ROW($D$3:$D$132)-2),ROW(I16))))&" "," ","#",2))-1),"") ->  | K19: =IFERROR(LEFT(TRIM(INDEX(СписокШкола!$D$3:$D$132,SMALL(IF(COLUMN()-1=СписокШкола!$C$3:$C$132,ROW($D$3:$D$132)-2),ROW(J16)))),SEARCH("#",SUBSTITUTE(TRIM(INDEX(СписокШкола!$D$3:$D$132,SMALL(IF(COLUMN()-1=СписокШкола!$C$3:$C$132,ROW($D$3:$D$132)-2),ROW(J16))))&" "," ","#",2))-1),"") ->  | L19: =IFERROR(LEFT(TRIM(INDEX(СписокШкола!$D$3:$D$132,SMALL(IF(COLUMN()-1=СписокШкола!$C$3:$C$132,ROW($D$3:$D$132)-2),ROW(K16)))),SEARCH("#",SUBSTITUTE(TRIM(INDEX(СписокШкола!$D$3:$D$132,SMALL(IF(COLUMN()-1=СписокШкола!$C$3:$C$132,ROW($D$3:$D$132)-2),ROW(K16))))&" "," ","#",2))-1),"") -> 
A20: 17 | B20: =IFERROR(LEFT(TRIM(INDEX(СписокШкола!$D$3:$D$132,SMALL(IF(COLUMN()-1=СписокШкола!$C$3:$C$132,ROW($D$3:$D$132)-2),ROW(A17)))),SEARCH("#",SUBSTITUTE(TRIM(INDEX(СписокШкола!$D$3:$D$132,SMALL(IF(COLUMN()-1=СписокШкола!$C$3:$C$132,ROW($D$3:$D$132)-2),ROW(A17))))&" "," ","#",2))-1),"") ->  | C20: =IFERROR(LEFT(TRIM(INDEX(СписокШкола!$D$3:$D$132,SMALL(IF(COLUMN()-1=СписокШкола!$C$3:$C$132,ROW($D$3:$D$132)-2),ROW(B17)))),SEARCH("#",SUBSTITUTE(TRIM(INDEX(СписокШкола!$D$3:$D$132,SMALL(IF(COLUMN()-1=СписокШкола!$C$3:$C$132,ROW($D$3:$D$132)-2),ROW(B17))))&" "," ","#",2))-1),"") ->  | D20: =IFERROR(LEFT(TRIM(INDEX(СписокШкола!$D$3:$D$132,SMALL(IF(COLUMN()-1=СписокШкола!$C$3:$C$132,ROW($D$3:$D$132)-2),ROW(C17)))),SEARCH("#",SUBSTITUTE(TRIM(INDEX(СписокШкола!$D$3:$D$132,SMALL(IF(COLUMN()-1=СписокШкола!$C$3:$C$132,ROW($D$3:$D$132)-2),ROW(C17))))&" "," ","#",2))-1),"") ->  | E20: =IFERROR(LEFT(TRIM(INDEX(СписокШкола!$D$3:$D$132,SMALL(IF(COLUMN()-1=СписокШкола!$C$3:$C$132,ROW($D$3:$D$132)-2),ROW(D17)))),SEARCH("#",SUBSTITUTE(TRIM(INDEX(СписокШкола!$D$3:$D$132,SMALL(IF(COLUMN()-1=СписокШкола!$C$3:$C$132,ROW($D$3:$D$132)-2),ROW(D17))))&" "," ","#",2))-1),"") ->  | F20: =IFERROR(LEFT(TRIM(INDEX(СписокШкола!$D$3:$D$132,SMALL(IF(COLUMN()-1=СписокШкола!$C$3:$C$132,ROW($D$3:$D$132)-2),ROW(E17)))),SEARCH("#",SUBSTITUTE(TRIM(INDEX(СписокШкола!$D$3:$D$132,SMALL(IF(COLUMN()-1=СписокШкола!$C$3:$C$132,ROW($D$3:$D$132)-2),ROW(E17))))&" "," ","#",2))-1),"") ->  | G20: =IFERROR(LEFT(TRIM(INDEX(СписокШкола!$D$3:$D$132,SMALL(IF(COLUMN()-1=СписокШкола!$C$3:$C$132,ROW($D$3:$D$132)-2),ROW(F17)))),SEARCH("#",SUBSTITUTE(TRIM(INDEX(СписокШкола!$D$3:$D$132,SMALL(IF(COLUMN()-1=СписокШкола!$C$3:$C$132,ROW($D$3:$D$132)-2),ROW(F17))))&" "," ","#",2))-1),"") ->  | H20: =IFERROR(LEFT(TRIM(INDEX(СписокШкола!$D$3:$D$132,SMALL(IF(COLUMN()-1=СписокШкола!$C$3:$C$132,ROW($D$3:$D$132)-2),ROW(G17)))),SEARCH("#",SUBSTITUTE(TRIM(INDEX(СписокШкола!$D$3:$D$132,SMALL(IF(COLUMN()-1=СписокШкола!$C$3:$C$132,ROW($D$3:$D$132)-2),ROW(G17))))&" "," ","#",2))-1),"") ->  | I20: =IFERROR(LEFT(TRIM(INDEX(СписокШкола!$D$3:$D$132,SMALL(IF(COLUMN()-1=СписокШкола!$C$3:$C$132,ROW($D$3:$D$132)-2),ROW(H17)))),SEARCH("#",SUBSTITUTE(TRIM(INDEX(СписокШкола!$D$3:$D$132,SMALL(IF(COLUMN()-1=СписокШкола!$C$3:$C$132,ROW($D$3:$D$132)-2),ROW(H17))))&" "," ","#",2))-1),"") ->  | J20: =IFERROR(LEFT(TRIM(INDEX(СписокШкола!$D$3:$D$132,SMALL(IF(COLUMN()-1=СписокШкола!$C$3:$C$132,ROW($D$3:$D$132)-2),ROW(I17)))),SEARCH("#",SUBSTITUTE(TRIM(INDEX(СписокШкола!$D$3:$D$132,SMALL(IF(COLUMN()-1=СписокШкола!$C$3:$C$132,ROW($D$3:$D$132)-2),ROW(I17))))&" "," ","#",2))-1),"") ->  | K20: =IFERROR(LEFT(TRIM(INDEX(СписокШкола!$D$3:$D$132,SMALL(IF(COLUMN()-1=СписокШкола!$C$3:$C$132,ROW($D$3:$D$132)-2),ROW(J17)))),SEARCH("#",SUBSTITUTE(TRIM(INDEX(СписокШкола!$D$3:$D$132,SMALL(IF(COLUMN()-1=СписокШкола!$C$3:$C$132,ROW($D$3:$D$132)-2),ROW(J17))))&" "," ","#",2))-1),"") ->  | L20: =IFERROR(LEFT(TRIM(INDEX(СписокШкола!$D$3:$D$132,SMALL(IF(COLUMN()-1=СписокШкола!$C$3:$C$132,ROW($D$3:$D$132)-2),ROW(K17)))),SEARCH("#",SUBSTITUTE(TRIM(INDEX(СписокШкола!$D$3:$D$132,SMALL(IF(COLUMN()-1=СписокШкола!$C$3:$C$132,ROW($D$3:$D$132)-2),ROW(K17))))&" "," ","#",2))-1),"") -> 
A21: 18 | B21: =IFERROR(LEFT(TRIM(INDEX(СписокШкола!$D$3:$D$132,SMALL(IF(COLUMN()-1=СписокШкола!$C$3:$C$132,ROW($D$3:$D$132)-2),ROW(A18)))),SEARCH("#",SUBSTITUTE(TRIM(INDEX(СписокШкола!$D$3:$D$132,SMALL(IF(COLUMN()-1=СписокШкола!$C$3:$C$132,ROW($D$3:$D$132)-2),ROW(A18))))&" "," ","#",2))-1),"") ->  | C21: =IFERROR(LEFT(TRIM(INDEX(СписокШкола!$D$3:$D$132,SMALL(IF(COLUMN()-1=СписокШкола!$C$3:$C$132,ROW($D$3:$D$132)-2),ROW(B18)))),SEARCH("#",SUBSTITUTE(TRIM(INDEX(СписокШкола!$D$3:$D$132,SMALL(IF(COLUMN()-1=СписокШкола!$C$3:$C$132,ROW($D$3:$D$132)-2),ROW(B18))))&" "," ","#",2))-1),"") ->  | D21: =IFERROR(LEFT(TRIM(INDEX(СписокШкола!$D$3:$D$132,SMALL(IF(COLUMN()-1=СписокШкола!$C$3:$C$132,ROW($D$3:$D$132)-2),ROW(C18)))),SEARCH("#",SUBSTITUTE(TRIM(INDEX(СписокШкола!$D$3:$D$132,SMALL(IF(COLUMN()-1=СписокШкола!$C$3:$C$132,ROW($D$3:$D$132)-2),ROW(C18))))&" "," ","#",2))-1),"") ->  | E21: =IFERROR(LEFT(TRIM(INDEX(СписокШкола!$D$3:$D$132,SMALL(IF(COLUMN()-1=СписокШкола!$C$3:$C$132,ROW($D$3:$D$132)-2),ROW(D18)))),SEARCH("#",SUBSTITUTE(TRIM(INDEX(СписокШкола!$D$3:$D$132,SMALL(IF(COLUMN()-1=СписокШкола!$C$3:$C$132,ROW($D$3:$D$132)-2),ROW(D18))))&" "," ","#",2))-1),"") ->  | F21: =IFERROR(LEFT(TRIM(INDEX(СписокШкола!$D$3:$D$132,SMALL(IF(COLUMN()-1=СписокШкола!$C$3:$C$132,ROW($D$3:$D$132)-2),ROW(E18)))),SEARCH("#",SUBSTITUTE(TRIM(INDEX(СписокШкола!$D$3:$D$132,SMALL(IF(COLUMN()-1=СписокШкола!$C$3:$C$132,ROW($D$3:$D$132)-2),ROW(E18))))&" "," ","#",2))-1),"") ->  | G21: =IFERROR(LEFT(TRIM(INDEX(СписокШкола!$D$3:$D$132,SMALL(IF(COLUMN()-1=СписокШкола!$C$3:$C$132,ROW($D$3:$D$132)-2),ROW(F18)))),SEARCH("#",SUBSTITUTE(TRIM(INDEX(СписокШкола!$D$3:$D$132,SMALL(IF(COLUMN()-1=СписокШкола!$C$3:$C$132,ROW($D$3:$D$132)-2),ROW(F18))))&" "," ","#",2))-1),"") ->  | H21: =IFERROR(LEFT(TRIM(INDEX(СписокШкола!$D$3:$D$132,SMALL(IF(COLUMN()-1=СписокШкола!$C$3:$C$132,ROW($D$3:$D$132)-2),ROW(G18)))),SEARCH("#",SUBSTITUTE(TRIM(INDEX(СписокШкола!$D$3:$D$132,SMALL(IF(COLUMN()-1=СписокШкола!$C$3:$C$132,ROW($D$3:$D$132)-2),ROW(G18))))&" "," ","#",2))-1),"") ->  | I21: =IFERROR(LEFT(TRIM(INDEX(СписокШкола!$D$3:$D$132,SMALL(IF(COLUMN()-1=СписокШкола!$C$3:$C$132,ROW($D$3:$D$132)-2),ROW(H18)))),SEARCH("#",SUBSTITUTE(TRIM(INDEX(СписокШкола!$D$3:$D$132,SMALL(IF(COLUMN()-1=СписокШкола!$C$3:$C$132,ROW($D$3:$D$132)-2),ROW(H18))))&" "," ","#",2))-1),"") ->  | J21: =IFERROR(LEFT(TRIM(INDEX(СписокШкола!$D$3:$D$132,SMALL(IF(COLUMN()-1=СписокШкола!$C$3:$C$132,ROW($D$3:$D$132)-2),ROW(I18)))),SEARCH("#",SUBSTITUTE(TRIM(INDEX(СписокШкола!$D$3:$D$132,SMALL(IF(COLUMN()-1=СписокШкола!$C$3:$C$132,ROW($D$3:$D$132)-2),ROW(I18))))&" "," ","#",2))-1),"") ->  | K21: =IFERROR(LEFT(TRIM(INDEX(СписокШкола!$D$3:$D$132,SMALL(IF(COLUMN()-1=СписокШкола!$C$3:$C$132,ROW($D$3:$D$132)-2),ROW(J18)))),SEARCH("#",SUBSTITUTE(TRIM(INDEX(СписокШкола!$D$3:$D$132,SMALL(IF(COLUMN()-1=СписокШкола!$C$3:$C$132,ROW($D$3:$D$132)-2),ROW(J18))))&" "," ","#",2))-1),"") ->  | L21: =IFERROR(LEFT(TRIM(INDEX(СписокШкола!$D$3:$D$132,SMALL(IF(COLUMN()-1=СписокШкола!$C$3:$C$132,ROW($D$3:$D$132)-2),ROW(K18)))),SEARCH("#",SUBSTITUTE(TRIM(INDEX(СписокШкола!$D$3:$D$132,SMALL(IF(COLUMN()-1=СписокШкола!$C$3:$C$132,ROW($D$3:$D$132)-2),ROW(K18))))&" "," ","#",2))-1),"") -> 
A22: 19 | B22: =IFERROR(LEFT(TRIM(INDEX(СписокШкола!$D$3:$D$132,SMALL(IF(COLUMN()-1=СписокШкола!$C$3:$C$132,ROW($D$3:$D$132)-2),ROW(A19)))),SEARCH("#",SUBSTITUTE(TRIM(INDEX(СписокШкола!$D$3:$D$132,SMALL(IF(COLUMN()-1=СписокШкола!$C$3:$C$132,ROW($D$3:$D$132)-2),ROW(A19))))&" "," ","#",2))-1),"") ->  | C22: =IFERROR(LEFT(TRIM(INDEX(СписокШкола!$D$3:$D$132,SMALL(IF(COLUMN()-1=СписокШкола!$C$3:$C$132,ROW($D$3:$D$132)-2),ROW(B19)))),SEARCH("#",SUBSTITUTE(TRIM(INDEX(СписокШкола!$D$3:$D$132,SMALL(IF(COLUMN()-1=СписокШкола!$C$3:$C$132,ROW($D$3:$D$132)-2),ROW(B19))))&" "," ","#",2))-1),"") ->  | D22: =IFERROR(LEFT(TRIM(INDEX(СписокШкола!$D$3:$D$132,SMALL(IF(COLUMN()-1=СписокШкола!$C$3:$C$132,ROW($D$3:$D$132)-2),ROW(C19)))),SEARCH("#",SUBSTITUTE(TRIM(INDEX(СписокШкола!$D$3:$D$132,SMALL(IF(COLUMN()-1=СписокШкола!$C$3:$C$132,ROW($D$3:$D$132)-2),ROW(C19))))&" "," ","#",2))-1),"") ->  | E22: =IFERROR(LEFT(TRIM(INDEX(СписокШкола!$D$3:$D$132,SMALL(IF(COLUMN()-1=СписокШкола!$C$3:$C$132,ROW($D$3:$D$132)-2),ROW(D19)))),SEARCH("#",SUBSTITUTE(TRIM(INDEX(СписокШкола!$D$3:$D$132,SMALL(IF(COLUMN()-1=СписокШкола!$C$3:$C$132,ROW($D$3:$D$132)-2),ROW(D19))))&" "," ","#",2))-1),"") ->  | F22: =IFERROR(LEFT(TRIM(INDEX(СписокШкола!$D$3:$D$132,SMALL(IF(COLUMN()-1=СписокШкола!$C$3:$C$132,ROW($D$3:$D$132)-2),ROW(E19)))),SEARCH("#",SUBSTITUTE(TRIM(INDEX(СписокШкола!$D$3:$D$132,SMALL(IF(COLUMN()-1=СписокШкола!$C$3:$C$132,ROW($D$3:$D$132)-2),ROW(E19))))&" "," ","#",2))-1),"") ->  | G22: =IFERROR(LEFT(TRIM(INDEX(СписокШкола!$D$3:$D$132,SMALL(IF(COLUMN()-1=СписокШкола!$C$3:$C$132,ROW($D$3:$D$132)-2),ROW(F19)))),SEARCH("#",SUBSTITUTE(TRIM(INDEX(СписокШкола!$D$3:$D$132,SMALL(IF(COLUMN()-1=СписокШкола!$C$3:$C$132,ROW($D$3:$D$132)-2),ROW(F19))))&" "," ","#",2))-1),"") ->  | H22: =IFERROR(LEFT(TRIM(INDEX(СписокШкола!$D$3:$D$132,SMALL(IF(COLUMN()-1=СписокШкола!$C$3:$C$132,ROW($D$3:$D$132)-2),ROW(G19)))),SEARCH("#",SUBSTITUTE(TRIM(INDEX(СписокШкола!$D$3:$D$132,SMALL(IF(COLUMN()-1=СписокШкола!$C$3:$C$132,ROW($D$3:$D$132)-2),ROW(G19))))&" "," ","#",2))-1),"") ->  | I22: =IFERROR(LEFT(TRIM(INDEX(СписокШкола!$D$3:$D$132,SMALL(IF(COLUMN()-1=СписокШкола!$C$3:$C$132,ROW($D$3:$D$132)-2),ROW(H19)))),SEARCH("#",SUBSTITUTE(TRIM(INDEX(СписокШкола!$D$3:$D$132,SMALL(IF(COLUMN()-1=СписокШкола!$C$3:$C$132,ROW($D$3:$D$132)-2),ROW(H19))))&" "," ","#",2))-1),"") ->  | J22: =IFERROR(LEFT(TRIM(INDEX(СписокШкола!$D$3:$D$132,SMALL(IF(COLUMN()-1=СписокШкола!$C$3:$C$132,ROW($D$3:$D$132)-2),ROW(I19)))),SEARCH("#",SUBSTITUTE(TRIM(INDEX(СписокШкола!$D$3:$D$132,SMALL(IF(COLUMN()-1=СписокШкола!$C$3:$C$132,ROW($D$3:$D$132)-2),ROW(I19))))&" "," ","#",2))-1),"") ->  | K22: =IFERROR(LEFT(TRIM(INDEX(СписокШкола!$D$3:$D$132,SMALL(IF(COLUMN()-1=СписокШкола!$C$3:$C$132,ROW($D$3:$D$132)-2),ROW(J19)))),SEARCH("#",SUBSTITUTE(TRIM(INDEX(СписокШкола!$D$3:$D$132,SMALL(IF(COLUMN()-1=СписокШкола!$C$3:$C$132,ROW($D$3:$D$132)-2),ROW(J19))))&" "," ","#",2))-1),"") ->  | L22: =IFERROR(LEFT(TRIM(INDEX(СписокШкола!$D$3:$D$132,SMALL(IF(COLUMN()-1=СписокШкола!$C$3:$C$132,ROW($D$3:$D$132)-2),ROW(K19)))),SEARCH("#",SUBSTITUTE(TRIM(INDEX(СписокШкола!$D$3:$D$132,SMALL(IF(COLUMN()-1=СписокШкола!$C$3:$C$132,ROW($D$3:$D$132)-2),ROW(K19))))&" "," ","#",2))-1),"") -> 
A23: 20 | B23: =IFERROR(LEFT(TRIM(INDEX(СписокШкола!$D$3:$D$132,SMALL(IF(COLUMN()-1=СписокШкола!$C$3:$C$132,ROW($D$3:$D$132)-2),ROW(A20)))),SEARCH("#",SUBSTITUTE(TRIM(INDEX(СписокШкола!$D$3:$D$132,SMALL(IF(COLUMN()-1=СписокШкола!$C$3:$C$132,ROW($D$3:$D$132)-2),ROW(A20))))&" "," ","#",2))-1),"") ->  | C23: =IFERROR(LEFT(TRIM(INDEX(СписокШкола!$D$3:$D$132,SMALL(IF(COLUMN()-1=СписокШкола!$C$3:$C$132,ROW($D$3:$D$132)-2),ROW(B20)))),SEARCH("#",SUBSTITUTE(TRIM(INDEX(СписокШкола!$D$3:$D$132,SMALL(IF(COLUMN()-1=СписокШкола!$C$3:$C$132,ROW($D$3:$D$132)-2),ROW(B20))))&" "," ","#",2))-1),"") ->  | D23: =IFERROR(LEFT(TRIM(INDEX(СписокШкола!$D$3:$D$132,SMALL(IF(COLUMN()-1=СписокШкола!$C$3:$C$132,ROW($D$3:$D$132)-2),ROW(C20)))),SEARCH("#",SUBSTITUTE(TRIM(INDEX(СписокШкола!$D$3:$D$132,SMALL(IF(COLUMN()-1=СписокШкола!$C$3:$C$132,ROW($D$3:$D$132)-2),ROW(C20))))&" "," ","#",2))-1),"") ->  | E23: =IFERROR(LEFT(TRIM(INDEX(СписокШкола!$D$3:$D$132,SMALL(IF(COLUMN()-1=СписокШкола!$C$3:$C$132,ROW($D$3:$D$132)-2),ROW(D20)))),SEARCH("#",SUBSTITUTE(TRIM(INDEX(СписокШкола!$D$3:$D$132,SMALL(IF(COLUMN()-1=СписокШкола!$C$3:$C$132,ROW($D$3:$D$132)-2),ROW(D20))))&" "," ","#",2))-1),"") ->  | F23: =IFERROR(LEFT(TRIM(INDEX(СписокШкола!$D$3:$D$132,SMALL(IF(COLUMN()-1=СписокШкола!$C$3:$C$132,ROW($D$3:$D$132)-2),ROW(E20)))),SEARCH("#",SUBSTITUTE(TRIM(INDEX(СписокШкола!$D$3:$D$132,SMALL(IF(COLUMN()-1=СписокШкола!$C$3:$C$132,ROW($D$3:$D$132)-2),ROW(E20))))&" "," ","#",2))-1),"") ->  | G23: =IFERROR(LEFT(TRIM(INDEX(СписокШкола!$D$3:$D$132,SMALL(IF(COLUMN()-1=СписокШкола!$C$3:$C$132,ROW($D$3:$D$132)-2),ROW(F20)))),SEARCH("#",SUBSTITUTE(TRIM(INDEX(СписокШкола!$D$3:$D$132,SMALL(IF(COLUMN()-1=СписокШкола!$C$3:$C$132,ROW($D$3:$D$132)-2),ROW(F20))))&" "," ","#",2))-1),"") ->  | H23: =IFERROR(LEFT(TRIM(INDEX(СписокШкола!$D$3:$D$132,SMALL(IF(COLUMN()-1=СписокШкола!$C$3:$C$132,ROW($D$3:$D$132)-2),ROW(G20)))),SEARCH("#",SUBSTITUTE(TRIM(INDEX(СписокШкола!$D$3:$D$132,SMALL(IF(COLUMN()-1=СписокШкола!$C$3:$C$132,ROW($D$3:$D$132)-2),ROW(G20))))&" "," ","#",2))-1),"") ->  | I23: =IFERROR(LEFT(TRIM(INDEX(СписокШкола!$D$3:$D$132,SMALL(IF(COLUMN()-1=СписокШкола!$C$3:$C$132,ROW($D$3:$D$132)-2),ROW(H20)))),SEARCH("#",SUBSTITUTE(TRIM(INDEX(СписокШкола!$D$3:$D$132,SMALL(IF(COLUMN()-1=СписокШкола!$C$3:$C$132,ROW($D$3:$D$132)-2),ROW(H20))))&" "," ","#",2))-1),"") ->  | J23: =IFERROR(LEFT(TRIM(INDEX(СписокШкола!$D$3:$D$132,SMALL(IF(COLUMN()-1=СписокШкола!$C$3:$C$132,ROW($D$3:$D$132)-2),ROW(I20)))),SEARCH("#",SUBSTITUTE(TRIM(INDEX(СписокШкола!$D$3:$D$132,SMALL(IF(COLUMN()-1=СписокШкола!$C$3:$C$132,ROW($D$3:$D$132)-2),ROW(I20))))&" "," ","#",2))-1),"") ->  | K23: =IFERROR(LEFT(TRIM(INDEX(СписокШкола!$D$3:$D$132,SMALL(IF(COLUMN()-1=СписокШкола!$C$3:$C$132,ROW($D$3:$D$132)-2),ROW(J20)))),SEARCH("#",SUBSTITUTE(TRIM(INDEX(СписокШкола!$D$3:$D$132,SMALL(IF(COLUMN()-1=СписокШкола!$C$3:$C$132,ROW($D$3:$D$132)-2),ROW(J20))))&" "," ","#",2))-1),"") ->  | L23: =IFERROR(LEFT(TRIM(INDEX(СписокШкола!$D$3:$D$132,SMALL(IF(COLUMN()-1=СписокШкола!$C$3:$C$132,ROW($D$3:$D$132)-2),ROW(K20)))),SEARCH("#",SUBSTITUTE(TRIM(INDEX(СписокШкола!$D$3:$D$132,SMALL(IF(COLUMN()-1=СписокШкола!$C$3:$C$132,ROW($D$3:$D$132)-2),ROW(K20))))&" "," ","#",2))-1),"") -> 
A24: 21 | B24: =IFERROR(LEFT(TRIM(INDEX(СписокШкола!$D$3:$D$132,SMALL(IF(COLUMN()-1=СписокШкола!$C$3:$C$132,ROW($D$3:$D$132)-2),ROW(A21)))),SEARCH("#",SUBSTITUTE(TRIM(INDEX(СписокШкола!$D$3:$D$132,SMALL(IF(COLUMN()-1=СписокШкола!$C$3:$C$132,ROW($D$3:$D$132)-2),ROW(A21))))&" "," ","#",2))-1),"") ->  | C24: =IFERROR(LEFT(TRIM(INDEX(СписокШкола!$D$3:$D$132,SMALL(IF(COLUMN()-1=СписокШкола!$C$3:$C$132,ROW($D$3:$D$132)-2),ROW(B21)))),SEARCH("#",SUBSTITUTE(TRIM(INDEX(СписокШкола!$D$3:$D$132,SMALL(IF(COLUMN()-1=СписокШкола!$C$3:$C$132,ROW($D$3:$D$132)-2),ROW(B21))))&" "," ","#",2))-1),"") ->  | D24: =IFERROR(LEFT(TRIM(INDEX(СписокШкола!$D$3:$D$132,SMALL(IF(COLUMN()-1=СписокШкола!$C$3:$C$132,ROW($D$3:$D$132)-2),ROW(C21)))),SEARCH("#",SUBSTITUTE(TRIM(INDEX(СписокШкола!$D$3:$D$132,SMALL(IF(COLUMN()-1=СписокШкола!$C$3:$C$132,ROW($D$3:$D$132)-2),ROW(C21))))&" "," ","#",2))-1),"") ->  | E24: =IFERROR(LEFT(TRIM(INDEX(СписокШкола!$D$3:$D$132,SMALL(IF(COLUMN()-1=СписокШкола!$C$3:$C$132,ROW($D$3:$D$132)-2),ROW(D21)))),SEARCH("#",SUBSTITUTE(TRIM(INDEX(СписокШкола!$D$3:$D$132,SMALL(IF(COLUMN()-1=СписокШкола!$C$3:$C$132,ROW($D$3:$D$132)-2),ROW(D21))))&" "," ","#",2))-1),"") ->  | F24: =IFERROR(LEFT(TRIM(INDEX(СписокШкола!$D$3:$D$132,SMALL(IF(COLUMN()-1=СписокШкола!$C$3:$C$132,ROW($D$3:$D$132)-2),ROW(E21)))),SEARCH("#",SUBSTITUTE(TRIM(INDEX(СписокШкола!$D$3:$D$132,SMALL(IF(COLUMN()-1=СписокШкола!$C$3:$C$132,ROW($D$3:$D$132)-2),ROW(E21))))&" "," ","#",2))-1),"") ->  | G24: =IFERROR(LEFT(TRIM(INDEX(СписокШкола!$D$3:$D$132,SMALL(IF(COLUMN()-1=СписокШкола!$C$3:$C$132,ROW($D$3:$D$132)-2),ROW(F21)))),SEARCH("#",SUBSTITUTE(TRIM(INDEX(СписокШкола!$D$3:$D$132,SMALL(IF(COLUMN()-1=СписокШкола!$C$3:$C$132,ROW($D$3:$D$132)-2),ROW(F21))))&" "," ","#",2))-1),"") ->  | H24: =IFERROR(LEFT(TRIM(INDEX(СписокШкола!$D$3:$D$132,SMALL(IF(COLUMN()-1=СписокШкола!$C$3:$C$132,ROW($D$3:$D$132)-2),ROW(G21)))),SEARCH("#",SUBSTITUTE(TRIM(INDEX(СписокШкола!$D$3:$D$132,SMALL(IF(COLUMN()-1=СписокШкола!$C$3:$C$132,ROW($D$3:$D$132)-2),ROW(G21))))&" "," ","#",2))-1),"") ->  | I24: =IFERROR(LEFT(TRIM(INDEX(СписокШкола!$D$3:$D$132,SMALL(IF(COLUMN()-1=СписокШкола!$C$3:$C$132,ROW($D$3:$D$132)-2),ROW(H21)))),SEARCH("#",SUBSTITUTE(TRIM(INDEX(СписокШкола!$D$3:$D$132,SMALL(IF(COLUMN()-1=СписокШкола!$C$3:$C$132,ROW($D$3:$D$132)-2),ROW(H21))))&" "," ","#",2))-1),"") ->  | J24: =IFERROR(LEFT(TRIM(INDEX(СписокШкола!$D$3:$D$132,SMALL(IF(COLUMN()-1=СписокШкола!$C$3:$C$132,ROW($D$3:$D$132)-2),ROW(I21)))),SEARCH("#",SUBSTITUTE(TRIM(INDEX(СписокШкола!$D$3:$D$132,SMALL(IF(COLUMN()-1=СписокШкола!$C$3:$C$132,ROW($D$3:$D$132)-2),ROW(I21))))&" "," ","#",2))-1),"") ->  | K24: =IFERROR(LEFT(TRIM(INDEX(СписокШкола!$D$3:$D$132,SMALL(IF(COLUMN()-1=СписокШкола!$C$3:$C$132,ROW($D$3:$D$132)-2),ROW(J21)))),SEARCH("#",SUBSTITUTE(TRIM(INDEX(СписокШкола!$D$3:$D$132,SMALL(IF(COLUMN()-1=СписокШкола!$C$3:$C$132,ROW($D$3:$D$132)-2),ROW(J21))))&" "," ","#",2))-1),"") ->  | L24: =IFERROR(LEFT(TRIM(INDEX(СписокШкола!$D$3:$D$132,SMALL(IF(COLUMN()-1=СписокШкола!$C$3:$C$132,ROW($D$3:$D$132)-2),ROW(K21)))),SEARCH("#",SUBSTITUTE(TRIM(INDEX(СписокШкола!$D$3:$D$132,SMALL(IF(COLUMN()-1=СписокШкола!$C$3:$C$132,ROW($D$3:$D$132)-2),ROW(K21))))&" "," ","#",2))-1),"") -> 
A25: 22 | B25: =IFERROR(LEFT(TRIM(INDEX(СписокШкола!$D$3:$D$132,SMALL(IF(COLUMN()-1=СписокШкола!$C$3:$C$132,ROW($D$3:$D$132)-2),ROW(A22)))),SEARCH("#",SUBSTITUTE(TRIM(INDEX(СписокШкола!$D$3:$D$132,SMALL(IF(COLUMN()-1=СписокШкола!$C$3:$C$132,ROW($D$3:$D$132)-2),ROW(A22))))&" "," ","#",2))-1),"") ->  | C25: =IFERROR(LEFT(TRIM(INDEX(СписокШкола!$D$3:$D$132,SMALL(IF(COLUMN()-1=СписокШкола!$C$3:$C$132,ROW($D$3:$D$132)-2),ROW(B22)))),SEARCH("#",SUBSTITUTE(TRIM(INDEX(СписокШкола!$D$3:$D$132,SMALL(IF(COLUMN()-1=СписокШкола!$C$3:$C$132,ROW($D$3:$D$132)-2),ROW(B22))))&" "," ","#",2))-1),"") ->  | D25: =IFERROR(LEFT(TRIM(INDEX(СписокШкола!$D$3:$D$132,SMALL(IF(COLUMN()-1=СписокШкола!$C$3:$C$132,ROW($D$3:$D$132)-2),ROW(C22)))),SEARCH("#",SUBSTITUTE(TRIM(INDEX(СписокШкола!$D$3:$D$132,SMALL(IF(COLUMN()-1=СписокШкола!$C$3:$C$132,ROW($D$3:$D$132)-2),ROW(C22))))&" "," ","#",2))-1),"") ->  | E25: =IFERROR(LEFT(TRIM(INDEX(СписокШкола!$D$3:$D$132,SMALL(IF(COLUMN()-1=СписокШкола!$C$3:$C$132,ROW($D$3:$D$132)-2),ROW(D22)))),SEARCH("#",SUBSTITUTE(TRIM(INDEX(СписокШкола!$D$3:$D$132,SMALL(IF(COLUMN()-1=СписокШкола!$C$3:$C$132,ROW($D$3:$D$132)-2),ROW(D22))))&" "," ","#",2))-1),"") ->  | F25: =IFERROR(LEFT(TRIM(INDEX(СписокШкола!$D$3:$D$132,SMALL(IF(COLUMN()-1=СписокШкола!$C$3:$C$132,ROW($D$3:$D$132)-2),ROW(E22)))),SEARCH("#",SUBSTITUTE(TRIM(INDEX(СписокШкола!$D$3:$D$132,SMALL(IF(COLUMN()-1=СписокШкола!$C$3:$C$132,ROW($D$3:$D$132)-2),ROW(E22))))&" "," ","#",2))-1),"") ->  | G25: =IFERROR(LEFT(TRIM(INDEX(СписокШкола!$D$3:$D$132,SMALL(IF(COLUMN()-1=СписокШкола!$C$3:$C$132,ROW($D$3:$D$132)-2),ROW(F22)))),SEARCH("#",SUBSTITUTE(TRIM(INDEX(СписокШкола!$D$3:$D$132,SMALL(IF(COLUMN()-1=СписокШкола!$C$3:$C$132,ROW($D$3:$D$132)-2),ROW(F22))))&" "," ","#",2))-1),"") ->  | H25: =IFERROR(LEFT(TRIM(INDEX(СписокШкола!$D$3:$D$132,SMALL(IF(COLUMN()-1=СписокШкола!$C$3:$C$132,ROW($D$3:$D$132)-2),ROW(G22)))),SEARCH("#",SUBSTITUTE(TRIM(INDEX(СписокШкола!$D$3:$D$132,SMALL(IF(COLUMN()-1=СписокШкола!$C$3:$C$132,ROW($D$3:$D$132)-2),ROW(G22))))&" "," ","#",2))-1),"") ->  | I25: =IFERROR(LEFT(TRIM(INDEX(СписокШкола!$D$3:$D$132,SMALL(IF(COLUMN()-1=СписокШкола!$C$3:$C$132,ROW($D$3:$D$132)-2),ROW(H22)))),SEARCH("#",SUBSTITUTE(TRIM(INDEX(СписокШкола!$D$3:$D$132,SMALL(IF(COLUMN()-1=СписокШкола!$C$3:$C$132,ROW($D$3:$D$132)-2),ROW(H22))))&" "," ","#",2))-1),"") ->  | J25: =IFERROR(LEFT(TRIM(INDEX(СписокШкола!$D$3:$D$132,SMALL(IF(COLUMN()-1=СписокШкола!$C$3:$C$132,ROW($D$3:$D$132)-2),ROW(I22)))),SEARCH("#",SUBSTITUTE(TRIM(INDEX(СписокШкола!$D$3:$D$132,SMALL(IF(COLUMN()-1=СписокШкола!$C$3:$C$132,ROW($D$3:$D$132)-2),ROW(I22))))&" "," ","#",2))-1),"") ->  | K25: =IFERROR(LEFT(TRIM(INDEX(СписокШкола!$D$3:$D$132,SMALL(IF(COLUMN()-1=СписокШкола!$C$3:$C$132,ROW($D$3:$D$132)-2),ROW(J22)))),SEARCH("#",SUBSTITUTE(TRIM(INDEX(СписокШкола!$D$3:$D$132,SMALL(IF(COLUMN()-1=СписокШкола!$C$3:$C$132,ROW($D$3:$D$132)-2),ROW(J22))))&" "," ","#",2))-1),"") ->  | L25: =IFERROR(LEFT(TRIM(INDEX(СписокШкола!$D$3:$D$132,SMALL(IF(COLUMN()-1=СписокШкола!$C$3:$C$132,ROW($D$3:$D$132)-2),ROW(K22)))),SEARCH("#",SUBSTITUTE(TRIM(INDEX(СписокШкола!$D$3:$D$132,SMALL(IF(COLUMN()-1=СписокШкола!$C$3:$C$132,ROW($D$3:$D$132)-2),ROW(K22))))&" "," ","#",2))-1),"") -> 
A26: 23 | B26: =IFERROR(LEFT(TRIM(INDEX(СписокШкола!$D$3:$D$132,SMALL(IF(COLUMN()-1=СписокШкола!$C$3:$C$132,ROW($D$3:$D$132)-2),ROW(A23)))),SEARCH("#",SUBSTITUTE(TRIM(INDEX(СписокШкола!$D$3:$D$132,SMALL(IF(COLUMN()-1=СписокШкола!$C$3:$C$132,ROW($D$3:$D$132)-2),ROW(A23))))&" "," ","#",2))-1),"") ->  | C26: =IFERROR(LEFT(TRIM(INDEX(СписокШкола!$D$3:$D$132,SMALL(IF(COLUMN()-1=СписокШкола!$C$3:$C$132,ROW($D$3:$D$132)-2),ROW(B23)))),SEARCH("#",SUBSTITUTE(TRIM(INDEX(СписокШкола!$D$3:$D$132,SMALL(IF(COLUMN()-1=СписокШкола!$C$3:$C$132,ROW($D$3:$D$132)-2),ROW(B23))))&" "," ","#",2))-1),"") ->  | D26: =IFERROR(LEFT(TRIM(INDEX(СписокШкола!$D$3:$D$132,SMALL(IF(COLUMN()-1=СписокШкола!$C$3:$C$132,ROW($D$3:$D$132)-2),ROW(C23)))),SEARCH("#",SUBSTITUTE(TRIM(INDEX(СписокШкола!$D$3:$D$132,SMALL(IF(COLUMN()-1=СписокШкола!$C$3:$C$132,ROW($D$3:$D$132)-2),ROW(C23))))&" "," ","#",2))-1),"") ->  | E26: =IFERROR(LEFT(TRIM(INDEX(СписокШкола!$D$3:$D$132,SMALL(IF(COLUMN()-1=СписокШкола!$C$3:$C$132,ROW($D$3:$D$132)-2),ROW(D23)))),SEARCH("#",SUBSTITUTE(TRIM(INDEX(СписокШкола!$D$3:$D$132,SMALL(IF(COLUMN()-1=СписокШкола!$C$3:$C$132,ROW($D$3:$D$132)-2),ROW(D23))))&" "," ","#",2))-1),"") ->  | F26: =IFERROR(LEFT(TRIM(INDEX(СписокШкола!$D$3:$D$132,SMALL(IF(COLUMN()-1=СписокШкола!$C$3:$C$132,ROW($D$3:$D$132)-2),ROW(E23)))),SEARCH("#",SUBSTITUTE(TRIM(INDEX(СписокШкола!$D$3:$D$132,SMALL(IF(COLUMN()-1=СписокШкола!$C$3:$C$132,ROW($D$3:$D$132)-2),ROW(E23))))&" "," ","#",2))-1),"") ->  | G26: =IFERROR(LEFT(TRIM(INDEX(СписокШкола!$D$3:$D$132,SMALL(IF(COLUMN()-1=СписокШкола!$C$3:$C$132,ROW($D$3:$D$132)-2),ROW(F23)))),SEARCH("#",SUBSTITUTE(TRIM(INDEX(СписокШкола!$D$3:$D$132,SMALL(IF(COLUMN()-1=СписокШкола!$C$3:$C$132,ROW($D$3:$D$132)-2),ROW(F23))))&" "," ","#",2))-1),"") ->  | H26: =IFERROR(LEFT(TRIM(INDEX(СписокШкола!$D$3:$D$132,SMALL(IF(COLUMN()-1=СписокШкола!$C$3:$C$132,ROW($D$3:$D$132)-2),ROW(G23)))),SEARCH("#",SUBSTITUTE(TRIM(INDEX(СписокШкола!$D$3:$D$132,SMALL(IF(COLUMN()-1=СписокШкола!$C$3:$C$132,ROW($D$3:$D$132)-2),ROW(G23))))&" "," ","#",2))-1),"") ->  | I26: =IFERROR(LEFT(TRIM(INDEX(СписокШкола!$D$3:$D$132,SMALL(IF(COLUMN()-1=СписокШкола!$C$3:$C$132,ROW($D$3:$D$132)-2),ROW(H23)))),SEARCH("#",SUBSTITUTE(TRIM(INDEX(СписокШкола!$D$3:$D$132,SMALL(IF(COLUMN()-1=СписокШкола!$C$3:$C$132,ROW($D$3:$D$132)-2),ROW(H23))))&" "," ","#",2))-1),"") ->  | J26: =IFERROR(LEFT(TRIM(INDEX(СписокШкола!$D$3:$D$132,SMALL(IF(COLUMN()-1=СписокШкола!$C$3:$C$132,ROW($D$3:$D$132)-2),ROW(I23)))),SEARCH("#",SUBSTITUTE(TRIM(INDEX(СписокШкола!$D$3:$D$132,SMALL(IF(COLUMN()-1=СписокШкола!$C$3:$C$132,ROW($D$3:$D$132)-2),ROW(I23))))&" "," ","#",2))-1),"") ->  | K26: =IFERROR(LEFT(TRIM(INDEX(СписокШкола!$D$3:$D$132,SMALL(IF(COLUMN()-1=СписокШкола!$C$3:$C$132,ROW($D$3:$D$132)-2),ROW(J23)))),SEARCH("#",SUBSTITUTE(TRIM(INDEX(СписокШкола!$D$3:$D$132,SMALL(IF(COLUMN()-1=СписокШкола!$C$3:$C$132,ROW($D$3:$D$132)-2),ROW(J23))))&" "," ","#",2))-1),"") ->  | L26: =IFERROR(LEFT(TRIM(INDEX(СписокШкола!$D$3:$D$132,SMALL(IF(COLUMN()-1=СписокШкола!$C$3:$C$132,ROW($D$3:$D$132)-2),ROW(K23)))),SEARCH("#",SUBSTITUTE(TRIM(INDEX(СписокШкола!$D$3:$D$132,SMALL(IF(COLUMN()-1=СписокШкола!$C$3:$C$132,ROW($D$3:$D$132)-2),ROW(K23))))&" "," ","#",2))-1),"") -> 
A27: 24 | B27: =IFERROR(LEFT(TRIM(INDEX(СписокШкола!$D$3:$D$132,SMALL(IF(COLUMN()-1=СписокШкола!$C$3:$C$132,ROW($D$3:$D$132)-2),ROW(A24)))),SEARCH("#",SUBSTITUTE(TRIM(INDEX(СписокШкола!$D$3:$D$132,SMALL(IF(COLUMN()-1=СписокШкола!$C$3:$C$132,ROW($D$3:$D$132)-2),ROW(A24))))&" "," ","#",2))-1),"") ->  | C27: =IFERROR(LEFT(TRIM(INDEX(СписокШкола!$D$3:$D$132,SMALL(IF(COLUMN()-1=СписокШкола!$C$3:$C$132,ROW($D$3:$D$132)-2),ROW(B24)))),SEARCH("#",SUBSTITUTE(TRIM(INDEX(СписокШкола!$D$3:$D$132,SMALL(IF(COLUMN()-1=СписокШкола!$C$3:$C$132,ROW($D$3:$D$132)-2),ROW(B24))))&" "," ","#",2))-1),"") ->  | D27: =IFERROR(LEFT(TRIM(INDEX(СписокШкола!$D$3:$D$132,SMALL(IF(COLUMN()-1=СписокШкола!$C$3:$C$132,ROW($D$3:$D$132)-2),ROW(C24)))),SEARCH("#",SUBSTITUTE(TRIM(INDEX(СписокШкола!$D$3:$D$132,SMALL(IF(COLUMN()-1=СписокШкола!$C$3:$C$132,ROW($D$3:$D$132)-2),ROW(C24))))&" "," ","#",2))-1),"") ->  | E27: =IFERROR(LEFT(TRIM(INDEX(СписокШкола!$D$3:$D$132,SMALL(IF(COLUMN()-1=СписокШкола!$C$3:$C$132,ROW($D$3:$D$132)-2),ROW(D24)))),SEARCH("#",SUBSTITUTE(TRIM(INDEX(СписокШкола!$D$3:$D$132,SMALL(IF(COLUMN()-1=СписокШкола!$C$3:$C$132,ROW($D$3:$D$132)-2),ROW(D24))))&" "," ","#",2))-1),"") ->  | F27: =IFERROR(LEFT(TRIM(INDEX(СписокШкола!$D$3:$D$132,SMALL(IF(COLUMN()-1=СписокШкола!$C$3:$C$132,ROW($D$3:$D$132)-2),ROW(E24)))),SEARCH("#",SUBSTITUTE(TRIM(INDEX(СписокШкола!$D$3:$D$132,SMALL(IF(COLUMN()-1=СписокШкола!$C$3:$C$132,ROW($D$3:$D$132)-2),ROW(E24))))&" "," ","#",2))-1),"") ->  | G27: =IFERROR(LEFT(TRIM(INDEX(СписокШкола!$D$3:$D$132,SMALL(IF(COLUMN()-1=СписокШкола!$C$3:$C$132,ROW($D$3:$D$132)-2),ROW(F24)))),SEARCH("#",SUBSTITUTE(TRIM(INDEX(СписокШкола!$D$3:$D$132,SMALL(IF(COLUMN()-1=СписокШкола!$C$3:$C$132,ROW($D$3:$D$132)-2),ROW(F24))))&" "," ","#",2))-1),"") ->  | H27: =IFERROR(LEFT(TRIM(INDEX(СписокШкола!$D$3:$D$132,SMALL(IF(COLUMN()-1=СписокШкола!$C$3:$C$132,ROW($D$3:$D$132)-2),ROW(G24)))),SEARCH("#",SUBSTITUTE(TRIM(INDEX(СписокШкола!$D$3:$D$132,SMALL(IF(COLUMN()-1=СписокШкола!$C$3:$C$132,ROW($D$3:$D$132)-2),ROW(G24))))&" "," ","#",2))-1),"") ->  | I27: =IFERROR(LEFT(TRIM(INDEX(СписокШкола!$D$3:$D$132,SMALL(IF(COLUMN()-1=СписокШкола!$C$3:$C$132,ROW($D$3:$D$132)-2),ROW(H24)))),SEARCH("#",SUBSTITUTE(TRIM(INDEX(СписокШкола!$D$3:$D$132,SMALL(IF(COLUMN()-1=СписокШкола!$C$3:$C$132,ROW($D$3:$D$132)-2),ROW(H24))))&" "," ","#",2))-1),"") ->  | J27: =IFERROR(LEFT(TRIM(INDEX(СписокШкола!$D$3:$D$132,SMALL(IF(COLUMN()-1=СписокШкола!$C$3:$C$132,ROW($D$3:$D$132)-2),ROW(I24)))),SEARCH("#",SUBSTITUTE(TRIM(INDEX(СписокШкола!$D$3:$D$132,SMALL(IF(COLUMN()-1=СписокШкола!$C$3:$C$132,ROW($D$3:$D$132)-2),ROW(I24))))&" "," ","#",2))-1),"") ->  | K27: =IFERROR(LEFT(TRIM(INDEX(СписокШкола!$D$3:$D$132,SMALL(IF(COLUMN()-1=СписокШкола!$C$3:$C$132,ROW($D$3:$D$132)-2),ROW(J24)))),SEARCH("#",SUBSTITUTE(TRIM(INDEX(СписокШкола!$D$3:$D$132,SMALL(IF(COLUMN()-1=СписокШкола!$C$3:$C$132,ROW($D$3:$D$132)-2),ROW(J24))))&" "," ","#",2))-1),"") ->  | L27: =IFERROR(LEFT(TRIM(INDEX(СписокШкола!$D$3:$D$132,SMALL(IF(COLUMN()-1=СписокШкола!$C$3:$C$132,ROW($D$3:$D$132)-2),ROW(K24)))),SEARCH("#",SUBSTITUTE(TRIM(INDEX(СписокШкола!$D$3:$D$132,SMALL(IF(COLUMN()-1=СписокШкола!$C$3:$C$132,ROW($D$3:$D$132)-2),ROW(K24))))&" "," ","#",2))-1),"") -> 
A28: 25 | B28: =IFERROR(LEFT(TRIM(INDEX(СписокШкола!$D$3:$D$132,SMALL(IF(COLUMN()-1=СписокШкола!$C$3:$C$132,ROW($D$3:$D$132)-2),ROW(A25)))),SEARCH("#",SUBSTITUTE(TRIM(INDEX(СписокШкола!$D$3:$D$132,SMALL(IF(COLUMN()-1=СписокШкола!$C$3:$C$132,ROW($D$3:$D$132)-2),ROW(A25))))&" "," ","#",2))-1),"") ->  | C28: =IFERROR(LEFT(TRIM(INDEX(СписокШкола!$D$3:$D$132,SMALL(IF(COLUMN()-1=СписокШкола!$C$3:$C$132,ROW($D$3:$D$132)-2),ROW(B25)))),SEARCH("#",SUBSTITUTE(TRIM(INDEX(СписокШкола!$D$3:$D$132,SMALL(IF(COLUMN()-1=СписокШкола!$C$3:$C$132,ROW($D$3:$D$132)-2),ROW(B25))))&" "," ","#",2))-1),"") ->  | D28: =IFERROR(LEFT(TRIM(INDEX(СписокШкола!$D$3:$D$132,SMALL(IF(COLUMN()-1=СписокШкола!$C$3:$C$132,ROW($D$3:$D$132)-2),ROW(C25)))),SEARCH("#",SUBSTITUTE(TRIM(INDEX(СписокШкола!$D$3:$D$132,SMALL(IF(COLUMN()-1=СписокШкола!$C$3:$C$132,ROW($D$3:$D$132)-2),ROW(C25))))&" "," ","#",2))-1),"") ->  | E28: =IFERROR(LEFT(TRIM(INDEX(СписокШкола!$D$3:$D$132,SMALL(IF(COLUMN()-1=СписокШкола!$C$3:$C$132,ROW($D$3:$D$132)-2),ROW(D25)))),SEARCH("#",SUBSTITUTE(TRIM(INDEX(СписокШкола!$D$3:$D$132,SMALL(IF(COLUMN()-1=СписокШкола!$C$3:$C$132,ROW($D$3:$D$132)-2),ROW(D25))))&" "," ","#",2))-1),"") ->  | F28: =IFERROR(LEFT(TRIM(INDEX(СписокШкола!$D$3:$D$132,SMALL(IF(COLUMN()-1=СписокШкола!$C$3:$C$132,ROW($D$3:$D$132)-2),ROW(E25)))),SEARCH("#",SUBSTITUTE(TRIM(INDEX(СписокШкола!$D$3:$D$132,SMALL(IF(COLUMN()-1=СписокШкола!$C$3:$C$132,ROW($D$3:$D$132)-2),ROW(E25))))&" "," ","#",2))-1),"") ->  | G28: =IFERROR(LEFT(TRIM(INDEX(СписокШкола!$D$3:$D$132,SMALL(IF(COLUMN()-1=СписокШкола!$C$3:$C$132,ROW($D$3:$D$132)-2),ROW(F25)))),SEARCH("#",SUBSTITUTE(TRIM(INDEX(СписокШкола!$D$3:$D$132,SMALL(IF(COLUMN()-1=СписокШкола!$C$3:$C$132,ROW($D$3:$D$132)-2),ROW(F25))))&" "," ","#",2))-1),"") ->  | H28: =IFERROR(LEFT(TRIM(INDEX(СписокШкола!$D$3:$D$132,SMALL(IF(COLUMN()-1=СписокШкола!$C$3:$C$132,ROW($D$3:$D$132)-2),ROW(G25)))),SEARCH("#",SUBSTITUTE(TRIM(INDEX(СписокШкола!$D$3:$D$132,SMALL(IF(COLUMN()-1=СписокШкола!$C$3:$C$132,ROW($D$3:$D$132)-2),ROW(G25))))&" "," ","#",2))-1),"") ->  | I28: =IFERROR(LEFT(TRIM(INDEX(СписокШкола!$D$3:$D$132,SMALL(IF(COLUMN()-1=СписокШкола!$C$3:$C$132,ROW($D$3:$D$132)-2),ROW(H25)))),SEARCH("#",SUBSTITUTE(TRIM(INDEX(СписокШкола!$D$3:$D$132,SMALL(IF(COLUMN()-1=СписокШкола!$C$3:$C$132,ROW($D$3:$D$132)-2),ROW(H25))))&" "," ","#",2))-1),"") ->  | J28: =IFERROR(LEFT(TRIM(INDEX(СписокШкола!$D$3:$D$132,SMALL(IF(COLUMN()-1=СписокШкола!$C$3:$C$132,ROW($D$3:$D$132)-2),ROW(I25)))),SEARCH("#",SUBSTITUTE(TRIM(INDEX(СписокШкола!$D$3:$D$132,SMALL(IF(COLUMN()-1=СписокШкола!$C$3:$C$132,ROW($D$3:$D$132)-2),ROW(I25))))&" "," ","#",2))-1),"") ->  | K28: =IFERROR(LEFT(TRIM(INDEX(СписокШкола!$D$3:$D$132,SMALL(IF(COLUMN()-1=СписокШкола!$C$3:$C$132,ROW($D$3:$D$132)-2),ROW(J25)))),SEARCH("#",SUBSTITUTE(TRIM(INDEX(СписокШкола!$D$3:$D$132,SMALL(IF(COLUMN()-1=СписокШкола!$C$3:$C$132,ROW($D$3:$D$132)-2),ROW(J25))))&" "," ","#",2))-1),"") ->  | L28: =IFERROR(LEFT(TRIM(INDEX(СписокШкола!$D$3:$D$132,SMALL(IF(COLUMN()-1=СписокШкола!$C$3:$C$132,ROW($D$3:$D$132)-2),ROW(K25)))),SEARCH("#",SUBSTITUTE(TRIM(INDEX(СписокШкола!$D$3:$D$132,SMALL(IF(COLUMN()-1=СписокШкола!$C$3:$C$132,ROW($D$3:$D$132)-2),ROW(K25))))&" "," ","#",2))-1),"") -> 
A29: 26 | B29: =IFERROR(LEFT(TRIM(INDEX(СписокШкола!$D$3:$D$132,SMALL(IF(COLUMN()-1=СписокШкола!$C$3:$C$132,ROW($D$3:$D$132)-2),ROW(A26)))),SEARCH("#",SUBSTITUTE(TRIM(INDEX(СписокШкола!$D$3:$D$132,SMALL(IF(COLUMN()-1=СписокШкола!$C$3:$C$132,ROW($D$3:$D$132)-2),ROW(A26))))&" "," ","#",2))-1),"") ->  | C29: =IFERROR(LEFT(TRIM(INDEX(СписокШкола!$D$3:$D$132,SMALL(IF(COLUMN()-1=СписокШкола!$C$3:$C$132,ROW($D$3:$D$132)-2),ROW(B26)))),SEARCH("#",SUBSTITUTE(TRIM(INDEX(СписокШкола!$D$3:$D$132,SMALL(IF(COLUMN()-1=СписокШкола!$C$3:$C$132,ROW($D$3:$D$132)-2),ROW(B26))))&" "," ","#",2))-1),"") ->  | D29: =IFERROR(LEFT(TRIM(INDEX(СписокШкола!$D$3:$D$132,SMALL(IF(COLUMN()-1=СписокШкола!$C$3:$C$132,ROW($D$3:$D$132)-2),ROW(C26)))),SEARCH("#",SUBSTITUTE(TRIM(INDEX(СписокШкола!$D$3:$D$132,SMALL(IF(COLUMN()-1=СписокШкола!$C$3:$C$132,ROW($D$3:$D$132)-2),ROW(C26))))&" "," ","#",2))-1),"") ->  | E29: =IFERROR(LEFT(TRIM(INDEX(СписокШкола!$D$3:$D$132,SMALL(IF(COLUMN()-1=СписокШкола!$C$3:$C$132,ROW($D$3:$D$132)-2),ROW(D26)))),SEARCH("#",SUBSTITUTE(TRIM(INDEX(СписокШкола!$D$3:$D$132,SMALL(IF(COLUMN()-1=СписокШкола!$C$3:$C$132,ROW($D$3:$D$132)-2),ROW(D26))))&" "," ","#",2))-1),"") ->  | F29: =IFERROR(LEFT(TRIM(INDEX(СписокШкола!$D$3:$D$132,SMALL(IF(COLUMN()-1=СписокШкола!$C$3:$C$132,ROW($D$3:$D$132)-2),ROW(E26)))),SEARCH("#",SUBSTITUTE(TRIM(INDEX(СписокШкола!$D$3:$D$132,SMALL(IF(COLUMN()-1=СписокШкола!$C$3:$C$132,ROW($D$3:$D$132)-2),ROW(E26))))&" "," ","#",2))-1),"") ->  | G29: =IFERROR(LEFT(TRIM(INDEX(СписокШкола!$D$3:$D$132,SMALL(IF(COLUMN()-1=СписокШкола!$C$3:$C$132,ROW($D$3:$D$132)-2),ROW(F26)))),SEARCH("#",SUBSTITUTE(TRIM(INDEX(СписокШкола!$D$3:$D$132,SMALL(IF(COLUMN()-1=СписокШкола!$C$3:$C$132,ROW($D$3:$D$132)-2),ROW(F26))))&" "," ","#",2))-1),"") ->  | H29: =IFERROR(LEFT(TRIM(INDEX(СписокШкола!$D$3:$D$132,SMALL(IF(COLUMN()-1=СписокШкола!$C$3:$C$132,ROW($D$3:$D$132)-2),ROW(G26)))),SEARCH("#",SUBSTITUTE(TRIM(INDEX(СписокШкола!$D$3:$D$132,SMALL(IF(COLUMN()-1=СписокШкола!$C$3:$C$132,ROW($D$3:$D$132)-2),ROW(G26))))&" "," ","#",2))-1),"") ->  | I29: =IFERROR(LEFT(TRIM(INDEX(СписокШкола!$D$3:$D$132,SMALL(IF(COLUMN()-1=СписокШкола!$C$3:$C$132,ROW($D$3:$D$132)-2),ROW(H26)))),SEARCH("#",SUBSTITUTE(TRIM(INDEX(СписокШкола!$D$3:$D$132,SMALL(IF(COLUMN()-1=СписокШкола!$C$3:$C$132,ROW($D$3:$D$132)-2),ROW(H26))))&" "," ","#",2))-1),"") ->  | J29: =IFERROR(LEFT(TRIM(INDEX(СписокШкола!$D$3:$D$132,SMALL(IF(COLUMN()-1=СписокШкола!$C$3:$C$132,ROW($D$3:$D$132)-2),ROW(I26)))),SEARCH("#",SUBSTITUTE(TRIM(INDEX(СписокШкола!$D$3:$D$132,SMALL(IF(COLUMN()-1=СписокШкола!$C$3:$C$132,ROW($D$3:$D$132)-2),ROW(I26))))&" "," ","#",2))-1),"") ->  | K29: =IFERROR(LEFT(TRIM(INDEX(СписокШкола!$D$3:$D$132,SMALL(IF(COLUMN()-1=СписокШкола!$C$3:$C$132,ROW($D$3:$D$132)-2),ROW(J26)))),SEARCH("#",SUBSTITUTE(TRIM(INDEX(СписокШкола!$D$3:$D$132,SMALL(IF(COLUMN()-1=СписокШкола!$C$3:$C$132,ROW($D$3:$D$132)-2),ROW(J26))))&" "," ","#",2))-1),"") ->  | L29: =IFERROR(LEFT(TRIM(INDEX(СписокШкола!$D$3:$D$132,SMALL(IF(COLUMN()-1=СписокШкола!$C$3:$C$132,ROW($D$3:$D$132)-2),ROW(K26)))),SEARCH("#",SUBSTITUTE(TRIM(INDEX(СписокШкола!$D$3:$D$132,SMALL(IF(COLUMN()-1=СписокШкола!$C$3:$C$132,ROW($D$3:$D$132)-2),ROW(K26))))&" "," ","#",2))-1),"") -> 
A30: 27 | B30: =IFERROR(LEFT(TRIM(INDEX(СписокШкола!$D$3:$D$132,SMALL(IF(COLUMN()-1=СписокШкола!$C$3:$C$132,ROW($D$3:$D$132)-2),ROW(A27)))),SEARCH("#",SUBSTITUTE(TRIM(INDEX(СписокШкола!$D$3:$D$132,SMALL(IF(COLUMN()-1=СписокШкола!$C$3:$C$132,ROW($D$3:$D$132)-2),ROW(A27))))&" "," ","#",2))-1),"") ->  | C30: =IFERROR(LEFT(TRIM(INDEX(СписокШкола!$D$3:$D$132,SMALL(IF(COLUMN()-1=СписокШкола!$C$3:$C$132,ROW($D$3:$D$132)-2),ROW(B27)))),SEARCH("#",SUBSTITUTE(TRIM(INDEX(СписокШкола!$D$3:$D$132,SMALL(IF(COLUMN()-1=СписокШкола!$C$3:$C$132,ROW($D$3:$D$132)-2),ROW(B27))))&" "," ","#",2))-1),"") ->  | D30: =IFERROR(LEFT(TRIM(INDEX(СписокШкола!$D$3:$D$132,SMALL(IF(COLUMN()-1=СписокШкола!$C$3:$C$132,ROW($D$3:$D$132)-2),ROW(C27)))),SEARCH("#",SUBSTITUTE(TRIM(INDEX(СписокШкола!$D$3:$D$132,SMALL(IF(COLUMN()-1=СписокШкола!$C$3:$C$132,ROW($D$3:$D$132)-2),ROW(C27))))&" "," ","#",2))-1),"") ->  | E30: =IFERROR(LEFT(TRIM(INDEX(СписокШкола!$D$3:$D$132,SMALL(IF(COLUMN()-1=СписокШкола!$C$3:$C$132,ROW($D$3:$D$132)-2),ROW(D27)))),SEARCH("#",SUBSTITUTE(TRIM(INDEX(СписокШкола!$D$3:$D$132,SMALL(IF(COLUMN()-1=СписокШкола!$C$3:$C$132,ROW($D$3:$D$132)-2),ROW(D27))))&" "," ","#",2))-1),"") ->  | F30: =IFERROR(LEFT(TRIM(INDEX(СписокШкола!$D$3:$D$132,SMALL(IF(COLUMN()-1=СписокШкола!$C$3:$C$132,ROW($D$3:$D$132)-2),ROW(E27)))),SEARCH("#",SUBSTITUTE(TRIM(INDEX(СписокШкола!$D$3:$D$132,SMALL(IF(COLUMN()-1=СписокШкола!$C$3:$C$132,ROW($D$3:$D$132)-2),ROW(E27))))&" "," ","#",2))-1),"") ->  | G30: =IFERROR(LEFT(TRIM(INDEX(СписокШкола!$D$3:$D$132,SMALL(IF(COLUMN()-1=СписокШкола!$C$3:$C$132,ROW($D$3:$D$132)-2),ROW(F27)))),SEARCH("#",SUBSTITUTE(TRIM(INDEX(СписокШкола!$D$3:$D$132,SMALL(IF(COLUMN()-1=СписокШкола!$C$3:$C$132,ROW($D$3:$D$132)-2),ROW(F27))))&" "," ","#",2))-1),"") ->  | H30: =IFERROR(LEFT(TRIM(INDEX(СписокШкола!$D$3:$D$132,SMALL(IF(COLUMN()-1=СписокШкола!$C$3:$C$132,ROW($D$3:$D$132)-2),ROW(G27)))),SEARCH("#",SUBSTITUTE(TRIM(INDEX(СписокШкола!$D$3:$D$132,SMALL(IF(COLUMN()-1=СписокШкола!$C$3:$C$132,ROW($D$3:$D$132)-2),ROW(G27))))&" "," ","#",2))-1),"") ->  | I30: =IFERROR(LEFT(TRIM(INDEX(СписокШкола!$D$3:$D$132,SMALL(IF(COLUMN()-1=СписокШкола!$C$3:$C$132,ROW($D$3:$D$132)-2),ROW(H27)))),SEARCH("#",SUBSTITUTE(TRIM(INDEX(СписокШкола!$D$3:$D$132,SMALL(IF(COLUMN()-1=СписокШкола!$C$3:$C$132,ROW($D$3:$D$132)-2),ROW(H27))))&" "," ","#",2))-1),"") ->  | J30: =IFERROR(LEFT(TRIM(INDEX(СписокШкола!$D$3:$D$132,SMALL(IF(COLUMN()-1=СписокШкола!$C$3:$C$132,ROW($D$3:$D$132)-2),ROW(I27)))),SEARCH("#",SUBSTITUTE(TRIM(INDEX(СписокШкола!$D$3:$D$132,SMALL(IF(COLUMN()-1=СписокШкола!$C$3:$C$132,ROW($D$3:$D$132)-2),ROW(I27))))&" "," ","#",2))-1),"") ->  | K30: =IFERROR(LEFT(TRIM(INDEX(СписокШкола!$D$3:$D$132,SMALL(IF(COLUMN()-1=СписокШкола!$C$3:$C$132,ROW($D$3:$D$132)-2),ROW(J27)))),SEARCH("#",SUBSTITUTE(TRIM(INDEX(СписокШкола!$D$3:$D$132,SMALL(IF(COLUMN()-1=СписокШкола!$C$3:$C$132,ROW($D$3:$D$132)-2),ROW(J27))))&" "," ","#",2))-1),"") ->  | L30: =IFERROR(LEFT(TRIM(INDEX(СписокШкола!$D$3:$D$132,SMALL(IF(COLUMN()-1=СписокШкола!$C$3:$C$132,ROW($D$3:$D$132)-2),ROW(K27)))),SEARCH("#",SUBSTITUTE(TRIM(INDEX(СписокШкола!$D$3:$D$132,SMALL(IF(COLUMN()-1=СписокШкола!$C$3:$C$132,ROW($D$3:$D$132)-2),ROW(K27))))&" "," ","#",2))-1),"") -> 
A31: 28 | B31: =IFERROR(LEFT(TRIM(INDEX(СписокШкола!$D$3:$D$132,SMALL(IF(COLUMN()-1=СписокШкола!$C$3:$C$132,ROW($D$3:$D$132)-2),ROW(A28)))),SEARCH("#",SUBSTITUTE(TRIM(INDEX(СписокШкола!$D$3:$D$132,SMALL(IF(COLUMN()-1=СписокШкола!$C$3:$C$132,ROW($D$3:$D$132)-2),ROW(A28))))&" "," ","#",2))-1),"") ->  | C31: =IFERROR(LEFT(TRIM(INDEX(СписокШкола!$D$3:$D$132,SMALL(IF(COLUMN()-1=СписокШкола!$C$3:$C$132,ROW($D$3:$D$132)-2),ROW(B28)))),SEARCH("#",SUBSTITUTE(TRIM(INDEX(СписокШкола!$D$3:$D$132,SMALL(IF(COLUMN()-1=СписокШкола!$C$3:$C$132,ROW($D$3:$D$132)-2),ROW(B28))))&" "," ","#",2))-1),"") ->  | D31: =IFERROR(LEFT(TRIM(INDEX(СписокШкола!$D$3:$D$132,SMALL(IF(COLUMN()-1=СписокШкола!$C$3:$C$132,ROW($D$3:$D$132)-2),ROW(C28)))),SEARCH("#",SUBSTITUTE(TRIM(INDEX(СписокШкола!$D$3:$D$132,SMALL(IF(COLUMN()-1=СписокШкола!$C$3:$C$132,ROW($D$3:$D$132)-2),ROW(C28))))&" "," ","#",2))-1),"") ->  | E31: =IFERROR(LEFT(TRIM(INDEX(СписокШкола!$D$3:$D$132,SMALL(IF(COLUMN()-1=СписокШкола!$C$3:$C$132,ROW($D$3:$D$132)-2),ROW(D28)))),SEARCH("#",SUBSTITUTE(TRIM(INDEX(СписокШкола!$D$3:$D$132,SMALL(IF(COLUMN()-1=СписокШкола!$C$3:$C$132,ROW($D$3:$D$132)-2),ROW(D28))))&" "," ","#",2))-1),"") ->  | F31: =IFERROR(LEFT(TRIM(INDEX(СписокШкола!$D$3:$D$132,SMALL(IF(COLUMN()-1=СписокШкола!$C$3:$C$132,ROW($D$3:$D$132)-2),ROW(E28)))),SEARCH("#",SUBSTITUTE(TRIM(INDEX(СписокШкола!$D$3:$D$132,SMALL(IF(COLUMN()-1=СписокШкола!$C$3:$C$132,ROW($D$3:$D$132)-2),ROW(E28))))&" "," ","#",2))-1),"") ->  | G31: =IFERROR(LEFT(TRIM(INDEX(СписокШкола!$D$3:$D$132,SMALL(IF(COLUMN()-1=СписокШкола!$C$3:$C$132,ROW($D$3:$D$132)-2),ROW(F28)))),SEARCH("#",SUBSTITUTE(TRIM(INDEX(СписокШкола!$D$3:$D$132,SMALL(IF(COLUMN()-1=СписокШкола!$C$3:$C$132,ROW($D$3:$D$132)-2),ROW(F28))))&" "," ","#",2))-1),"") ->  | H31: =IFERROR(LEFT(TRIM(INDEX(СписокШкола!$D$3:$D$132,SMALL(IF(COLUMN()-1=СписокШкола!$C$3:$C$132,ROW($D$3:$D$132)-2),ROW(G28)))),SEARCH("#",SUBSTITUTE(TRIM(INDEX(СписокШкола!$D$3:$D$132,SMALL(IF(COLUMN()-1=СписокШкола!$C$3:$C$132,ROW($D$3:$D$132)-2),ROW(G28))))&" "," ","#",2))-1),"") ->  | I31: =IFERROR(LEFT(TRIM(INDEX(СписокШкола!$D$3:$D$132,SMALL(IF(COLUMN()-1=СписокШкола!$C$3:$C$132,ROW($D$3:$D$132)-2),ROW(H28)))),SEARCH("#",SUBSTITUTE(TRIM(INDEX(СписокШкола!$D$3:$D$132,SMALL(IF(COLUMN()-1=СписокШкола!$C$3:$C$132,ROW($D$3:$D$132)-2),ROW(H28))))&" "," ","#",2))-1),"") ->  | J31: =IFERROR(LEFT(TRIM(INDEX(СписокШкола!$D$3:$D$132,SMALL(IF(COLUMN()-1=СписокШкола!$C$3:$C$132,ROW($D$3:$D$132)-2),ROW(I28)))),SEARCH("#",SUBSTITUTE(TRIM(INDEX(СписокШкола!$D$3:$D$132,SMALL(IF(COLUMN()-1=СписокШкола!$C$3:$C$132,ROW($D$3:$D$132)-2),ROW(I28))))&" "," ","#",2))-1),"") ->  | K31: =IFERROR(LEFT(TRIM(INDEX(СписокШкола!$D$3:$D$132,SMALL(IF(COLUMN()-1=СписокШкола!$C$3:$C$132,ROW($D$3:$D$132)-2),ROW(J28)))),SEARCH("#",SUBSTITUTE(TRIM(INDEX(СписокШкола!$D$3:$D$132,SMALL(IF(COLUMN()-1=СписокШкола!$C$3:$C$132,ROW($D$3:$D$132)-2),ROW(J28))))&" "," ","#",2))-1),"") ->  | L31: =IFERROR(LEFT(TRIM(INDEX(СписокШкола!$D$3:$D$132,SMALL(IF(COLUMN()-1=СписокШкола!$C$3:$C$132,ROW($D$3:$D$132)-2),ROW(K28)))),SEARCH("#",SUBSTITUTE(TRIM(INDEX(СписокШкола!$D$3:$D$132,SMALL(IF(COLUMN()-1=СписокШкола!$C$3:$C$132,ROW($D$3:$D$132)-2),ROW(K28))))&" "," ","#",2))-1),"") -> 
A32: =A31+1 -> 29 | B32: =IFERROR(LEFT(TRIM(INDEX(СписокШкола!$D$3:$D$132,SMALL(IF(COLUMN()-1=СписокШкола!$C$3:$C$132,ROW($D$3:$D$132)-2),ROW(A29)))),SEARCH("#",SUBSTITUTE(TRIM(INDEX(СписокШкола!$D$3:$D$132,SMALL(IF(COLUMN()-1=СписокШкола!$C$3:$C$132,ROW($D$3:$D$132)-2),ROW(A29))))&" "," ","#",2))-1),"") ->  | C32: =IFERROR(LEFT(TRIM(INDEX(СписокШкола!$D$3:$D$132,SMALL(IF(COLUMN()-1=СписокШкола!$C$3:$C$132,ROW($D$3:$D$132)-2),ROW(B29)))),SEARCH("#",SUBSTITUTE(TRIM(INDEX(СписокШкола!$D$3:$D$132,SMALL(IF(COLUMN()-1=СписокШкола!$C$3:$C$132,ROW($D$3:$D$132)-2),ROW(B29))))&" "," ","#",2))-1),"") ->  | D32: =IFERROR(LEFT(TRIM(INDEX(СписокШкола!$D$3:$D$132,SMALL(IF(COLUMN()-1=СписокШкола!$C$3:$C$132,ROW($D$3:$D$132)-2),ROW(C29)))),SEARCH("#",SUBSTITUTE(TRIM(INDEX(СписокШкола!$D$3:$D$132,SMALL(IF(COLUMN()-1=СписокШкола!$C$3:$C$132,ROW($D$3:$D$132)-2),ROW(C29))))&" "," ","#",2))-1),"") ->  | E32: =IFERROR(LEFT(TRIM(INDEX(СписокШкола!$D$3:$D$132,SMALL(IF(COLUMN()-1=СписокШкола!$C$3:$C$132,ROW($D$3:$D$132)-2),ROW(D29)))),SEARCH("#",SUBSTITUTE(TRIM(INDEX(СписокШкола!$D$3:$D$132,SMALL(IF(COLUMN()-1=СписокШкола!$C$3:$C$132,ROW($D$3:$D$132)-2),ROW(D29))))&" "," ","#",2))-1),"") ->  | F32: =IFERROR(LEFT(TRIM(INDEX(СписокШкола!$D$3:$D$132,SMALL(IF(COLUMN()-1=СписокШкола!$C$3:$C$132,ROW($D$3:$D$132)-2),ROW(E29)))),SEARCH("#",SUBSTITUTE(TRIM(INDEX(СписокШкола!$D$3:$D$132,SMALL(IF(COLUMN()-1=СписокШкола!$C$3:$C$132,ROW($D$3:$D$132)-2),ROW(E29))))&" "," ","#",2))-1),"") ->  | G32: =IFERROR(LEFT(TRIM(INDEX(СписокШкола!$D$3:$D$132,SMALL(IF(COLUMN()-1=СписокШкола!$C$3:$C$132,ROW($D$3:$D$132)-2),ROW(F29)))),SEARCH("#",SUBSTITUTE(TRIM(INDEX(СписокШкола!$D$3:$D$132,SMALL(IF(COLUMN()-1=СписокШкола!$C$3:$C$132,ROW($D$3:$D$132)-2),ROW(F29))))&" "," ","#",2))-1),"") ->  | H32: =IFERROR(LEFT(TRIM(INDEX(СписокШкола!$D$3:$D$132,SMALL(IF(COLUMN()-1=СписокШкола!$C$3:$C$132,ROW($D$3:$D$132)-2),ROW(G29)))),SEARCH("#",SUBSTITUTE(TRIM(INDEX(СписокШкола!$D$3:$D$132,SMALL(IF(COLUMN()-1=СписокШкола!$C$3:$C$132,ROW($D$3:$D$132)-2),ROW(G29))))&" "," ","#",2))-1),"") ->  | I32: =IFERROR(LEFT(TRIM(INDEX(СписокШкола!$D$3:$D$132,SMALL(IF(COLUMN()-1=СписокШкола!$C$3:$C$132,ROW($D$3:$D$132)-2),ROW(H29)))),SEARCH("#",SUBSTITUTE(TRIM(INDEX(СписокШкола!$D$3:$D$132,SMALL(IF(COLUMN()-1=СписокШкола!$C$3:$C$132,ROW($D$3:$D$132)-2),ROW(H29))))&" "," ","#",2))-1),"") ->  | J32: =IFERROR(LEFT(TRIM(INDEX(СписокШкола!$D$3:$D$132,SMALL(IF(COLUMN()-1=СписокШкола!$C$3:$C$132,ROW($D$3:$D$132)-2),ROW(I29)))),SEARCH("#",SUBSTITUTE(TRIM(INDEX(СписокШкола!$D$3:$D$132,SMALL(IF(COLUMN()-1=СписокШкола!$C$3:$C$132,ROW($D$3:$D$132)-2),ROW(I29))))&" "," ","#",2))-1),"") ->  | K32: =IFERROR(LEFT(TRIM(INDEX(СписокШкола!$D$3:$D$132,SMALL(IF(COLUMN()-1=СписокШкола!$C$3:$C$132,ROW($D$3:$D$132)-2),ROW(J29)))),SEARCH("#",SUBSTITUTE(TRIM(INDEX(СписокШкола!$D$3:$D$132,SMALL(IF(COLUMN()-1=СписокШкола!$C$3:$C$132,ROW($D$3:$D$132)-2),ROW(J29))))&" "," ","#",2))-1),"") ->  | L32: =IFERROR(LEFT(TRIM(INDEX(СписокШкола!$D$3:$D$132,SMALL(IF(COLUMN()-1=СписокШкола!$C$3:$C$132,ROW($D$3:$D$132)-2),ROW(K29)))),SEARCH("#",SUBSTITUTE(TRIM(INDEX(СписокШкола!$D$3:$D$132,SMALL(IF(COLUMN()-1=СписокШкола!$C$3:$C$132,ROW($D$3:$D$132)-2),ROW(K29))))&" "," ","#",2))-1),"") -> 
A33: 30 | B33: =IFERROR(LEFT(TRIM(INDEX(СписокШкола!$D$3:$D$132,SMALL(IF(COLUMN()-1=СписокШкола!$C$3:$C$132,ROW($D$3:$D$132)-2),ROW(A30)))),SEARCH("#",SUBSTITUTE(TRIM(INDEX(СписокШкола!$D$3:$D$132,SMALL(IF(COLUMN()-1=СписокШкола!$C$3:$C$132,ROW($D$3:$D$132)-2),ROW(A30))))&" "," ","#",2))-1),"") ->  | C33: =IFERROR(LEFT(TRIM(INDEX(СписокШкола!$D$3:$D$132,SMALL(IF(COLUMN()-1=СписокШкола!$C$3:$C$132,ROW($D$3:$D$132)-2),ROW(B30)))),SEARCH("#",SUBSTITUTE(TRIM(INDEX(СписокШкола!$D$3:$D$132,SMALL(IF(COLUMN()-1=СписокШкола!$C$3:$C$132,ROW($D$3:$D$132)-2),ROW(B30))))&" "," ","#",2))-1),"") ->  | D33: =IFERROR(LEFT(TRIM(INDEX(СписокШкола!$D$3:$D$132,SMALL(IF(COLUMN()-1=СписокШкола!$C$3:$C$132,ROW($D$3:$D$132)-2),ROW(C30)))),SEARCH("#",SUBSTITUTE(TRIM(INDEX(СписокШкола!$D$3:$D$132,SMALL(IF(COLUMN()-1=СписокШкола!$C$3:$C$132,ROW($D$3:$D$132)-2),ROW(C30))))&" "," ","#",2))-1),"") ->  | E33: =IFERROR(LEFT(TRIM(INDEX(СписокШкола!$D$3:$D$132,SMALL(IF(COLUMN()-1=СписокШкола!$C$3:$C$132,ROW($D$3:$D$132)-2),ROW(D30)))),SEARCH("#",SUBSTITUTE(TRIM(INDEX(СписокШкола!$D$3:$D$132,SMALL(IF(COLUMN()-1=СписокШкола!$C$3:$C$132,ROW($D$3:$D$132)-2),ROW(D30))))&" "," ","#",2))-1),"") ->  | F33: =IFERROR(LEFT(TRIM(INDEX(СписокШкола!$D$3:$D$132,SMALL(IF(COLUMN()-1=СписокШкола!$C$3:$C$132,ROW($D$3:$D$132)-2),ROW(E30)))),SEARCH("#",SUBSTITUTE(TRIM(INDEX(СписокШкола!$D$3:$D$132,SMALL(IF(COLUMN()-1=СписокШкола!$C$3:$C$132,ROW($D$3:$D$132)-2),ROW(E30))))&" "," ","#",2))-1),"") ->  | G33: =IFERROR(LEFT(TRIM(INDEX(СписокШкола!$D$3:$D$132,SMALL(IF(COLUMN()-1=СписокШкола!$C$3:$C$132,ROW($D$3:$D$132)-2),ROW(F30)))),SEARCH("#",SUBSTITUTE(TRIM(INDEX(СписокШкола!$D$3:$D$132,SMALL(IF(COLUMN()-1=СписокШкола!$C$3:$C$132,ROW($D$3:$D$132)-2),ROW(F30))))&" "," ","#",2))-1),"") ->  | H33: =IFERROR(LEFT(TRIM(INDEX(СписокШкола!$D$3:$D$132,SMALL(IF(COLUMN()-1=СписокШкола!$C$3:$C$132,ROW($D$3:$D$132)-2),ROW(G30)))),SEARCH("#",SUBSTITUTE(TRIM(INDEX(СписокШкола!$D$3:$D$132,SMALL(IF(COLUMN()-1=СписокШкола!$C$3:$C$132,ROW($D$3:$D$132)-2),ROW(G30))))&" "," ","#",2))-1),"") ->  | I33: =IFERROR(LEFT(TRIM(INDEX(СписокШкола!$D$3:$D$132,SMALL(IF(COLUMN()-1=СписокШкола!$C$3:$C$132,ROW($D$3:$D$132)-2),ROW(H30)))),SEARCH("#",SUBSTITUTE(TRIM(INDEX(СписокШкола!$D$3:$D$132,SMALL(IF(COLUMN()-1=СписокШкола!$C$3:$C$132,ROW($D$3:$D$132)-2),ROW(H30))))&" "," ","#",2))-1),"") ->  | J33: =IFERROR(LEFT(TRIM(INDEX(СписокШкола!$D$3:$D$132,SMALL(IF(COLUMN()-1=СписокШкола!$C$3:$C$132,ROW($D$3:$D$132)-2),ROW(I30)))),SEARCH("#",SUBSTITUTE(TRIM(INDEX(СписокШкола!$D$3:$D$132,SMALL(IF(COLUMN()-1=СписокШкола!$C$3:$C$132,ROW($D$3:$D$132)-2),ROW(I30))))&" "," ","#",2))-1),"") ->  | K33: =IFERROR(LEFT(TRIM(INDEX(СписокШкола!$D$3:$D$132,SMALL(IF(COLUMN()-1=СписокШкола!$C$3:$C$132,ROW($D$3:$D$132)-2),ROW(J30)))),SEARCH("#",SUBSTITUTE(TRIM(INDEX(СписокШкола!$D$3:$D$132,SMALL(IF(COLUMN()-1=СписокШкола!$C$3:$C$132,ROW($D$3:$D$132)-2),ROW(J30))))&" "," ","#",2))-1),"") ->  | L33: =IFERROR(LEFT(TRIM(INDEX(СписокШкола!$D$3:$D$132,SMALL(IF(COLUMN()-1=СписокШкола!$C$3:$C$132,ROW($D$3:$D$132)-2),ROW(K30)))),SEARCH("#",SUBSTITUTE(TRIM(INDEX(СписокШкола!$D$3:$D$132,SMALL(IF(COLUMN()-1=СписокШкола!$C$3:$C$132,ROW($D$3:$D$132)-2),ROW(K30))))&" "," ","#",2))-1),"") -> 

Sheet Нагрузка
B2: Р а с п р е д е л е н и е у ч е б н о й н а г р у з к и у ч и т е л е й п о к л а с с а м:
A4: Учебные предметы | B4: Казахский язык | C4: Русский язык | D4: Английский язык | E4: Математика | F4: Познание мира | G4: Музыка | H4: ИЗО | I4: Технология | J4: Физкультура
A5: 1 класс | B5: Даирова А.Б. | C5: Авраменко Н.А. | D5: Ибрагимова В.И. | E5: Авраменко Н.А. | F5: Авраменко Н.А. | G5: Лойко И.А. | H5: Авраменко Н.А. | I5: Авраменко Н.А. | J5: Авраменко Н.А.
A6: 2 класс | B6: Даирова А.Б. | C6: Авраменко Н.А.
A7: 3 класс | B7: Даирова А.Б. | C7: Авраменко Н.А.
A8: 4 класс | B8: Даирова А.Б. | C8: Авраменко Н.А.
A10: 5 класс | B10: Даирова А.Б. | C10: Авраменко Н.А. | D10: Ибрагимова В.И.
A11: 6 класс | B11: Даирова А.Б. | C11: Авраменко Н.А. | D11: Ибрагимова В.И.
A12: 7 класс | B12: Даирова А.Б. | C12: Авраменко Н.А. | D12: Ибрагимова В.И.
A13: 8 класс | B13: Даирова А.Б. | C13: Авраменко Н.А. | D13: Ибрагимова В.И.
A14: 9 класс | B14: Даирова А.Б. | C14: Авраменко Н.А.
A15: 10 класс | B15: Даирова А.Б. | C15: Авраменко Н.А.
A16: 11 класс | B16: Даирова А.Б. | C16: Авраменко Н.А.

Sheet 1 класс
A1: =Титул!G5 -> 2013/14 учебный год | C1: =Титул!F3 -> КГУ "Журавлевская средняя школа" | N1: =Титул!H6 -> 3 четверть
B2: ВЕДОМОСТЬ РЕЗУЛЬТАТОВ УЧЕБНОЙ ДЕЯТЕЛЬНОСТИ | N2: =Титул!F11 -> 1 | O2: класса
A3: Классный руководитель: | C3: =Титул!H11 -> Авраменко Надежда Алексеевна
A4: Вручную вносятся только оценки "5", "4", "3", "2" Не аттестованным проставляется 1, освобожденным - 0 | C4: Учебные предметы | M4: Результаты учащегося
C5: Казахский язык | D5: Русский язык | E5: Английский язык | F5: Математика | G5: Познание мира | H5: Музыка | I5: ИЗО | J5: Технология | K5: Физкультура | M5: Успеваемость | N5: Качество успеваемости | O5: Степень обученности
A6: 1 | B6: =СписокКлассы!B4 -> Богомолов Андрей | C6: 2 | D6: 3 | F6: 4 | J6: 2 | K6: 4 | M6: =(COUNTIF(C6:L6,">=3"))/(COUNTA(C6:L6)-COUNTIF(C6:L6,0)) -> 0.6 | N6: =((5*COUNTIF(C6:L6,"5"))+(4*COUNTIF(C6:L6,"4")))/(5*(COUNTA(C6:L6)-COUNTIF(C6:L6,0))) -> 0.32 | O6: =(COUNTIF(C6:L6,5)+(COUNTIF(C6:L6,4)*0.64)+(COUNTIF(C6:L6,3)*0.36)+(COUNTIF(C6:L6,2)*0.16))/(COUNTA(C6:L6)-COUNTIF(C6:L6,0)) -> 0.392 | Q6: =MIN(C6:L6) -> 2
A7: =A6+1 -> 2 | B7: =СписокКлассы!B5 -> Дель Дмитрий | C7: 5 | D7: 5 | F7: 4 | I7: 1 | J7: 5 | K7: 5 | M7: =(COUNTIF(C7:L7,">=3"))/(COUNTA(C7:L7)-COUNTIF(C7:L7,0)) -> 0.8333333333 | N7: =((5*COUNTIF(C7:L7,"5"))+(4*COUNTIF(C7:L7,"4")))/(5*(COUNTA(C7:L7)-COUNTIF(C7:L7,0))) -> 0.8 | O7: =(COUNTIF(C7:L7,5)+(COUNTIF(C7:L7,4)*0.64)+(COUNTIF(C7:L7,3)*0.36)+(COUNTIF(C7:L7,2)*0.16))/(COUNTA(C7:L7)-COUNTIF(C7:L7,0)) -> 0.7733333333 | Q7: =MIN(C7:L7) -> 1
A8: =A7+1 -> 3 | B8: =СписокКлассы!B6 -> Зуев Дмитрий | C8: 5 | D8: 5 | F8: 5 | J8: 5 | K8: 5 | M8: 1 | N8: 1 | O8: 1 | Q8: 5
A9: 4 | B9: =СписокКлассы!B7 -> Либрехт Надежда | C9: 5 | D9: 5 | F9: 5 | J9: 5 | K9: 5 | M9: 1 | N9: 1 | O9: 1 | Q9: 5
A10: 5 | B10: =СписокКлассы!B8 -> Санников Юрий | C10: 4 | D10: 4 | F10: 2 | J10: 4 | K10: 4 | M10: 0.8 | N10: 0.64 | O10: 0.544 | Q10: 2
A11: 6 | B11: =СписокКлассы!B9 -> Ткаченко Карина | C11: 4 | D11: 4 | F11: 4 | J11: 4 | K11: 4 | M11: 1 | N11: 0.8 | O11: 0.64 | Q11: 4
A12: 7 | B12: =СписокКлассы!B10 -> Шевченко Максим | C12: 5 | D12: 5 | F12: 5 | H12: 1 | J12: 5 | K12: 5 | M12: 0.8333333333 | N12: 0.8333333333 | O12: 0.8333333333 | Q12: 1
A13: 8 | B13: =СписокКлассы!B11 ->  | Q13: 0
A14: 9 | B14: =СписокКлассы!B12 ->  | Q14: 0
A15: 10 | B15: =СписокКлассы!B13 ->  | Q15: 0
A16: 11 | B16: =СписокКлассы!B14 ->  | Q16: 0
A17: 12 | B17: =СписокКлассы!B15 ->  | Q17: 0
A18: 13 | B18: =СписокКлассы!B16 ->  | Q18: 0
A19: 14 | B19: =СписокКлассы!B17 ->  | Q19: 0
A20: 15 | B20: =СписокКлассы!B18 ->  | Q20: 0
A21: 16 | B21: =СписокКлассы!B19 ->  | Q21: 0
A22: 17 | B22: =СписокКлассы!B20 ->  | Q22: 0
A23: 18 | B23: =СписокКлассы!B21 ->  | Q23: 0
A24: 19 | B24: =СписокКлассы!B22 ->  | Q24: 0 | R24: =IFERROR(INDEX(A24:B43,MATCH(5,P24:P30,0),2),"") -> 
A25: 20 | B25: =СписокКлассы!B23 ->  | Q25: 0
A26: Фамилия и инициалы учителя - предметника | C26: =Нагрузка!B5 -> Даирова А.Б. | D26: =Нагрузка!C5 -> Авраменко Н.А. | E26: =Нагрузка!D5 -> Ибрагимова В.И. | F26: =Нагрузка!E5 -> Авраменко Н.А. | G26: =Нагрузка!F5 -> Авраменко Н.А. | H26: =Нагрузка!G5 -> Лойко И.А. | I26: =Нагрузка!H5 -> Авраменко Н.А. | J26: =Нагрузка!I5 -> Авраменко Н.А. | K26: =Нагрузка!J5 -> Авраменко Н.А. | M26: Показатели результатов учебной деятельности в целом по классу:
A27: Результаты учебной деятельности класса | B27: Количество "5": | C27: =COUNTIF(C6:C25,5) -> 4 | D27: =COUNTIF(D6:D25,5) -> 4 | E27: 0 | F27: 3 | G27: 0 | H27: 0 | I27: 0 | J27: 4 | K27: 4 | M27: =SUMIF(C27:L27,">0",C27:L27) -> 19
B28: Количество "4": | C28: =COUNTIF(C6:C25,4) -> 2 | D28: =COUNTIF(D6:D25,4) -> 2 | E28: 0 | F28: 3 | G28: 0 | H28: 0 | I28: 0 | J28: 2 | K28: 3 | M28: =SUMIF(C28:L28,">0",C28:L28) -> 12
B29: Количество "3": | C29: =COUNTIF(C6:C25,3) -> 0 | D29: =COUNTIF(D6:D25,3) -> 1 | E29: 0 | F29: 0 | G29: 0 | H29: 0 | I29: 0 | J29: 0 | K29: 0 | M29: 1
B30: Количество "2": | C30: =COUNTIF(C6:C25,2) -> 1 | D30: =COUNTIF(D6:D25,2) -> 0 | E30: 0 | F30: 1 | G30: 0 | H30: 0 | I30: 0 | J30: 1 | K30: 0 | M30: 3
B31: Не аттестовано: | C31: =COUNTIF(C6:C25,1) -> 0 | D31: =COUNTIF(D6:D25,1) -> 0 | E31: 0 | F31: 0 | G31: 0 | H31: 1 | I31: 1 | J31: 0 | K31: 0 | L31: 0 | M31: 2
B32: Освобождено: | C32: =COUNTIF(C6:C25,0) -> 0 | D32: =COUNTIF(D6:D25,0) -> 0 | E32: 0 | F32: 0 | G32: 0 | H32: 0 | I32: 0 | J32: 0 | K32: 0 | L32: 0 | M32: =SUMIF(C32:L32,">0",C32:L32) -> 0
B33: Процент успеваемости: | C33: =(C27+C28+C29)/Титул!$G$11*100 -> 85.71428571 | D33: =(D27+D28+D29)/Титул!$G$11*100 -> 100 | E33: =(E27+E28+E29)/Титул!$G$11*100 -> 0 | F33: =(F27+F28+F29)/Титул!$G$11*100 -> 85.71428571 | G33: =(G27+G28+G29)/Титул!$G$11*100 -> 0 | H33: =(H27+H28+H29)/Титул!$G$11*100 -> 0 | I33: =(I27+I28+I29)/Титул!$G$11*100 -> 0 | J33: =(J27+J28+J29)/Титул!$G$11*100 -> 85.71428571 | K33: =(K27+K28+K29)/Титул!$G$11*100 -> 100
B34: Процент качества: | C34: =(C27+C28)/Титул!$G$11*100 -> 85.71428571 | D34: =(D27+D28)/Титул!$G$11*100 -> 85.71428571 | E34: =(E27+E28)/Титул!$G$11*100 -> 0 | F34: =(F27+F28)/Титул!$G$11*100 -> 85.71428571 | G34: =(G27+G28)/Титул!$G$11*100 -> 0 | H34: =(H27+H28)/Титул!$G$11*100 -> 0 | I34: =(I27+I28)/Титул!$G$11*100 -> 0 | J34: =(J27+J28)/Титул!$G$11*100 -> 85.71428571 | K34: =(K27+K28)/Титул!$G$11*100 -> 100
B35: Степень обученности: | C35: =(C27+C28*0.64+C29*0.36+C30*0.16)/Титул!$G$11 -> 0.7771428571 | D35: =(D27+D28*0.64+D29*0.36+D30*0.16)/Титул!$G$11 -> 0.8057142857 | E35: =(E27+E28*0.64+E29*0.36+E30*0.16)/Титул!$G$11 -> 0 | F35: =(F27+F28*0.64+F29*0.36+F30*0.16)/Титул!$G$11 -> 0.7257142857 | G35: =(G27+G28*0.64+G29*0.36+G30*0.16)/Титул!$G$11 -> 0 | H35: =(H27+H28*0.64+H29*0.36+H30*0.16)/Титул!$G$11 -> 0 | I35: =(I27+I28*0.64+I29*0.36+I30*0.16)/Титул!$G$11 -> 0 | J35: =(J27+J28*0.64+J29*0.36+J30*0.16)/Титул!$G$11 -> 0.7771428571 | K35: =(K27+K28*0.64+K29*0.36+K30*0.16)/Титул!$G$11 -> 0.8457142857
B36: Средний балл: | C36: =(C27*5+C28*4+C29*3+C30*2)/Титул!$G$11 -> 4.285714286 | D36: =(D27*5+D28*4+D29*3+D30*2)/Титул!$G$11 -> 4.428571429 | E36: =(E27*5+E28*4+E29*3+E30*2)/Титул!$G$11 -> 0 | F36: =(F27*5+F28*4+F29*3+F30*2)/Титул!$G$11 -> 4.142857143 | G36: =(G27*5+G28*4+G29*3+G30*2)/Титул!$G$11 -> 0 | H36: =(H27*5+H28*4+H29*3+H30*2)/Титул!$G$11 -> 0 | I36: =(I27*5+I28*4+I29*3+I30*2)/Титул!$G$11 -> 0 | J36: =(J27*5+J28*4+J29*3+J30*2)/Титул!$G$11 -> 4.285714286 | K36: =(K27*5+K28*4+K29*3+K30*2)/Титул!$G$11 -> 4.571428571

Sheet 1 клОтчет
A1: =Титул!F11 -> 1
A2: Всего учащихся в классе: | C2: =Титул!G11 -> 7 | D2: Фамилии, имена учащихся | E2: Учебные предметы | F2: Пояснения, примечания, причины | H2: предметы
A3: Учатся на "5": | B3: =COUNTIF(D3:D12,"?*") -> 2 | C3: 1 | D3: =IFERROR(INDEX('1 класс'!$B$6:$B$25,SMALL(IF('1 класс'!$Q$6:$Q$25='1 клОтчет'!A$4,'1 класс'!$A$6:$A$25),'1 класс'!$A6)),"") -> Зуев Дмитрий | E3: =СКЛЕИТЬ(H3:Q3,", ") ->  | H3: =IF(VLOOKUP($D3,'1 класс'!$B$6:$O$36,COLUMN(B1),0)<1,"",IF(VLOOKUP($D3,'1 класс'!$B$6:$O$36,COLUMN(B1),0)<3,'1 класс'!C$5,"")) ->  | I3: =IF(VLOOKUP($D3,'1 класс'!$B$6:$O$36,COLUMN(C1),0)<1,"",IF(VLOOKUP($D3,'1 класс'!$B$6:$O$36,COLUMN(C1),0)<3,'1 класс'!D$5,"")) ->  | J3: =IF(VLOOKUP($D3,'1 класс'!$B$6:$O$36,COLUMN(D1),0)<1,"",IF(VLOOKUP($D3,'1 класс'!$B$6:$O$36,COLUMN(D1),0)<3,'1 класс'!E$5,"")) ->  | K3: =IF(VLOOKUP($D3,'1 класс'!$B$6:$O$36,COLUMN(E1),0)<1,"",IF(VLOOKUP($D3,'1 класс'!$B$6:$O$36,COLUMN(E1),0)<3,'1 класс'!F$5,"")) ->  | L3: =IF(VLOOKUP($D3,'1 класс'!$B$6:$O$36,COLUMN(F1),0)<1,"",IF(VLOOKUP($D3,'1 класс'!$B$6:$O$36,COLUMN(F1),0)<3,'1 класс'!G$5,"")) ->  | M3: =IF(VLOOKUP($D3,'1 класс'!$B$6:$O$36,COLUMN(G1),0)<1,"",IF(VLOOKUP($D3,'1 класс'!$B$6:$O$36,COLUMN(G1),0)<3,'1 класс'!H$5,"")) ->  | N3: =IF(VLOOKUP($D3,'1 класс'!$B$6:$O$36,COLUMN(H1),0)<1,"",IF(VLOOKUP($D3,'1 класс'!$B$6:$O$36,COLUMN(H1),0)<3,'1 класс'!I$5,"")) ->  | O3: =IF(VLOOKUP($D3,'1 класс'!$B$6:$O$36,COLUMN(I1),0)<1,"",IF(VLOOKUP($D3,'1 класс'!$B$6:$O$36,COLUMN(I1),0)<3,'1 класс'!J$5,"")) ->  | P3: =IF(VLOOKUP($D3,'1 класс'!$B$6:$O$36,COLUMN(J1),0)<1,"",IF(VLOOKUP($D3,'1 класс'!$B$6:$O$36,COLUMN(J1),0)<3,'1 класс'!K$5,"")) ->  | Q3: =IF(VLOOKUP($D3,'1 класс'!$B$6:$O$36,COLUMN(K1),0)<1,"",IF(VLOOKUP($D3,'1 класс'!$B$6:$O$36,COLUMN(K1),0)<3,'1 класс'!L$5,"")) -> 
A4: 5 | C4: =C3+1 -> 2 | D4: =IFERROR(INDEX('1 класс'!$B$6:$B$25,SMALL(IF('1 класс'!$Q$6:$Q$25='1 клОтчет'!A$4,'1 класс'!$A$6:$A$25),'1 класс'!$A7)),"") -> Либрехт Надежда | E4: =СКЛЕИТЬ(H4:Q4,", ") ->  | H4: =IF(VLOOKUP($D4,'1 класс'!$B$6:$O$36,COLUMN(B2),0)<1,"",IF(VLOOKUP($D4,'1 класс'!$B$6:$O$36,COLUMN(B2),0)<3,'1 класс'!C$5,"")) ->  | I4: =IF(VLOOKUP($D4,'1 класс'!$B$6:$O$36,COLUMN(C2),0)<1,"",IF(VLOOKUP($D4,'1 класс'!$B$6:$O$36,COLUMN(C2),0)<3,'1 класс'!D$5,"")) ->  | J4: =IF(VLOOKUP($D4,'1 класс'!$B$6:$O$36,COLUMN(D2),0)<1,"",IF(VLOOKUP($D4,'1 класс'!$B$6:$O$36,COLUMN(D2),0)<3,'1 класс'!E$5,"")) ->  | K4: =IF(VLOOKUP($D4,'1 класс'!$B$6:$O$36,COLUMN(E2),0)<1,"",IF(VLOOKUP($D4,'1 класс'!$B$6:$O$36,COLUMN(E2),0)<3,'1 класс'!F$5,"")) ->  | L4: =IF(VLOOKUP($D4,'1 класс'!$B$6:$O$36,COLUMN(F2),0)<1,"",IF(VLOOKUP($D4,'1 класс'!$B$6:$O$36,COLUMN(F2),0)<3,'1 класс'!G$5,"")) ->  | M4: =IF(VLOOKUP($D4,'1 класс'!$B$6:$O$36,COLUMN(G2),0)<1,"",IF(VLOOKUP($D4,'1 класс'!$B$6:$O$36,COLUMN(G2),0)<3,'1 класс'!H$5,"")) ->  | N4: =IF(VLOOKUP($D4,'1 класс'!$B$6:$O$36,COLUMN(H2),0)<1,"",IF(VLOOKUP($D4,'1 класс'!$B$6:$O$36,COLUMN(H2),0)<3,'1 класс'!I$5,"")) ->  | O4: =IF(VLOOKUP($D4,'1 класс'!$B$6:$O$36,COLUMN(I2),0)<1,"",IF(VLOOKUP($D4,'1 класс'!$B$6:$O$36,COLUMN(I2),0)<3,'1 класс'!J$5,"")) ->  | P4: =IF(VLOOKUP($D4,'1 класс'!$B$6:$O$36,COLUMN(J2),0)<1,"",IF(VLOOKUP($D4,'1 класс'!$B$6:$O$36,COLUMN(J2),0)<3,'1 класс'!K$5,"")) ->  | Q4: =IF(VLOOKUP($D4,'1 класс'!$B$6:$O$36,COLUMN(K2),0)<1,"",IF(VLOOKUP($D4,'1 класс'!$B$6:$O$36,COLUMN(K2),0)<3,'1 класс'!L$5,"")) -> 
C5: =C4+1 -> 3 | D5: =IFERROR(INDEX('1 класс'!$B$6:$B$25,SMALL(IF('1 класс'!$Q$6:$Q$25='1 клОтчет'!A$4,'1 класс'!$A$6:$A$25),'1 класс'!$A8)),"") ->  | E5: =СКЛЕИТЬ(H5:Q5,", ") ->  | H5: =IF(VLOOKUP($D5,'1 класс'!$B$6:$O$36,COLUMN(B3),0)<1,"",IF(VLOOKUP($D5,'1 класс'!$B$6:$O$36,COLUMN(B3),0)<3,'1 класс'!C$5,"")) ->  | I5: =IF(VLOOKUP($D5,'1 класс'!$B$6:$O$36,COLUMN(C3),0)<1,"",IF(VLOOKUP($D5,'1 класс'!$B$6:$O$36,COLUMN(C3),0)<3,'1 класс'!D$5,"")) ->  | J5: =IF(VLOOKUP($D5,'1 класс'!$B$6:$O$36,COLUMN(D3),0)<1,"",IF(VLOOKUP($D5,'1 класс'!$B$6:$O$36,COLUMN(D3),0)<3,'1 класс'!E$5,"")) ->  | K5: =IF(VLOOKUP($D5,'1 класс'!$B$6:$O$36,COLUMN(E3),0)<1,"",IF(VLOOKUP($D5,'1 класс'!$B$6:$O$36,COLUMN(E3),0)<3,'1 класс'!F$5,"")) ->  | L5: =IF(VLOOKUP($D5,'1 класс'!$B$6:$O$36,COLUMN(F3),0)<1,"",IF(VLOOKUP($D5,'1 класс'!$B$6:$O$36,COLUMN(F3),0)<3,'1 класс'!G$5,"")) ->  | M5: =IF(VLOOKUP($D5,'1 класс'!$B$6:$O$36,COLUMN(G3),0)<1,"",IF(VLOOKUP($D5,'1 класс'!$B$6:$O$36,COLUMN(G3),0)<3,'1 класс'!H$5,"")) ->  | N5: =IF(VLOOKUP($D5,'1 класс'!$B$6:$O$36,COLUMN(H3),0)<1,"",IF(VLOOKUP($D5,'1 класс'!$B$6:$O$36,COLUMN(H3),0)<3,'1 класс'!I$5,"")) ->  | O5: =IF(VLOOKUP($D5,'1 класс'!$B$6:$O$36,COLUMN(I3),0)<1,"",IF(VLOOKUP($D5,'1 класс'!$B$6:$O$36,COLUMN(I3),0)<3,'1 класс'!J$5,"")) ->  | P5: =IF(VLOOKUP($D5,'1 класс'!$B$6:$O$36,COLUMN(J3),0)<1,"",IF(VLOOKUP($D5,'1 класс'!$B$6:$O$36,COLUMN(J3),0)<3,'1 класс'!K$5,"")) ->  | Q5: =IF(VLOOKUP($D5,'1 класс'!$B$6:$O$36,COLUMN(K3),0)<1,"",IF(VLOOKUP($D5,'1 класс'!$B$6:$O$36,COLUMN(K3),0)<3,'1 класс'!L$5,"")) -> 
C6: 4 | D6: =IFERROR(INDEX('1 класс'!$B$6:$B$25,SMALL(IF('1 класс'!$Q$6:$Q$25='1 клОтчет'!A$4,'1 класс'!$A$6:$A$25),'1 класс'!$A9)),"") ->  | H6: =IF(VLOOKUP($D6,'1 класс'!$B$6:$O$36,COLUMN(B4),0)<1,"",IF(VLOOKUP($D6,'1 класс'!$B$6:$O$36,COLUMN(B4),0)<3,'1 класс'!C$5,"")) ->  | I6: =IF(VLOOKUP($D6,'1 класс'!$B$6:$O$36,COLUMN(C4),0)<1,"",IF(VLOOKUP($D6,'1 класс'!$B$6:$O$36,COLUMN(C4),0)<3,'1 класс'!D$5,"")) ->  | J6: =IF(VLOOKUP($D6,'1 класс'!$B$6:$O$36,COLUMN(D4),0)<1,"",IF(VLOOKUP($D6,'1 класс'!$B$6:$O$36,COLUMN(D4),0)<3,'1 класс'!E$5,"")) ->  | K6: =IF(VLOOKUP($D6,'1 класс'!$B$6:$O$36,COLUMN(E4),0)<1,"",IF(VLOOKUP($D6,'1 класс'!$B$6:$O$36,COLUMN(E4),0)<3,'1 класс'!F$5,"")) ->  | L6: =IF(VLOOKUP($D6,'1 класс'!$B$6:$O$36,COLUMN(F4),0)<1,"",IF(VLOOKUP($D6,'1 класс'!$B$6:$O$36,COLUMN(F4),0)<3,'1 класс'!G$5,"")) ->  | M6: =IF(VLOOKUP($D6,'1 класс'!$B$6:$O$36,COLUMN(G4),0)<1,"",IF(VLOOKUP($D6,'1 класс'!$B$6:$O$36,COLUMN(G4),0)<3,'1 класс'!H$5,"")) ->  | N6: =IF(VLOOKUP($D6,'1 класс'!$B$6:$O$36,COLUMN(H4),0)<1,"",IF(VLOOKUP($D6,'1 класс'!$B$6:$O$36,COLUMN(H4),0)<3,'1 класс'!I$5,"")) ->  | O6: =IF(VLOOKUP($D6,'1 класс'!$B$6:$O$36,COLUMN(I4),0)<1,"",IF(VLOOKUP($D6,'1 класс'!$B$6:$O$36,COLUMN(I4),0)<3,'1 класс'!J$5,"")) ->  | P6: =IF(VLOOKUP($D6,'1 класс'!$B$6:$O$36,COLUMN(J4),0)<1,"",IF(VLOOKUP($D6,'1 класс'!$B$6:$O$36,COLUMN(J4),0)<3,'1 класс'!K$5,"")) ->  | Q6: =IF(VLOOKUP($D6,'1 класс'!$B$6:$O$36,COLUMN(K4),0)<1,"",IF(VLOOKUP($D6,'1 класс'!$B$6:$O$36,COLUMN(K4),0)<3,'1 класс'!L$5,"")) -> 
C7: 5 | D7: =IFERROR(INDEX('1 класс'!$B$6:$B$25,SMALL(IF('1 класс'!$Q$6:$Q$25='1 клОтчет'!A$4,'1 класс'!$A$6:$A$25),'1 класс'!$A10)),"") ->  | H7: =IF(VLOOKUP($D7,'1 класс'!$B$6:$O$36,COLUMN(B5),0)<1,"",IF(VLOOKUP($D7,'1 класс'!$B$6:$O$36,COLUMN(B5),0)<3,'1 класс'!C$5,"")) ->  | I7: =IF(VLOOKUP($D7,'1 класс'!$B$6:$O$36,COLUMN(C5),0)<1,"",IF(VLOOKUP($D7,'1 класс'!$B$6:$O$36,COLUMN(C5),0)<3,'1 класс'!D$5,"")) ->  | J7: =IF(VLOOKUP($D7,'1 класс'!$B$6:$O$36,COLUMN(D5),0)<1,"",IF(VLOOKUP($D7,'1 класс'!$B$6:$O$36,COLUMN(D5),0)<3,'1 класс'!E$5,"")) ->  | K7: =IF(VLOOKUP($D7,'1 класс'!$B$6:$O$36,COLUMN(E5),0)<1,"",IF(VLOOKUP($D7,'1 класс'!$B$6:$O$36,COLUMN(E5),0)<3,'1 класс'!F$5,"")) ->  | L7: =IF(VLOOKUP($D7,'1 класс'!$B$6:$O$36,COLUMN(F5),0)<1,"",IF(VLOOKUP($D7,'1 класс'!$B$6:$O$36,COLUMN(F5),0)<3,'1 класс'!G$5,"")) ->  | M7: =IF(VLOOKUP($D7,'1 класс'!$B$6:$O$36,COLUMN(G5),0)<1,"",IF(VLOOKUP($D7,'1 класс'!$B$6:$O$36,COLUMN(G5),0)<3,'1 класс'!H$5,"")) ->  | N7: =IF(VLOOKUP($D7,'1 класс'!$B$6:$O$36,COLUMN(H5),0)<1,"",IF(VLOOKUP($D7,'1 класс'!$B$6:$O$36,COLUMN(H5),0)<3,'1 класс'!I$5,"")) ->  | O7: =IF(VLOOKUP($D7,'1 класс'!$B$6:$O$36,COLUMN(I5),0)<1,"",IF(VLOOKUP($D7,'1 класс'!$B$6:$O$36,COLUMN(I5),0)<3,'1 класс'!J$5,"")) ->  | P7: =IF(VLOOKUP($D7,'1 класс'!$B$6:$O$36,COLUMN(J5),0)<1,"",IF(VLOOKUP($D7,'1 класс'!$B$6:$O$36,COLUMN(J5),0)<3,'1 класс'!K$5,"")) ->  | Q7: =IF(VLOOKUP($D7,'1 класс'!$B$6:$O$36,COLUMN(K5),0)<1,"",IF(VLOOKUP($D7,'1 класс'!$B$6:$O$36,COLUMN(K5),0)<3,'1 класс'!L$5,"")) -> 
C8: 6 | D8: =IFERROR(INDEX('1 класс'!$B$6:$B$25,SMALL(IF('1 класс'!$Q$6:$Q$25='1 клОтчет'!A$4,'1 класс'!$A$6:$A$25),'1 класс'!$A11)),"") ->  | H8: =IF(VLOOKUP($D8,'1 класс'!$B$6:$O$36,COLUMN(B6),0)<1,"",IF(VLOOKUP($D8,'1 класс'!$B$6:$O$36,COLUMN(B6),0)<3,'1 класс'!C$5,"")) ->  | I8: =IF(VLOOKUP($D8,'1 класс'!$B$6:$O$36,COLUMN(C6),0)<1,"",IF(VLOOKUP($D8,'1 класс'!$B$6:$O$36,COLUMN(C6),0)<3,'1 класс'!D$5,"")) ->  | J8: =IF(VLOOKUP($D8,'1 класс'!$B$6:$O$36,COLUMN(D6),0)<1,"",IF(VLOOKUP($D8,'1 класс'!$B$6:$O$36,COLUMN(D6),0)<3,'1 класс'!E$5,"")) ->  | K8: =IF(VLOOKUP($D8,'1 класс'!$B$6:$O$36,COLUMN(E6),0)<1,"",IF(VLOOKUP($D8,'1 класс'!$B$6:$O$36,COLUMN(E6),0)<3,'1 класс'!F$5,"")) ->  | L8: =IF(VLOOKUP($D8,'1 класс'!$B$6:$O$36,COLUMN(F6),0)<1,"",IF(VLOOKUP($D8,'1 класс'!$B$6:$O$36,COLUMN(F6),0)<3,'1 класс'!G$5,"")) ->  | M8: =IF(VLOOKUP($D8,'1 класс'!$B$6:$O$36,COLUMN(G6),0)<1,"",IF(VLOOKUP($D8,'1 класс'!$B$6:$O$36,COLUMN(G6),0)<3,'1 класс'!H$5,"")) ->  | N8: =IF(VLOOKUP($D8,'1 класс'!$B$6:$O$36,COLUMN(H6),0)<1,"",IF(VLOOKUP($D8,'1 класс'!$B$6:$O$36,COLUMN(H6),0)<3,'1 класс'!I$5,"")) ->  | O8: =IF(VLOOKUP($D8,'1 класс'!$B$6:$O$36,COLUMN(I6),0)<1,"",IF(VLOOKUP($D8,'1 класс'!$B$6:$O$36,COLUMN(I6),0)<3,'1 класс'!J$5,"")) ->  | P8: =IF(VLOOKUP($D8,'1 класс'!$B$6:$O$36,COLUMN(J6),0)<1,"",IF(VLOOKUP($D8,'1 класс'!$B$6:$O$36,COLUMN(J6),0)<3,'1 класс'!K$5,"")) ->  | Q8: =IF(VLOOKUP($D8,'1 класс'!$B$6:$O$36,COLUMN(K6),0)<1,"",IF(VLOOKUP($D8,'1 класс'!$B$6:$O$36,COLUMN(K6),0)<3,'1 класс'!L$5,"")) -> 
C9: 7 | D9: =IFERROR(INDEX('1 класс'!$B$6:$B$25,SMALL(IF('1 класс'!$Q$6:$Q$25='1 клОтчет'!A$4,'1 класс'!$A$6:$A$25),'1 класс'!$A12)),"") ->  | H9: =IF(VLOOKUP($D9,'1 класс'!$B$6:$O$36,COLUMN(B7),0)<1,"",IF(VLOOKUP($D9,'1 класс'!$B$6:$O$36,COLUMN(B7),0)<3,'1 класс'!C$5,"")) ->  | I9: =IF(VLOOKUP($D9,'1 класс'!$B$6:$O$36,COLUMN(C7),0)<1,"",IF(VLOOKUP($D9,'1 класс'!$B$6:$O$36,COLUMN(C7),0)<3,'1 класс'!D$5,"")) ->  | J9: =IF(VLOOKUP($D9,'1 класс'!$B$6:$O$36,COLUMN(D7),0)<1,"",IF(VLOOKUP($D9,'1 класс'!$B$6:$O$36,COLUMN(D7),0)<3,'1 класс'!E$5,"")) ->  | K9: =IF(VLOOKUP($D9,'1 класс'!$B$6:$O$36,COLUMN(E7),0)<1,"",IF(VLOOKUP($D9,'1 класс'!$B$6:$O$36,COLUMN(E7),0)<3,'1 класс'!F$5,"")) ->  | L9: =IF(VLOOKUP($D9,'1 класс'!$B$6:$O$36,COLUMN(F7),0)<1,"",IF(VLOOKUP($D9,'1 класс'!$B$6:$O$36,COLUMN(F7),0)<3,'1 класс'!G$5,"")) ->  | M9: =IF(VLOOKUP($D9,'1 класс'!$B$6:$O$36,COLUMN(G7),0)<1,"",IF(VLOOKUP($D9,'1 класс'!$B$6:$O$36,COLUMN(G7),0)<3,'1 класс'!H$5,"")) ->  | N9: =IF(VLOOKUP($D9,'1 класс'!$B$6:$O$36,COLUMN(H7),0)<1,"",IF(VLOOKUP($D9,'1 класс'!$B$6:$O$36,COLUMN(H7),0)<3,'1 класс'!I$5,"")) ->  | O9: =IF(VLOOKUP($D9,'1 класс'!$B$6:$O$36,COLUMN(I7),0)<1,"",IF(VLOOKUP($D9,'1 класс'!$B$6:$O$36,COLUMN(I7),0)<3,'1 класс'!J$5,"")) ->  | P9: =IF(VLOOKUP($D9,'1 класс'!$B$6:$O$36,COLUMN(J7),0)<1,"",IF(VLOOKUP($D9,'1 класс'!$B$6:$O$36,COLUMN(J7),0)<3,'1 класс'!K$5,"")) ->  | Q9: =IF(VLOOKUP($D9,'1 класс'!$B$6:$O$36,COLUMN(K7),0)<1,"",IF(VLOOKUP($D9,'1 класс'!$B$6:$O$36,COLUMN(K7),0)<3,'1 класс'!L$5,"")) -> 
C10: 8 | D10: =IFERROR(INDEX('1 класс'!$B$6:$B$25,SMALL(IF('1 класс'!$Q$6:$Q$25='1 клОтчет'!A$4,'1 класс'!$A$6:$A$25),'1 класс'!$A13)),"") ->  | H10: =IF(VLOOKUP($D10,'1 класс'!$B$6:$O$36,COLUMN(B8),0)<1,"",IF(VLOOKUP($D10,'1 класс'!$B$6:$O$36,COLUMN(B8),0)<3,'1 класс'!C$5,"")) ->  | I10: =IF(VLOOKUP($D10,'1 класс'!$B$6:$O$36,COLUMN(C8),0)<1,"",IF(VLOOKUP($D10,'1 класс'!$B$6:$O$36,COLUMN(C8),0)<3,'1 класс'!D$5,"")) ->  | J10: =IF(VLOOKUP($D10,'1 класс'!$B$6:$O$36,COLUMN(D8),0)<1,"",IF(VLOOKUP($D10,'1 класс'!$B$6:$O$36,COLUMN(D8),0)<3,'1 класс'!E$5,"")) ->  | K10: =IF(VLOOKUP($D10,'1 класс'!$B$6:$O$36,COLUMN(E8),0)<1,"",IF(VLOOKUP($D10,'1 класс'!$B$6:$O$36,COLUMN(E8),0)<3,'1 класс'!F$5,"")) ->  | L10: =IF(VLOOKUP($D10,'1 класс'!$B$6:$O$36,COLUMN(F8),0)<1,"",IF(VLOOKUP($D10,'1 класс'!$B$6:$O$36,COLUMN(F8),0)<3,'1 класс'!G$5,"")) ->  | M10: =IF(VLOOKUP($D10,'1 класс'!$B$6:$O$36,COLUMN(G8),0)<1,"",IF(VLOOKUP($D10,'1 класс'!$B$6:$O$36,COLUMN(G8),0)<3,'1 класс'!H$5,"")) ->  | N10: =IF(VLOOKUP($D10,'1 класс'!$B$6:$O$36,COLUMN(H8),0)<1,"",IF(VLOOKUP($D10,'1 класс'!$B$6:$O$36,COLUMN(H8),0)<3,'1 класс'!I$5,"")) ->  | O10: =IF(VLOOKUP($D10,'1 класс'!$B$6:$O$36,COLUMN(I8),0)<1,"",IF(VLOOKUP($D10,'1 класс'!$B$6:$O$36,COLUMN(I8),0)<3,'1 класс'!J$5,"")) ->  | P10: =IF(VLOOKUP($D10,'1 класс'!$B$6:$O$36,COLUMN(J8),0)<1,"",IF(VLOOKUP($D10,'1 класс'!$B$6:$O$36,COLUMN(J8),0)<3,'1 класс'!K$5,"")) ->  | Q10: =IF(VLOOKUP($D10,'1 класс'!$B$6:$O$36,COLUMN(K8),0)<1,"",IF(VLOOKUP($D10,'1 класс'!$B$6:$O$36,COLUMN(K8),0)<3,'1 класс'!L$5,"")) -> 
C11: 9 | D11: =IFERROR(INDEX('1 класс'!$B$6:$B$25,SMALL(IF('1 класс'!$Q$6:$Q$25='1 клОтчет'!A$4,'1 класс'!$A$6:$A$25),'1 класс'!$A14)),"") ->  | H11: =IF(VLOOKUP($D11,'1 класс'!$B$6:$O$36,COLUMN(B9),0)<1,"",IF(VLOOKUP($D11,'1 класс'!$B$6:$O$36,COLUMN(B9),0)<3,'1 класс'!C$5,"")) ->  | I11: =IF(VLOOKUP($D11,'1 класс'!$B$6:$O$36,COLUMN(C9),0)<1,"",IF(VLOOKUP($D11,'1 класс'!$B$6:$O$36,COLUMN(C9),0)<3,'1 класс'!D$5,"")) ->  | J11: =IF(VLOOKUP($D11,'1 класс'!$B$6:$O$36,COLUMN(D9),0)<1,"",IF(VLOOKUP($D11,'1 класс'!$B$6:$O$36,COLUMN(D9),0)<3,'1 класс'!E$5,"")) ->  | K11: =IF(VLOOKUP($D11,'1 класс'!$B$6:$O$36,COLUMN(E9),0)<1,"",IF(VLOOKUP($D11,'1 класс'!$B$6:$O$36,COLUMN(E9),0)<3,'1 класс'!F$5,"")) ->  | L11: =IF(VLOOKUP($D11,'1 класс'!$B$6:$O$36,COLUMN(F9),0)<1,"",IF(VLOOKUP($D11,'1 класс'!$B$6:$O$36,COLUMN(F9),0)<3,'1 класс'!G$5,"")) ->  | M11: =IF(VLOOKUP($D11,'1 класс'!$B$6:$O$36,COLUMN(G9),0)<1,"",IF(VLOOKUP($D11,'1 класс'!$B$6:$O$36,COLUMN(G9),0)<3,'1 класс'!H$5,"")) ->  | N11: =IF(VLOOKUP($D11,'1 класс'!$B$6:$O$36,COLUMN(H9),0)<1,"",IF(VLOOKUP($D11,'1 класс'!$B$6:$O$36,COLUMN(H9),0)<3,'1 класс'!I$5,"")) ->  | O11: =IF(VLOOKUP($D11,'1 класс'!$B$6:$O$36,COLUMN(I9),0)<1,"",IF(VLOOKUP($D11,'1 класс'!$B$6:$O$36,COLUMN(I9),0)<3,'1 класс'!J$5,"")) ->  | P11: =IF(VLOOKUP($D11,'1 класс'!$B$6:$O$36,COLUMN(J9),0)<1,"",IF(VLOOKUP($D11,'1 класс'!$B$6:$O$36,COLUMN(J9),0)<3,'1 класс'!K$5,"")) ->  | Q11: =IF(VLOOKUP($D11,'1 класс'!$B$6:$O$36,COLUMN(K9),0)<1,"",IF(VLOOKUP($D11,'1 класс'!$B$6:$O$36,COLUMN(K9),0)<3,'1 класс'!L$5,"")) -> 
C12: 10 | D12: =IFERROR(INDEX('1 класс'!$B$6:$B$25,SMALL(IF('1 класс'!$Q$6:$Q$25='1 клОтчет'!A$4,'1 класс'!$A$6:$A$25),'1 класс'!$A15)),"") ->  | H12: =IF(VLOOKUP($D12,'1 класс'!$B$6:$O$36,COLUMN(B10),0)<1,"",IF(VLOOKUP($D12,'1 класс'!$B$6:$O$36,COLUMN(B10),0)<3,'1 класс'!C$5,"")) ->  | I12: =IF(VLOOKUP($D12,'1 класс'!$B$6:$O$36,COLUMN(C10),0)<1,"",IF(VLOOKUP($D12,'1 класс'!$B$6:$O$36,COLUMN(C10),0)<3,'1 класс'!D$5,"")) ->  | J12: =IF(VLOOKUP($D12,'1 класс'!$B$6:$O$36,COLUMN(D10),0)<1,"",IF(VLOOKUP($D12,'1 класс'!$B$6:$O$36,COLUMN(D10),0)<3,'1 класс'!E$5,"")) ->  | K12: =IF(VLOOKUP($D12,'1 класс'!$B$6:$O$36,COLUMN(E10),0)<1,"",IF(VLOOKUP($D12,'1 класс'!$B$6:$O$36,COLUMN(E10),0)<3,'1 класс'!F$5,"")) ->  | L12: =IF(VLOOKUP($D12,'1 класс'!$B$6:$O$36,COLUMN(F10),0)<1,"",IF(VLOOKUP($D12,'1 класс'!$B$6:$O$36,COLUMN(F10),0)<3,'1 класс'!G$5,"")) ->  | M12: =IF(VLOOKUP($D12,'1 класс'!$B$6:$O$36,COLUMN(G10),0)<1,"",IF(VLOOKUP($D12,'1 класс'!$B$6:$O$36,COLUMN(G10),0)<3,'1 класс'!H$5,"")) ->  | N12: =IF(VLOOKUP($D12,'1 класс'!$B$6:$O$36,COLUMN(H10),0)<1,"",IF(VLOOKUP($D12,'1 класс'!$B$6:$O$36,COLUMN(H10),0)<3,'1 класс'!I$5,"")) ->  | O12: =IF(VLOOKUP($D12,'1 класс'!$B$6:$O$36,COLUMN(I10),0)<1,"",IF(VLOOKUP($D12,'1 класс'!$B$6:$O$36,COLUMN(I10),0)<3,'1 класс'!J$5,"")) ->  | P12: =IF(VLOOKUP($D12,'1 класс'!$B$6:$O$36,COLUMN(J10),0)<1,"",IF(VLOOKUP($D12,'1 класс'!$B$6:$O$36,COLUMN(J10),0)<3,'1 класс'!K$5,"")) ->  | Q12: =IF(VLOOKUP($D12,'1 класс'!$B$6:$O$36,COLUMN(K10),0)<1,"",IF(VLOOKUP($D12,'1 класс'!$B$6:$O$36,COLUMN(K10),0)<3,'1 класс'!L$5,"")) -> 
A13: Учатся на "4"и"5": | B13: =COUNTIF(D13:D22,"?*") -> 1 | C13: 1 | D13: =IFERROR(INDEX('1 класс'!$B$6:$B$25,SMALL(IF('1 класс'!$Q$6:$Q$25='1 клОтчет'!A$14,'1 класс'!$A$6:$A$25),'1 класс'!$A6)),"") -> Ткаченко Карина | H13: =IF(VLOOKUP($D13,'1 класс'!$B$6:$O$36,COLUMN(B11),0)<1,"",IF(VLOOKUP($D13,'1 класс'!$B$6:$O$36,COLUMN(B11),0)<3,'1 класс'!C$5,"")) ->  | I13: =IF(VLOOKUP($D13,'1 класс'!$B$6:$O$36,COLUMN(C11),0)<1,"",IF(VLOOKUP($D13,'1 класс'!$B$6:$O$36,COLUMN(C11),0)<3,'1 класс'!D$5,"")) ->  | J13: =IF(VLOOKUP($D13,'1 класс'!$B$6:$O$36,COLUMN(D11),0)<1,"",IF(VLOOKUP($D13,'1 класс'!$B$6:$O$36,COLUMN(D11),0)<3,'1 класс'!E$5,"")) ->  | K13: =IF(VLOOKUP($D13,'1 класс'!$B$6:$O$36,COLUMN(E11),0)<1,"",IF(VLOOKUP($D13,'1 класс'!$B$6:$O$36,COLUMN(E11),0)<3,'1 класс'!F$5,"")) ->  | L13: =IF(VLOOKUP($D13,'1 класс'!$B$6:$O$36,COLUMN(F11),0)<1,"",IF(VLOOKUP($D13,'1 класс'!$B$6:$O$36,COLUMN(F11),0)<3,'1 класс'!G$5,"")) ->  | M13: =IF(VLOOKUP($D13,'1 класс'!$B$6:$O$36,COLUMN(G11),0)<1,"",IF(VLOOKUP($D13,'1 класс'!$B$6:$O$36,COLUMN(G11),0)<3,'1 класс'!H$5,"")) ->  | N13: =IF(VLOOKUP($D13,'1 класс'!$B$6:$O$36,COLUMN(H11),0)<1,"",IF(VLOOKUP($D13,'1 класс'!$B$6:$O$36,COLUMN(H11),0)<3,'1 класс'!I$5,"")) ->  | O13: =IF(VLOOKUP($D13,'1 класс'!$B$6:$O$36,COLUMN(I11),0)<1,"",IF(VLOOKUP($D13,'1 класс'!$B$6:$O$36,COLUMN(I11),0)<3,'1 класс'!J$5,"")) ->  | P13: =IF(VLOOKUP($D13,'1 класс'!$B$6:$O$36,COLUMN(J11),0)<1,"",IF(VLOOKUP($D13,'1 класс'!$B$6:$O$36,COLUMN(J11),0)<3,'1 класс'!K$5,"")) ->  | Q13: =IF(VLOOKUP($D13,'1 класс'!$B$6:$O$36,COLUMN(K11),0)<1,"",IF(VLOOKUP($D13,'1 класс'!$B$6:$O$36,COLUMN(K11),0)<3,'1 класс'!L$5,"")) -> 
A14: 4 | C14: =C13+1 -> 2 | D14: =IFERROR(INDEX('1 класс'!$B$6:$B$25,SMALL(IF('1 класс'!$Q$6:$Q$25='1 клОтчет'!A$14,'1 класс'!$A$6:$A$25),'1 класс'!$A7)),"") ->  | H14: =IF(VLOOKUP($D14,'1 класс'!$B$6:$O$36,COLUMN(B12),0)<1,"",IF(VLOOKUP($D14,'1 класс'!$B$6:$O$36,COLUMN(B12),0)<3,'1 класс'!C$5,"")) ->  | I14: =IF(VLOOKUP($D14,'1 класс'!$B$6:$O$36,COLUMN(C12),0)<1,"",IF(VLOOKUP($D14,'1 класс'!$B$6:$O$36,COLUMN(C12),0)<3,'1 класс'!D$5,"")) ->  | J14: =IF(VLOOKUP($D14,'1 класс'!$B$6:$O$36,COLUMN(D12),0)<1,"",IF(VLOOKUP($D14,'1 класс'!$B$6:$O$36,COLUMN(D12),0)<3,'1 класс'!E$5,"")) ->  | K14: =IF(VLOOKUP($D14,'1 класс'!$B$6:$O$36,COLUMN(E12),0)<1,"",IF(VLOOKUP($D14,'1 класс'!$B$6:$O$36,COLUMN(E12),0)<3,'1 класс'!F$5,"")) ->  | L14: =IF(VLOOKUP($D14,'1 класс'!$B$6:$O$36,COLUMN(F12),0)<1,"",IF(VLOOKUP($D14,'1 класс'!$B$6:$O$36,COLUMN(F12),0)<3,'1 класс'!G$5,"")) ->  | M14: =IF(VLOOKUP($D14,'1 класс'!$B$6:$O$36,COLUMN(G12),0)<1,"",IF(VLOOKUP($D14,'1 класс'!$B$6:$O$36,COLUMN(G12),0)<3,'1 класс'!H$5,"")) ->  | N14: =IF(VLOOKUP($D14,'1 класс'!$B$6:$O$36,COLUMN(H12),0)<1,"",IF(VLOOKUP($D14,'1 класс'!$B$6:$O$36,COLUMN(H12),0)<3,'1 класс'!I$5,"")) ->  | O14: =IF(VLOOKUP($D14,'1 класс'!$B$6:$O$36,COLUMN(I12),0)<1,"",IF(VLOOKUP($D14,'1 класс'!$B$6:$O$36,COLUMN(I12),0)<3,'1 класс'!J$5,"")) ->  | P14: =IF(VLOOKUP($D14,'1 класс'!$B$6:$O$36,COLUMN(J12),0)<1,"",IF(VLOOKUP($D14,'1 класс'!$B$6:$O$36,COLUMN(J12),0)<3,'1 класс'!K$5,"")) ->  | Q14: =IF(VLOOKUP($D14,'1 класс'!$B$6:$O$36,COLUMN(K12),0)<1,"",IF(VLOOKUP($D14,'1 класс'!$B$6:$O$36,COLUMN(K12),0)<3,'1 класс'!L$5,"")) -> 
C15: =C14+1 -> 3 | D15: =IFERROR(INDEX('1 класс'!$B$6:$B$25,SMALL(IF('1 класс'!$Q$6:$Q$25='1 клОтчет'!A$14,'1 класс'!$A$6:$A$25),'1 класс'!$A8)),"") ->  | H15: =IF(VLOOKUP($D15,'1 класс'!$B$6:$O$36,COLUMN(B13),0)<1,"",IF(VLOOKUP($D15,'1 класс'!$B$6:$O$36,COLUMN(B13),0)<3,'1 класс'!C$5,"")) ->  | I15: =IF(VLOOKUP($D15,'1 класс'!$B$6:$O$36,COLUMN(C13),0)<1,"",IF(VLOOKUP($D15,'1 класс'!$B$6:$O$36,COLUMN(C13),0)<3,'1 класс'!D$5,"")) ->  | J15: =IF(VLOOKUP($D15,'1 класс'!$B$6:$O$36,COLUMN(D13),0)<1,"",IF(VLOOKUP($D15,'1 класс'!$B$6:$O$36,COLUMN(D13),0)<3,'1 класс'!E$5,"")) ->  | K15: =IF(VLOOKUP($D15,'1 класс'!$B$6:$O$36,COLUMN(E13),0)<1,"",IF(VLOOKUP($D15,'1 класс'!$B$6:$O$36,COLUMN(E13),0)<3,'1 класс'!F$5,"")) ->  | L15: =IF(VLOOKUP($D15,'1 класс'!$B$6:$O$36,COLUMN(F13),0)<1,"",IF(VLOOKUP($D15,'1 класс'!$B$6:$O$36,COLUMN(F13),0)<3,'1 класс'!G$5,"")) ->  | M15: =IF(VLOOKUP($D15,'1 класс'!$B$6:$O$36,COLUMN(G13),0)<1,"",IF(VLOOKUP($D15,'1 класс'!$B$6:$O$36,COLUMN(G13),0)<3,'1 класс'!H$5,"")) ->  | N15: =IF(VLOOKUP($D15,'1 класс'!$B$6:$O$36,COLUMN(H13),0)<1,"",IF(VLOOKUP($D15,'1 класс'!$B$6:$O$36,COLUMN(H13),0)<3,'1 класс'!I$5,"")) ->  | O15: =IF(VLOOKUP($D15,'1 класс'!$B$6:$O$36,COLUMN(I13),0)<1,"",IF(VLOOKUP($D15,'1 класс'!$B$6:$O$36,COLUMN(I13),0)<3,'1 класс'!J$5,"")) ->  | P15: =IF(VLOOKUP($D15,'1 класс'!$B$6:$O$36,COLUMN(J13),0)<1,"",IF(VLOOKUP($D15,'1 класс'!$B$6:$O$36,COLUMN(J13),0)<3,'1 класс'!K$5,"")) ->  | Q15: =IF(VLOOKUP($D15,'1 класс'!$B$6:$O$36,COLUMN(K13),0)<1,"",IF(VLOOKUP($D15,'1 класс'!$B$6:$O$36,COLUMN(K13),0)<3,'1 класс'!L$5,"")) -> 
C16: 4 | D16: =IFERROR(INDEX('1 класс'!$B$6:$B$25,SMALL(IF('1 класс'!$Q$6:$Q$25='1 клОтчет'!A$14,'1 класс'!$A$6:$A$25),'1 класс'!$A9)),"") ->  | H16: =IF(VLOOKUP($D16,'1 класс'!$B$6:$O$36,COLUMN(B14),0)<1,"",IF(VLOOKUP($D16,'1 класс'!$B$6:$O$36,COLUMN(B14),0)<3,'1 класс'!C$5,"")) ->  | I16: =IF(VLOOKUP($D16,'1 класс'!$B$6:$O$36,COLUMN(C14),0)<1,"",IF(VLOOKUP($D16,'1 класс'!$B$6:$O$36,COLUMN(C14),0)<3,'1 класс'!D$5,"")) ->  | J16: =IF(VLOOKUP($D16,'1 класс'!$B$6:$O$36,COLUMN(D14),0)<1,"",IF(VLOOKUP($D16,'1 класс'!$B$6:$O$36,COLUMN(D14),0)<3,'1 класс'!E$5,"")) ->  | K16: =IF(VLOOKUP($D16,'1 класс'!$B$6:$O$36,COLUMN(E14),0)<1,"",IF(VLOOKUP($D16,'1 класс'!$B$6:$O$36,COLUMN(E14),0)<3,'1 класс'!F$5,"")) ->  | L16: =IF(VLOOKUP($D16,'1 класс'!$B$6:$O$36,COLUMN(F14),0)<1,"",IF(VLOOKUP($D16,'1 класс'!$B$6:$O$36,COLUMN(F14),0)<3,'1 класс'!G$5,"")) ->  | M16: =IF(VLOOKUP($D16,'1 класс'!$B$6:$O$36,COLUMN(G14),0)<1,"",IF(VLOOKUP($D16,'1 класс'!$B$6:$O$36,COLUMN(G14),0)<3,'1 класс'!H$5,"")) ->  | N16: =IF(VLOOKUP($D16,'1 класс'!$B$6:$O$36,COLUMN(H14),0)<1,"",IF(VLOOKUP($D16,'1 класс'!$B$6:$O$36,COLUMN(H14),0)<3,'1 класс'!I$5,"")) ->  | O16: =IF(VLOOKUP($D16,'1 класс'!$B$6:$O$36,COLUMN(I14),0)<1,"",IF(VLOOKUP($D16,'1 класс'!$B$6:$O$36,COLUMN(I14),0)<3,'1 класс'!J$5,"")) ->  | P16: =IF(VLOOKUP($D16,'1 класс'!$B$6:$O$36,COLUMN(J14),0)<1,"",IF(VLOOKUP($D16,'1 класс'!$B$6:$O$36,COLUMN(J14),0)<3,'1 класс'!K$5,"")) ->  | Q16: =IF(VLOOKUP($D16,'1 класс'!$B$6:$O$36,COLUMN(K14),0)<1,"",IF(VLOOKUP($D16,'1 класс'!$B$6:$O$36,COLUMN(K14),0)<3,'1 класс'!L$5,"")) -> 
C17: 5 | D17: =IFERROR(INDEX('1 класс'!$B$6:$B$25,SMALL(IF('1 класс'!$Q$6:$Q$25='1 клОтчет'!A$14,'1 класс'!$A$6:$A$25),'1 класс'!$A10)),"") ->  | H17: =IF(VLOOKUP($D17,'1 класс'!$B$6:$O$36,COLUMN(B15),0)<1,"",IF(VLOOKUP($D17,'1 класс'!$B$6:$O$36,COLUMN(B15),0)<3,'1 класс'!C$5,"")) ->  | I17: =IF(VLOOKUP($D17,'1 класс'!$B$6:$O$36,COLUMN(C15),0)<1,"",IF(VLOOKUP($D17,'1 класс'!$B$6:$O$36,COLUMN(C15),0)<3,'1 класс'!D$5,"")) ->  | J17: =IF(VLOOKUP($D17,'1 класс'!$B$6:$O$36,COLUMN(D15),0)<1,"",IF(VLOOKUP($D17,'1 класс'!$B$6:$O$36,COLUMN(D15),0)<3,'1 класс'!E$5,"")) ->  | K17: =IF(VLOOKUP($D17,'1 класс'!$B$6:$O$36,COLUMN(E15),0)<1,"",IF(VLOOKUP($D17,'1 класс'!$B$6:$O$36,COLUMN(E15),0)<3,'1 класс'!F$5,"")) ->  | L17: =IF(VLOOKUP($D17,'1 класс'!$B$6:$O$36,COLUMN(F15),0)<1,"",IF(VLOOKUP($D17,'1 класс'!$B$6:$O$36,COLUMN(F15),0)<3,'1 класс'!G$5,"")) ->  | M17: =IF(VLOOKUP($D17,'1 класс'!$B$6:$O$36,COLUMN(G15),0)<1,"",IF(VLOOKUP($D17,'1 класс'!$B$6:$O$36,COLUMN(G15),0)<3,'1 класс'!H$5,"")) ->  | N17: =IF(VLOOKUP($D17,'1 класс'!$B$6:$O$36,COLUMN(H15),0)<1,"",IF(VLOOKUP($D17,'1 класс'!$B$6:$O$36,COLUMN(H15),0)<3,'1 класс'!I$5,"")) ->  | O17: =IF(VLOOKUP($D17,'1 класс'!$B$6:$O$36,COLUMN(I15),0)<1,"",IF(VLOOKUP($D17,'1 класс'!$B$6:$O$36,COLUMN(I15),0)<3,'1 класс'!J$5,"")) ->  | P17: =IF(VLOOKUP($D17,'1 класс'!$B$6:$O$36,COLUMN(J15),0)<1,"",IF(VLOOKUP($D17,'1 класс'!$B$6:$O$36,COLUMN(J15),0)<3,'1 класс'!K$5,"")) ->  | Q17: =IF(VLOOKUP($D17,'1 класс'!$B$6:$O$36,COLUMN(K15),0)<1,"",IF(VLOOKUP($D17,'1 класс'!$B$6:$O$36,COLUMN(K15),0)<3,'1 класс'!L$5,"")) -> 
C18: 6 | D18: =IFERROR(INDEX('1 класс'!$B$6:$B$25,SMALL(IF('1 класс'!$Q$6:$Q$25='1 клОтчет'!A$14,'1 класс'!$A$6:$A$25),'1 класс'!$A11)),"") ->  | H18: =IF(VLOOKUP($D18,'1 класс'!$B$6:$O$36,COLUMN(B16),0)<1,"",IF(VLOOKUP($D18,'1 класс'!$B$6:$O$36,COLUMN(B16),0)<3,'1 класс'!C$5,"")) ->  | I18: =IF(VLOOKUP($D18,'1 класс'!$B$6:$O$36,COLUMN(C16),0)<1,"",IF(VLOOKUP($D18,'1 класс'!$B$6:$O$36,COLUMN(C16),0)<3,'1 класс'!D$5,"")) ->  | J18: =IF(VLOOKUP($D18,'1 класс'!$B$6:$O$36,COLUMN(D16),0)<1,"",IF(VLOOKUP($D18,'1 класс'!$B$6:$O$36,COLUMN(D16),0)<3,'1 класс'!E$5,"")) ->  | K18: =IF(VLOOKUP($D18,'1 класс'!$B$6:$O$36,COLUMN(E16),0)<1,"",IF(VLOOKUP($D18,'1 класс'!$B$6:$O$36,COLUMN(E16),0)<3,'1 класс'!F$5,"")) ->  | L18: =IF(VLOOKUP($D18,'1 класс'!$B$6:$O$36,COLUMN(F16),0)<1,"",IF(VLOOKUP($D18,'1 класс'!$B$6:$O$36,COLUMN(F16),0)<3,'1 класс'!G$5,"")) ->  | M18: =IF(VLOOKUP($D18,'1 класс'!$B$6:$O$36,COLUMN(G16),0)<1,"",IF(VLOOKUP($D18,'1 класс'!$B$6:$O$36,COLUMN(G16),0)<3,'1 класс'!H$5,"")) ->  | N18: =IF(VLOOKUP($D18,'1 класс'!$B$6:$O$36,COLUMN(H16),0)<1,"",IF(VLOOKUP($D18,'1 класс'!$B$6:$O$36,COLUMN(H16),0)<3,'1 класс'!I$5,"")) ->  | O18: =IF(VLOOKUP($D18,'1 класс'!$B$6:$O$36,COLUMN(I16),0)<1,"",IF(VLOOKUP($D18,'1 класс'!$B$6:$O$36,COLUMN(I16),0)<3,'1 класс'!J$5,"")) ->  | P18: =IF(VLOOKUP($D18,'1 класс'!$B$6:$O$36,COLUMN(J16),0)<1,"",IF(VLOOKUP($D18,'1 класс'!$B$6:$O$36,COLUMN(J16),0)<3,'1 класс'!K$5,"")) ->  | Q18: =IF(VLOOKUP($D18,'1 класс'!$B$6:$O$36,COLUMN(K16),0)<1,"",IF(VLOOKUP($D18,'1 класс'!$B$6:$O$36,COLUMN(K16),0)<3,'1 класс'!L$5,"")) -> 
C19: 7 | D19: =IFERROR(INDEX('1 класс'!$B$6:$B$25,SMALL(IF('1 класс'!$Q$6:$Q$25='1 клОтчет'!A$14,'1 класс'!$A$6:$A$25),'1 класс'!$A12)),"") ->  | H19: =IF(VLOOKUP($D19,'1 класс'!$B$6:$O$36,COLUMN(B17),0)<1,"",IF(VLOOKUP($D19,'1 класс'!$B$6:$O$36,COLUMN(B17),0)<3,'1 класс'!C$5,"")) ->  | I19: =IF(VLOOKUP($D19,'1 класс'!$B$6:$O$36,COLUMN(C17),0)<1,"",IF(VLOOKUP($D19,'1 класс'!$B$6:$O$36,COLUMN(C17),0)<3,'1 класс'!D$5,"")) ->  | J19: =IF(VLOOKUP($D19,'1 класс'!$B$6:$O$36,COLUMN(D17),0)<1,"",IF(VLOOKUP($D19,'1 класс'!$B$6:$O$36,COLUMN(D17),0)<3,'1 класс'!E$5,"")) ->  | K19: =IF(VLOOKUP($D19,'1 класс'!$B$6:$O$36,COLUMN(E17),0)<1,"",IF(VLOOKUP($D19,'1 класс'!$B$6:$O$36,COLUMN(E17),0)<3,'1 класс'!F$5,"")) ->  | L19: =IF(VLOOKUP($D19,'1 класс'!$B$6:$O$36,COLUMN(F17),0)<1,"",IF(VLOOKUP($D19,'1 класс'!$B$6:$O$36,COLUMN(F17),0)<3,'1 класс'!G$5,"")) ->  | M19: =IF(VLOOKUP($D19,'1 класс'!$B$6:$O$36,COLUMN(G17),0)<1,"",IF(VLOOKUP($D19,'1 класс'!$B$6:$O$36,COLUMN(G17),0)<3,'1 класс'!H$5,"")) ->  | N19: =IF(VLOOKUP($D19,'1 класс'!$B$6:$O$36,COLUMN(H17),0)<1,"",IF(VLOOKUP($D19,'1 класс'!$B$6:$O$36,COLUMN(H17),0)<3,'1 класс'!I$5,"")) ->  | O19: =IF(VLOOKUP($D19,'1 класс'!$B$6:$O$36,COLUMN(I17),0)<1,"",IF(VLOOKUP($D19,'1 класс'!$B$6:$O$36,COLUMN(I17),0)<3,'1 класс'!J$5,"")) ->  | P19: =IF(VLOOKUP($D19,'1 класс'!$B$6:$O$36,COLUMN(J17),0)<1,"",IF(VLOOKUP($D19,'1 класс'!$B$6:$O$36,COLUMN(J17),0)<3,'1 класс'!K$5,"")) ->  | Q19: =IF(VLOOKUP($D19,'1 класс'!$B$6:$O$36,COLUMN(K17),0)<1,"",IF(VLOOKUP($D19,'1 класс'!$B$6:$O$36,COLUMN(K17),0)<3,'1 класс'!L$5,"")) -> 
C20: 8 | D20: =IFERROR(INDEX('1 класс'!$B$6:$B$25,SMALL(IF('1 класс'!$Q$6:$Q$25='1 клОтчет'!A$14,'1 класс'!$A$6:$A$25),'1 класс'!$A13)),"") ->  | H20: =IF(VLOOKUP($D20,'1 класс'!$B$6:$O$36,COLUMN(B18),0)<1,"",IF(VLOOKUP($D20,'1 класс'!$B$6:$O$36,COLUMN(B18),0)<3,'1 класс'!C$5,"")) ->  | I20: =IF(VLOOKUP($D20,'1 класс'!$B$6:$O$36,COLUMN(C18),0)<1,"",IF(VLOOKUP($D20,'1 класс'!$B$6:$O$36,COLUMN(C18),0)<3,'1 класс'!D$5,"")) ->  | J20: =IF(VLOOKUP($D20,'1 класс'!$B$6:$O$36,COLUMN(D18),0)<1,"",IF(VLOOKUP($D20,'1 класс'!$B$6:$O$36,COLUMN(D18),0)<3,'1 класс'!E$5,"")) ->  | K20: =IF(VLOOKUP($D20,'1 класс'!$B$6:$O$36,COLUMN(E18),0)<1,"",IF(VLOOKUP($D20,'1 класс'!$B$6:$O$36,COLUMN(E18),0)<3,'1 класс'!F$5,"")) ->  | L20: =IF(VLOOKUP($D20,'1 класс'!$B$6:$O$36,COLUMN(F18),0)<1,"",IF(VLOOKUP($D20,'1 класс'!$B$6:$O$36,COLUMN(F18),0)<3,'1 класс'!G$5,"")) ->  | M20: =IF(VLOOKUP($D20,'1 класс'!$B$6:$O$36,COLUMN(G18),0)<1,"",IF(VLOOKUP($D20,'1 класс'!$B$6:$O$36,COLUMN(G18),0)<3,'1 класс'!H$5,"")) ->  | N20: =IF(VLOOKUP($D20,'1 класс'!$B$6:$O$36,COLUMN(H18),0)<1,"",IF(VLOOKUP($D20,'1 класс'!$B$6:$O$36,COLUMN(H18),0)<3,'1 класс'!I$5,"")) ->  | O20: =IF(VLOOKUP($D20,'1 класс'!$B$6:$O$36,COLUMN(I18),0)<1,"",IF(VLOOKUP($D20,'1 класс'!$B$6:$O$36,COLUMN(I18),0)<3,'1 класс'!J$5,"")) ->  | P20: =IF(VLOOKUP($D20,'1 класс'!$B$6:$O$36,COLUMN(J18),0)<1,"",IF(VLOOKUP($D20,'1 класс'!$B$6:$O$36,COLUMN(J18),0)<3,'1 класс'!K$5,"")) ->  | Q20: =IF(VLOOKUP($D20,'1 класс'!$B$6:$O$36,COLUMN(K18),0)<1,"",IF(VLOOKUP($D20,'1 класс'!$B$6:$O$36,COLUMN(K18),0)<3,'1 класс'!L$5,"")) -> 
C21: 9 | D21: =IFERROR(INDEX('1 класс'!$B$6:$B$25,SMALL(IF('1 класс'!$Q$6:$Q$25='1 клОтчет'!A$14,'1 класс'!$A$6:$A$25),'1 класс'!$A14)),"") ->  | H21: =IF(VLOOKUP($D21,'1 класс'!$B$6:$O$36,COLUMN(B19),0)<1,"",IF(VLOOKUP($D21,'1 класс'!$B$6:$O$36,COLUMN(B19),0)<3,'1 класс'!C$5,"")) ->  | I21: =IF(VLOOKUP($D21,'1 класс'!$B$6:$O$36,COLUMN(C19),0)<1,"",IF(VLOOKUP($D21,'1 класс'!$B$6:$O$36,COLUMN(C19),0)<3,'1 класс'!D$5,"")) ->  | J21: =IF(VLOOKUP($D21,'1 класс'!$B$6:$O$36,COLUMN(D19),0)<1,"",IF(VLOOKUP($D21,'1 класс'!$B$6:$O$36,COLUMN(D19),0)<3,'1 класс'!E$5,"")) ->  | K21: =IF(VLOOKUP($D21,'1 класс'!$B$6:$O$36,COLUMN(E19),0)<1,"",IF(VLOOKUP($D21,'1 класс'!$B$6:$O$36,COLUMN(E19),0)<3,'1 класс'!F$5,"")) ->  | L21: =IF(VLOOKUP($D21,'1 класс'!$B$6:$O$36,COLUMN(F19),0)<1,"",IF(VLOOKUP($D21,'1 класс'!$B$6:$O$36,COLUMN(F19),0)<3,'1 класс'!G$5,"")) ->  | M21: =IF(VLOOKUP($D21,'1 класс'!$B$6:$O$36,COLUMN(G19),0)<1,"",IF(VLOOKUP($D21,'1 класс'!$B$6:$O$36,COLUMN(G19),0)<3,'1 класс'!H$5,"")) ->  | N21: =IF(VLOOKUP($D21,'1 класс'!$B$6:$O$36,COLUMN(H19),0)<1,"",IF(VLOOKUP($D21,'1 класс'!$B$6:$O$36,COLUMN(H19),0)<3,'1 класс'!I$5,"")) ->  | O21: =IF(VLOOKUP($D21,'1 класс'!$B$6:$O$36,COLUMN(I19),0)<1,"",IF(VLOOKUP($D21,'1 класс'!$B$6:$O$36,COLUMN(I19),0)<3,'1 класс'!J$5,"")) ->  | P21: =IF(VLOOKUP($D21,'1 класс'!$B$6:$O$36,COLUMN(J19),0)<1,"",IF(VLOOKUP($D21,'1 класс'!$B$6:$O$36,COLUMN(J19),0)<3,'1 класс'!K$5,"")) ->  | Q21: =IF(VLOOKUP($D21,'1 класс'!$B$6:$O$36,COLUMN(K19),0)<1,"",IF(VLOOKUP($D21,'1 класс'!$B$6:$O$36,COLUMN(K19),0)<3,'1 класс'!L$5,"")) -> 
C22: =C21+1 -> 10 | D22: =IFERROR(INDEX('1 класс'!$B$6:$B$25,SMALL(IF('1 класс'!$Q$6:$Q$25='1 клОтчет'!A$14,'1 класс'!$A$6:$A$25),'1 класс'!$A15)),"") ->  | H22: =IF(VLOOKUP($D22,'1 класс'!$B$6:$O$36,COLUMN(B20),0)<1,"",IF(VLOOKUP($D22,'1 класс'!$B$6:$O$36,COLUMN(B20),0)<3,'1 класс'!C$5,"")) ->  | I22: =IF(VLOOKUP($D22,'1 класс'!$B$6:$O$36,COLUMN(C20),0)<1,"",IF(VLOOKUP($D22,'1 класс'!$B$6:$O$36,COLUMN(C20),0)<3,'1 класс'!D$5,"")) ->  | J22: =IF(VLOOKUP($D22,'1 класс'!$B$6:$O$36,COLUMN(D20),0)<1,"",IF(VLOOKUP($D22,'1 класс'!$B$6:$O$36,COLUMN(D20),0)<3,'1 класс'!E$5,"")) ->  | K22: =IF(VLOOKUP($D22,'1 класс'!$B$6:$O$36,COLUMN(E20),0)<1,"",IF(VLOOKUP($D22,'1 класс'!$B$6:$O$36,COLUMN(E20),0)<3,'1 класс'!F$5,"")) ->  | L22: =IF(VLOOKUP($D22,'1 класс'!$B$6:$O$36,COLUMN(F20),0)<1,"",IF(VLOOKUP($D22,'1 класс'!$B$6:$O$36,COLUMN(F20),0)<3,'1 класс'!G$5,"")) ->  | M22: =IF(VLOOKUP($D22,'1 класс'!$B$6:$O$36,COLUMN(G20),0)<1,"",IF(VLOOKUP($D22,'1 класс'!$B$6:$O$36,COLUMN(G20),0)<3,'1 класс'!H$5,"")) ->  | N22: =IF(VLOOKUP($D22,'1 класс'!$B$6:$O$36,COLUMN(H20),0)<1,"",IF(VLOOKUP($D22,'1 класс'!$B$6:$O$36,COLUMN(H20),0)<3,'1 класс'!I$5,"")) ->  | O22: =IF(VLOOKUP($D22,'1 класс'!$B$6:$O$36,COLUMN(I20),0)<1,"",IF(VLOOKUP($D22,'1 класс'!$B$6:$O$36,COLUMN(I20),0)<3,'1 класс'!J$5,"")) ->  | P22: =IF(VLOOKUP($D22,'1 класс'!$B$6:$O$36,COLUMN(J20),0)<1,"",IF(VLOOKUP($D22,'1 класс'!$B$6:$O$36,COLUMN(J20),0)<3,'1 класс'!K$5,"")) ->  | Q22: =IF(VLOOKUP($D22,'1 класс'!$B$6:$O$36,COLUMN(K20),0)<1,"",IF(VLOOKUP($D22,'1 класс'!$B$6:$O$36,COLUMN(K20),0)<3,'1 класс'!L$5,"")) -> 
A23: Не успевают: | B23: =COUNTIF(D23:D27,"?*") -> 2 | C23: 1 | D23: =IFERROR(INDEX('1 класс'!$B$6:$B$25,SMALL(IF('1 класс'!$Q$6:$Q$25='1 клОтчет'!A$24,'1 класс'!$A$6:$A$25),'1 класс'!$A6)),"") -> Богомолов Андрей | E23: Казахский язык, Технология | H23: =IF(VLOOKUP($D23,'1 класс'!$B$6:$O$36,COLUMN(B21),0)<1,"",IF(VLOOKUP($D23,'1 класс'!$B$6:$O$36,COLUMN(B21),0)<3,'1 класс'!C$5,"")) -> Казахский язык | I23: =IF(VLOOKUP($D23,'1 класс'!$B$6:$O$36,COLUMN(C21),0)<1,"",IF(VLOOKUP($D23,'1 класс'!$B$6:$O$36,COLUMN(C21),0)<3,'1 класс'!D$5,"")) ->  | J23: =IF(VLOOKUP($D23,'1 класс'!$B$6:$O$36,COLUMN(D21),0)<1,"",IF(VLOOKUP($D23,'1 класс'!$B$6:$O$36,COLUMN(D21),0)<3,'1 класс'!E$5,"")) ->  | K23: =IF(VLOOKUP($D23,'1 класс'!$B$6:$O$36,COLUMN(E21),0)<1,"",IF(VLOOKUP($D23,'1 класс'!$B$6:$O$36,COLUMN(E21),0)<3,'1 класс'!F$5,"")) ->  | L23: =IF(VLOOKUP($D23,'1 класс'!$B$6:$O$36,COLUMN(F21),0)<1,"",IF(VLOOKUP($D23,'1 класс'!$B$6:$O$36,COLUMN(F21),0)<3,'1 класс'!G$5,"")) ->  | M23: =IF(VLOOKUP($D23,'1 класс'!$B$6:$O$36,COLUMN(G21),0)<1,"",IF(VLOOKUP($D23,'1 класс'!$B$6:$O$36,COLUMN(G21),0)<3,'1 класс'!H$5,"")) ->  | N23: =IF(VLOOKUP($D23,'1 класс'!$B$6:$O$36,COLUMN(H21),0)<1,"",IF(VLOOKUP($D23,'1 класс'!$B$6:$O$36,COLUMN(H21),0)<3,'1 класс'!I$5,"")) ->  | O23: =IF(VLOOKUP($D23,'1 класс'!$B$6:$O$36,COLUMN(I21),0)<1,"",IF(VLOOKUP($D23,'1 класс'!$B$6:$O$36,COLUMN(I21),0)<3,'1 класс'!J$5,"")) -> Технология | P23: =IF(VLOOKUP($D23,'1 класс'!$B$6:$O$36,COLUMN(J21),0)<1,"",IF(VLOOKUP($D23,'1 класс'!$B$6:$O$36,COLUMN(J21),0)<3,'1 класс'!K$5,"")) ->  | Q23: =IF(VLOOKUP($D23,'1 класс'!$B$6:$O$36,COLUMN(K21),0)<1,"",IF(VLOOKUP($D23,'1 класс'!$B$6:$O$36,COLUMN(K21),0)<3,'1 класс'!L$5,"")) -> 
A24: 2 | C24: 2 | D24: =IFERROR(INDEX('1 класс'!$B$6:$B$25,SMALL(IF('1 класс'!$Q$6:$Q$25='1 клОтчет'!A$24,'1 класс'!$A$6:$A$25),'1 класс'!$A7)),"") -> Санников Юрий | E24: Математика | H24: =IF(VLOOKUP($D24,'1 класс'!$B$6:$O$36,COLUMN(B22),0)<1,"",IF(VLOOKUP($D24,'1 класс'!$B$6:$O$36,COLUMN(B22),0)<3,'1 класс'!C$5,"")) ->  | I24: =IF(VLOOKUP($D24,'1 класс'!$B$6:$O$36,COLUMN(C22),0)<1,"",IF(VLOOKUP($D24,'1 класс'!$B$6:$O$36,COLUMN(C22),0)<3,'1 класс'!D$5,"")) ->  | J24: =IF(VLOOKUP($D24,'1 класс'!$B$6:$O$36,COLUMN(D22),0)<1,"",IF(VLOOKUP($D24,'1 класс'!$B$6:$O$36,COLUMN(D22),0)<3,'1 класс'!E$5,"")) ->  | K24: =IF(VLOOKUP($D24,'1 класс'!$B$6:$O$36,COLUMN(E22),0)<1,"",IF(VLOOKUP($D24,'1 класс'!$B$6:$O$36,COLUMN(E22),0)<3,'1 класс'!F$5,"")) -> Математика | L24: =IF(VLOOKUP($D24,'1 класс'!$B$6:$O$36,COLUMN(F22),0)<1,"",IF(VLOOKUP($D24,'1 класс'!$B$6:$O$36,COLUMN(F22),0)<3,'1 класс'!G$5,"")) ->  | M24: =IF(VLOOKUP($D24,'1 класс'!$B$6:$O$36,COLUMN(G22),0)<1,"",IF(VLOOKUP($D24,'1 класс'!$B$6:$O$36,COLUMN(G22),0)<3,'1 класс'!H$5,"")) ->  | N24: =IF(VLOOKUP($D24,'1 класс'!$B$6:$O$36,COLUMN(H22),0)<1,"",IF(VLOOKUP($D24,'1 класс'!$B$6:$O$36,COLUMN(H22),0)<3,'1 класс'!I$5,"")) ->  | O24: =IF(VLOOKUP($D24,'1 класс'!$B$6:$O$36,COLUMN(I22),0)<1,"",IF(VLOOKUP($D24,'1 класс'!$B$6:$O$36,COLUMN(I22),0)<3,'1 класс'!J$5,"")) ->  | P24: =IF(VLOOKUP($D24,'1 класс'!$B$6:$O$36,COLUMN(J22),0)<1,"",IF(VLOOKUP($D24,'1 класс'!$B$6:$O$36,COLUMN(J22),0)<3,'1 класс'!K$5,"")) ->  | Q24: =IF(VLOOKUP($D24,'1 класс'!$B$6:$O$36,COLUMN(K22),0)<1,"",IF(VLOOKUP($D24,'1 класс'!$B$6:$O$36,COLUMN(K22),0)<3,'1 класс'!L$5,"")) -> 
C25: 3 | D25: =IFERROR(INDEX('1 класс'!$B$6:$B$25,SMALL(IF('1 класс'!$Q$6:$Q$25='1 клОтчет'!A$24,'1 класс'!$A$6:$A$25),'1 класс'!$A8)),"") ->  | H25: =IF(VLOOKUP($D25,'1 класс'!$B$6:$O$36,COLUMN(B23),0)<1,"",IF(VLOOKUP($D25,'1 класс'!$B$6:$O$36,COLUMN(B23),0)<3,'1 класс'!C$5,"")) ->  | I25: =IF(VLOOKUP($D25,'1 класс'!$B$6:$O$36,COLUMN(C23),0)<1,"",IF(VLOOKUP($D25,'1 класс'!$B$6:$O$36,COLUMN(C23),0)<3,'1 класс'!D$5,"")) ->  | J25: =IF(VLOOKUP($D25,'1 класс'!$B$6:$O$36,COLUMN(D23),0)<1,"",IF(VLOOKUP($D25,'1 класс'!$B$6:$O$36,COLUMN(D23),0)<3,'1 класс'!E$5,"")) ->  | K25: =IF(VLOOKUP($D25,'1 класс'!$B$6:$O$36,COLUMN(E23),0)<1,"",IF(VLOOKUP($D25,'1 класс'!$B$6:$O$36,COLUMN(E23),0)<3,'1 класс'!F$5,"")) ->  | L25: =IF(VLOOKUP($D25,'1 класс'!$B$6:$O$36,COLUMN(F23),0)<1,"",IF(VLOOKUP($D25,'1 класс'!$B$6:$O$36,COLUMN(F23),0)<3,'1 класс'!G$5,"")) ->  | M25: =IF(VLOOKUP($D25,'1 класс'!$B$6:$O$36,COLUMN(G23),0)<1,"",IF(VLOOKUP($D25,'1 класс'!$B$6:$O$36,COLUMN(G23),0)<3,'1 класс'!H$5,"")) ->  | N25: =IF(VLOOKUP($D25,'1 класс'!$B$6:$O$36,COLUMN(H23),0)<1,"",IF(VLOOKUP($D25,'1 класс'!$B$6:$O$36,COLUMN(H23),0)<3,'1 класс'!I$5,"")) ->  | O25: =IF(VLOOKUP($D25,'1 класс'!$B$6:$O$36,COLUMN(I23),0)<1,"",IF(VLOOKUP($D25,'1 класс'!$B$6:$O$36,COLUMN(I23),0)<3,'1 класс'!J$5,"")) ->  | P25: =IF(VLOOKUP($D25,'1 класс'!$B$6:$O$36,COLUMN(J23),0)<1,"",IF(VLOOKUP($D25,'1 класс'!$B$6:$O$36,COLUMN(J23),0)<3,'1 класс'!K$5,"")) ->  | Q25: =IF(VLOOKUP($D25,'1 класс'!$B$6:$O$36,COLUMN(K23),0)<1,"",IF(VLOOKUP($D25,'1 класс'!$B$6:$O$36,COLUMN(K23),0)<3,'1 класс'!L$5,"")) -> 
C26: 4 | D26: =IFERROR(INDEX('1 класс'!$B$6:$B$25,SMALL(IF('1 класс'!$Q$6:$Q$25='1 клОтчет'!A$24,'1 класс'!$A$6:$A$25),'1 класс'!$A9)),"") ->  | H26: =IF(VLOOKUP($D26,'1 класс'!$B$6:$O$36,COLUMN(B24),0)<1,"",IF(VLOOKUP($D26,'1 класс'!$B$6:$O$36,COLUMN(B24),0)<3,'1 класс'!C$5,"")) ->  | I26: =IF(VLOOKUP($D26,'1 класс'!$B$6:$O$36,COLUMN(C24),0)<1,"",IF(VLOOKUP($D26,'1 класс'!$B$6:$O$36,COLUMN(C24),0)<3,'1 класс'!D$5,"")) ->  | J26: =IF(VLOOKUP($D26,'1 класс'!$B$6:$O$36,COLUMN(D24),0)<1,"",IF(VLOOKUP($D26,'1 класс'!$B$6:$O$36,COLUMN(D24),0)<3,'1 класс'!E$5,"")) ->  | K26: =IF(VLOOKUP($D26,'1 класс'!$B$6:$O$36,COLUMN(E24),0)<1,"",IF(VLOOKUP($D26,'1 класс'!$B$6:$O$36,COLUMN(E24),0)<3,'1 класс'!F$5,"")) ->  | L26: =IF(VLOOKUP($D26,'1 класс'!$B$6:$O$36,COLUMN(F24),0)<1,"",IF(VLOOKUP($D26,'1 класс'!$B$6:$O$36,COLUMN(F24),0)<3,'1 класс'!G$5,"")) ->  | M26: =IF(VLOOKUP($D26,'1 класс'!$B$6:$O$36,COLUMN(G24),0)<1,"",IF(VLOOKUP($D26,'1 класс'!$B$6:$O$36,COLUMN(G24),0)<3,'1 класс'!H$5,"")) ->  | N26: =IF(VLOOKUP($D26,'1 класс'!$B$6:$O$36,COLUMN(H24),0)<1,"",IF(VLOOKUP($D26,'1 класс'!$B$6:$O$36,COLUMN(H24),0)<3,'1 класс'!I$5,"")) ->  | O26: =IF(VLOOKUP($D26,'1 класс'!$B$6:$O$36,COLUMN(I24),0)<1,"",IF(VLOOKUP($D26,'1 класс'!$B$6:$O$36,COLUMN(I24),0)<3,'1 класс'!J$5,"")) ->  | P26: =IF(VLOOKUP($D26,'1 класс'!$B$6:$O$36,COLUMN(J24),0)<1,"",IF(VLOOKUP($D26,'1 класс'!$B$6:$O$36,COLUMN(J24),0)<3,'1 класс'!K$5,"")) ->  | Q26: =IF(VLOOKUP($D26,'1 класс'!$B$6:$O$36,COLUMN(K24),0)<1,"",IF(VLOOKUP($D26,'1 класс'!$B$6:$O$36,COLUMN(K24),0)<3,'1 класс'!L$5,"")) -> 
C27: 5 | D27: =IFERROR(INDEX('1 класс'!$B$6:$B$25,SMALL(IF('1 класс'!$Q$6:$Q$25='1 клОтчет'!A$24,'1 класс'!$A$6:$A$25),'1 класс'!$A10)),"") ->  | H27: =IF(VLOOKUP($D27,'1 класс'!$B$6:$O$36,COLUMN(B25),0)<1,"",IF(VLOOKUP($D27,'1 класс'!$B$6:$O$36,COLUMN(B25),0)<3,'1 класс'!C$5,"")) ->  | I27: =IF(VLOOKUP($D27,'1 класс'!$B$6:$O$36,COLUMN(C25),0)<1,"",IF(VLOOKUP($D27,'1 класс'!$B$6:$O$36,COLUMN(C25),0)<3,'1 класс'!D$5,"")) ->  | J27: =IF(VLOOKUP($D27,'1 класс'!$B$6:$O$36,COLUMN(D25),0)<1,"",IF(VLOOKUP($D27,'1 класс'!$B$6:$O$36,COLUMN(D25),0)<3,'1 класс'!E$5,"")) ->  | K27: =IF(VLOOKUP($D27,'1 класс'!$B$6:$O$36,COLUMN(E25),0)<1,"",IF(VLOOKUP($D27,'1 класс'!$B$6:$O$36,COLUMN(E25),0)<3,'1 класс'!F$5,"")) ->  | L27: =IF(VLOOKUP($D27,'1 класс'!$B$6:$O$36,COLUMN(F25),0)<1,"",IF(VLOOKUP($D27,'1 класс'!$B$6:$O$36,COLUMN(F25),0)<3,'1 класс'!G$5,"")) ->  | M27: =IF(VLOOKUP($D27,'1 класс'!$B$6:$O$36,COLUMN(G25),0)<1,"",IF(VLOOKUP($D27,'1 класс'!$B$6:$O$36,COLUMN(G25),0)<3,'1 класс'!H$5,"")) ->  | N27: =IF(VLOOKUP($D27,'1 класс'!$B$6:$O$36,COLUMN(H25),0)<1,"",IF(VLOOKUP($D27,'1 класс'!$B$6:$O$36,COLUMN(H25),0)<3,'1 класс'!I$5,"")) ->  | O27: =IF(VLOOKUP($D27,'1 класс'!$B$6:$O$36,COLUMN(I25),0)<1,"",IF(VLOOKUP($D27,'1 класс'!$B$6:$O$36,COLUMN(I25),0)<3,'1 класс'!J$5,"")) ->  | P27: =IF(VLOOKUP($D27,'1 класс'!$B$6:$O$36,COLUMN(J25),0)<1,"",IF(VLOOKUP($D27,'1 класс'!$B$6:$O$36,COLUMN(J25),0)<3,'1 класс'!K$5,"")) ->  | Q27: =IF(VLOOKUP($D27,'1 класс'!$B$6:$O$36,COLUMN(K25),0)<1,"",IF(VLOOKUP($D27,'1 класс'!$B$6:$O$36,COLUMN(K25),0)<3,'1 класс'!L$5,"")) -> 
A28: Не аттестованы: | B28: =COUNTIF(D28:D30,"?*") -> 2 | C28: 1 | D28: =IFERROR(INDEX('1 класс'!$B$6:$B$25,SMALL(IF('1 класс'!$Q$6:$Q$25='1 клОтчет'!A$29,'1 класс'!$A$6:$A$25),'1 класс'!$A6)),"") -> Дель Дмитрий | E28: ИЗО | H28: =IF(VLOOKUP($D28,'1 класс'!$B$6:$O$36,COLUMN(B26),0)<1,"",IF(VLOOKUP($D28,'1 класс'!$B$6:$O$36,COLUMN(B26),0)<3,'1 класс'!C$5,"")) ->  | I28: =IF(VLOOKUP($D28,'1 класс'!$B$6:$O$36,COLUMN(C26),0)<1,"",IF(VLOOKUP($D28,'1 класс'!$B$6:$O$36,COLUMN(C26),0)<3,'1 класс'!D$5,"")) ->  | J28: =IF(VLOOKUP($D28,'1 класс'!$B$6:$O$36,COLUMN(D26),0)<1,"",IF(VLOOKUP($D28,'1 класс'!$B$6:$O$36,COLUMN(D26),0)<3,'1 класс'!E$5,"")) ->  | K28: =IF(VLOOKUP($D28,'1 класс'!$B$6:$O$36,COLUMN(E26),0)<1,"",IF(VLOOKUP($D28,'1 класс'!$B$6:$O$36,COLUMN(E26),0)<3,'1 класс'!F$5,"")) ->  | L28: =IF(VLOOKUP($D28,'1 класс'!$B$6:$O$36,COLUMN(F26),0)<1,"",IF(VLOOKUP($D28,'1 класс'!$B$6:$O$36,COLUMN(F26),0)<3,'1 класс'!G$5,"")) ->  | M28: =IF(VLOOKUP($D28,'1 класс'!$B$6:$O$36,COLUMN(G26),0)<1,"",IF(VLOOKUP($D28,'1 класс'!$B$6:$O$36,COLUMN(G26),0)<3,'1 класс'!H$5,"")) ->  | N28: =IF(VLOOKUP($D28,'1 класс'!$B$6:$O$36,COLUMN(H26),0)<1,"",IF(VLOOKUP($D28,'1 класс'!$B$6:$O$36,COLUMN(H26),0)<3,'1 класс'!I$5,"")) -> ИЗО | O28: =IF(VLOOKUP($D28,'1 класс'!$B$6:$O$36,COLUMN(I26),0)<1,"",IF(VLOOKUP($D28,'1 класс'!$B$6:$O$36,COLUMN(I26),0)<3,'1 класс'!J$5,"")) ->  | P28: =IF(VLOOKUP($D28,'1 класс'!$B$6:$O$36,COLUMN(J26),0)<1,"",IF(VLOOKUP($D28,'1 класс'!$B$6:$O$36,COLUMN(J26),0)<3,'1 класс'!K$5,"")) ->  | Q28: =IF(VLOOKUP($D28,'1 класс'!$B$6:$O$36,COLUMN(K26),0)<1,"",IF(VLOOKUP($D28,'1 класс'!$B$6:$O$36,COLUMN(K26),0)<3,'1 класс'!L$5,"")) -> 
A29: 1 | C29: 2 | D29: =IFERROR(INDEX('1 класс'!$B$6:$B$25,SMALL(IF('1 класс'!$Q$6:$Q$25='1 клОтчет'!A$29,'1 класс'!$A$6:$A$25),'1 класс'!$A7)),"") -> Шевченко Максим | E29: Музыка | H29: =IF(VLOOKUP($D29,'1 класс'!$B$6:$O$36,COLUMN(B27),0)<1,"",IF(VLOOKUP($D29,'1 класс'!$B$6:$O$36,COLUMN(B27),0)<3,'1 класс'!C$5,"")) ->  | I29: =IF(VLOOKUP($D29,'1 класс'!$B$6:$O$36,COLUMN(C27),0)<1,"",IF(VLOOKUP($D29,'1 класс'!$B$6:$O$36,COLUMN(C27),0)<3,'1 класс'!D$5,"")) ->  | J29: =IF(VLOOKUP($D29,'1 класс'!$B$6:$O$36,COLUMN(D27),0)<1,"",IF(VLOOKUP($D29,'1 класс'!$B$6:$O$36,COLUMN(D27),0)<3,'1 класс'!E$5,"")) ->  | K29: =IF(VLOOKUP($D29,'1 класс'!$B$6:$O$36,COLUMN(E27),0)<1,"",IF(VLOOKUP($D29,'1 класс'!$B$6:$O$36,COLUMN(E27),0)<3,'1 класс'!F$5,"")) ->  | L29: =IF(VLOOKUP($D29,'1 класс'!$B$6:$O$36,COLUMN(F27),0)<1,"",IF(VLOOKUP($D29,'1 класс'!$B$6:$O$36,COLUMN(F27),0)<3,'1 класс'!G$5,"")) ->  | M29: =IF(VLOOKUP($D29,'1 класс'!$B$6:$O$36,COLUMN(G27),0)<1,"",IF(VLOOKUP($D29,'1 класс'!$B$6:$O$36,COLUMN(G27),0)<3,'1 класс'!H$5,"")) -> Музыка | N29: =IF(VLOOKUP($D29,'1 класс'!$B$6:$O$36,COLUMN(H27),0)<1,"",IF(VLOOKUP($D29,'1 класс'!$B$6:$O$36,COLUMN(H27),0)<3,'1 класс'!I$5,"")) ->  | O29: =IF(VLOOKUP($D29,'1 класс'!$B$6:$O$36,COLUMN(I27),0)<1,"",IF(VLOOKUP($D29,'1 класс'!$B$6:$O$36,COLUMN(I27),0)<3,'1 класс'!J$5,"")) ->  | P29: =IF(VLOOKUP($D29,'1 класс'!$B$6:$O$36,COLUMN(J27),0)<1,"",IF(VLOOKUP($D29,'1 класс'!$B$6:$O$36,COLUMN(J27),0)<3,'1 класс'!K$5,"")) ->  | Q29: =IF(VLOOKUP($D29,'1 класс'!$B$6:$O$36,COLUMN(K27),0)<1,"",IF(VLOOKUP($D29,'1 класс'!$B$6:$O$36,COLUMN(K27),0)<3,'1 класс'!L$5,"")) -> 
C30: 3 | D30: =IFERROR(INDEX('1 класс'!$B$6:$B$25,SMALL(IF('1 класс'!$Q$6:$Q$25='1 клОтчет'!A$29,'1 класс'!$A$6:$A$25),'1 класс'!$A8)),"") ->  | H30: =IF(VLOOKUP($D30,'1 класс'!$B$6:$O$36,COLUMN(B28),0)<1,"",IF(VLOOKUP($D30,'1 класс'!$B$6:$O$36,COLUMN(B28),0)<3,'1 класс'!C$5,"")) ->  | I30: =IF(VLOOKUP($D30,'1 класс'!$B$6:$O$36,COLUMN(C28),0)<1,"",IF(VLOOKUP($D30,'1 класс'!$B$6:$O$36,COLUMN(C28),0)<3,'1 класс'!D$5,"")) ->  | J30: =IF(VLOOKUP($D30,'1 класс'!$B$6:$O$36,COLUMN(D28),0)<1,"",IF(VLOOKUP($D30,'1 класс'!$B$6:$O$36,COLUMN(D28),0)<3,'1 класс'!E$5,"")) ->  | K30: =IF(VLOOKUP($D30,'1 класс'!$B$6:$O$36,COLUMN(E28),0)<1,"",IF(VLOOKUP($D30,'1 класс'!$B$6:$O$36,COLUMN(E28),0)<3,'1 класс'!F$5,"")) ->  | L30: =IF(VLOOKUP($D30,'1 класс'!$B$6:$O$36,COLUMN(F28),0)<1,"",IF(VLOOKUP($D30,'1 класс'!$B$6:$O$36,COLUMN(F28),0)<3,'1 класс'!G$5,"")) ->  | M30: =IF(VLOOKUP($D30,'1 класс'!$B$6:$O$36,COLUMN(G28),0)<1,"",IF(VLOOKUP($D30,'1 класс'!$B$6:$O$36,COLUMN(G28),0)<3,'1 класс'!H$5,"")) ->  | N30: =IF(VLOOKUP($D30,'1 класс'!$B$6:$O$36,COLUMN(H28),0)<1,"",IF(VLOOKUP($D30,'1 класс'!$B$6:$O$36,COLUMN(H28),0)<3,'1 класс'!I$5,"")) ->  | O30: =IF(VLOOKUP($D30,'1 класс'!$B$6:$O$36,COLUMN(I28),0)<1,"",IF(VLOOKUP($D30,'1 класс'!$B$6:$O$36,COLUMN(I28),0)<3,'1 класс'!J$5,"")) ->  | P30: =IF(VLOOKUP($D30,'1 класс'!$B$6:$O$36,COLUMN(J28),0)<1,"",IF(VLOOKUP($D30,'1 класс'!$B$6:$O$36,COLUMN(J28),0)<3,'1 класс'!K$5,"")) ->  | Q30: =IF(VLOOKUP($D30,'1 класс'!$B$6:$O$36,COLUMN(K28),0)<1,"",IF(VLOOKUP($D30,'1 класс'!$B$6:$O$36,COLUMN(K28),0)<3,'1 класс'!L$5,"")) -> 
A31: Освобождены: | B31: =COUNTIF(D31:D33,"?*") -> 0 | C31: 1 | D31: =IFERROR(INDEX('1 класс'!$B$6:$B$25,SMALL(IF('1 класс'!$Q$6:$Q$25='1 клОтчет'!A$32,'1 класс'!$A$6:$A$25),'1 класс'!$A6)),"") ->  | H31: =IF(VLOOKUP($D31,'1 класс'!$B$6:$O$36,COLUMN(B29),0)<1,"",IF(VLOOKUP($D31,'1 класс'!$B$6:$O$36,COLUMN(B29),0)<3,'1 класс'!C$5,"")) ->  | I31: =IF(VLOOKUP($D31,'1 класс'!$B$6:$O$36,COLUMN(C29),0)<1,"",IF(VLOOKUP($D31,'1 класс'!$B$6:$O$36,COLUMN(C29),0)<3,'1 класс'!D$5,"")) ->  | J31: =IF(VLOOKUP($D31,'1 класс'!$B$6:$O$36,COLUMN(D29),0)<1,"",IF(VLOOKUP($D31,'1 класс'!$B$6:$O$36,COLUMN(D29),0)<3,'1 класс'!E$5,"")) ->  | K31: =IF(VLOOKUP($D31,'1 класс'!$B$6:$O$36,COLUMN(E29),0)<1,"",IF(VLOOKUP($D31,'1 класс'!$B$6:$O$36,COLUMN(E29),0)<3,'1 класс'!F$5,"")) ->  | L31: =IF(VLOOKUP($D31,'1 класс'!$B$6:$O$36,COLUMN(F29),0)<1,"",IF(VLOOKUP($D31,'1 класс'!$B$6:$O$36,COLUMN(F29),0)<3,'1 класс'!G$5,"")) ->  | M31: =IF(VLOOKUP($D31,'1 класс'!$B$6:$O$36,COLUMN(G29),0)<1,"",IF(VLOOKUP($D31,'1 класс'!$B$6:$O$36,COLUMN(G29),0)<3,'1 класс'!H$5,"")) ->  | N31: =IF(VLOOKUP($D31,'1 класс'!$B$6:$O$36,COLUMN(H29),0)<1,"",IF(VLOOKUP($D31,'1 класс'!$B$6:$O$36,COLUMN(H29),0)<3,'1 класс'!I$5,"")) ->  | O31: =IF(VLOOKUP($D31,'1 класс'!$B$6:$O$36,COLUMN(I29),0)<1,"",IF(VLOOKUP($D31,'1 класс'!$B$6:$O$36,COLUMN(I29),0)<3,'1 класс'!J$5,"")) ->  | P31: =IF(VLOOKUP($D31,'1 класс'!$B$6:$O$36,COLUMN(J29),0)<1,"",IF(VLOOKUP($D31,'1 класс'!$B$6:$O$36,COLUMN(J29),0)<3,'1 класс'!K$5,"")) ->  | Q31: =IF(VLOOKUP($D31,'1 класс'!$B$6:$O$36,COLUMN(K29),0)<1,"",IF(VLOOKUP($D31,'1 класс'!$B$6:$O$36,COLUMN(K29),0)<3,'1 класс'!L$5,"")) -> 
A32: 0 | C32: 2 | D32: =IFERROR(INDEX('1 класс'!$B$6:$B$25,SMALL(IF('1 класс'!$Q$6:$Q$25='1 клОтчет'!A$32,'1 класс'!$A$6:$A$25),'1 класс'!$A7)),"") ->  | H32: =IF(VLOOKUP($D32,'1 класс'!$B$6:$O$36,COLUMN(B30),0)<1,"",IF(VLOOKUP($D32,'1 класс'!$B$6:$O$36,COLUMN(B30),0)<3,'1 класс'!C$5,"")) ->  | I32: =IF(VLOOKUP($D32,'1 класс'!$B$6:$O$36,COLUMN(C30),0)<1,"",IF(VLOOKUP($D32,'1 класс'!$B$6:$O$36,COLUMN(C30),0)<3,'1 класс'!D$5,"")) ->  | J32: =IF(VLOOKUP($D32,'1 класс'!$B$6:$O$36,COLUMN(D30),0)<1,"",IF(VLOOKUP($D32,'1 класс'!$B$6:$O$36,COLUMN(D30),0)<3,'1 класс'!E$5,"")) ->  | K32: =IF(VLOOKUP($D32,'1 класс'!$B$6:$O$36,COLUMN(E30),0)<1,"",IF(VLOOKUP($D32,'1 класс'!$B$6:$O$36,COLUMN(E30),0)<3,'1 класс'!F$5,"")) ->  | L32: =IF(VLOOKUP($D32,'1 класс'!$B$6:$O$36,COLUMN(F30),0)<1,"",IF(VLOOKUP($D32,'1 класс'!$B$6:$O$36,COLUMN(F30),0)<3,'1 класс'!G$5,"")) ->  | M32: =IF(VLOOKUP($D32,'1 класс'!$B$6:$O$36,COLUMN(G30),0)<1,"",IF(VLOOKUP($D32,'1 класс'!$B$6:$O$36,COLUMN(G30),0)<3,'1 класс'!H$5,"")) ->  | N32: =IF(VLOOKUP($D32,'1 класс'!$B$6:$O$36,COLUMN(H30),0)<1,"",IF(VLOOKUP($D32,'1 класс'!$B$6:$O$36,COLUMN(H30),0)<3,'1 класс'!I$5,"")) ->  | O32: =IF(VLOOKUP($D32,'1 класс'!$B$6:$O$36,COLUMN(I30),0)<1,"",IF(VLOOKUP($D32,'1 класс'!$B$6:$O$36,COLUMN(I30),0)<3,'1 класс'!J$5,"")) ->  | P32: =IF(VLOOKUP($D32,'1 класс'!$B$6:$O$36,COLUMN(J30),0)<1,"",IF(VLOOKUP($D32,'1 класс'!$B$6:$O$36,COLUMN(J30),0)<3,'1 класс'!K$5,"")) ->  | Q32: =IF(VLOOKUP($D32,'1 класс'!$B$6:$O$36,COLUMN(K30),0)<1,"",IF(VLOOKUP($D32,'1 класс'!$B$6:$O$36,COLUMN(K30),0)<3,'1 класс'!L$5,"")) -> 
C33: 3 | D33: =IFERROR(INDEX('1 класс'!$B$6:$B$25,SMALL(IF('1 класс'!$Q$6:$Q$25='1 клОтчет'!A$32,'1 класс'!$A$6:$A$25),'1 класс'!$A8)),"") ->  | H33: =IF(VLOOKUP($D33,'1 класс'!$B$6:$O$36,COLUMN(B31),0)<1,"",IF(VLOOKUP($D33,'1 класс'!$B$6:$O$36,COLUMN(B31),0)<3,'1 класс'!C$5,"")) ->  | I33: =IF(VLOOKUP($D33,'1 класс'!$B$6:$O$36,COLUMN(C31),0)<1,"",IF(VLOOKUP($D33,'1 класс'!$B$6:$O$36,COLUMN(C31),0)<3,'1 класс'!D$5,"")) ->  | J33: =IF(VLOOKUP($D33,'1 класс'!$B$6:$O$36,COLUMN(D31),0)<1,"",IF(VLOOKUP($D33,'1 класс'!$B$6:$O$36,COLUMN(D31),0)<3,'1 класс'!E$5,"")) ->  | K33: =IF(VLOOKUP($D33,'1 класс'!$B$6:$O$36,COLUMN(E31),0)<1,"",IF(VLOOKUP($D33,'1 класс'!$B$6:$O$36,COLUMN(E31),0)<3,'1 класс'!F$5,"")) ->  | L33: =IF(VLOOKUP($D33,'1 класс'!$B$6:$O$36,COLUMN(F31),0)<1,"",IF(VLOOKUP($D33,'1 класс'!$B$6:$O$36,COLUMN(F31),0)<3,'1 класс'!G$5,"")) ->  | M33: =IF(VLOOKUP($D33,'1 класс'!$B$6:$O$36,COLUMN(G31),0)<1,"",IF(VLOOKUP($D33,'1 класс'!$B$6:$O$36,COLUMN(G31),0)<3,'1 класс'!H$5,"")) ->  | N33: =IF(VLOOKUP($D33,'1 класс'!$B$6:$O$36,COLUMN(H31),0)<1,"",IF(VLOOKUP($D33,'1 класс'!$B$6:$O$36,COLUMN(H31),0)<3,'1 класс'!I$5,"")) ->  | O33: =IF(VLOOKUP($D33,'1 класс'!$B$6:$O$36,COLUMN(I31),0)<1,"",IF(VLOOKUP($D33,'1 класс'!$B$6:$O$36,COLUMN(I31),0)<3,'1 класс'!J$5,"")) ->  | P33: =IF(VLOOKUP($D33,'1 класс'!$B$6:$O$36,COLUMN(J31),0)<1,"",IF(VLOOKUP($D33,'1 класс'!$B$6:$O$36,COLUMN(J31),0)<3,'1 класс'!K$5,"")) ->  | Q33: =IF(VLOOKUP($D33,'1 класс'!$B$6:$O$36,COLUMN(K31),0)<1,"",IF(VLOOKUP($D33,'1 класс'!$B$6:$O$36,COLUMN(K31),0)<3,'1 класс'!L$5,"")) -> 
